Workbook

Sheet Venue 1
E3: ="LTA Local Authority Parks Toolkit"&IF(ISBLANK(G13),""," - Site "&G13) -> LTA Local Authority Parks Toolkit
D6: It is recommended that this form is completed with the assistance of a PDP, in order to produce the most accurate forecast. As a guide there are case studies online that will help with operating models and court rates. The Local Authority should complete one tab per venue. Please fill in all of the relevant light green boxes.
D9: Site Background
C10: 1
C11: 1
C12: 1 | D12: Local Authority
C13: 1 | D13: Site Name
C14: 1 | D14: Postcode
C15: 1 | D15: Deprivation Index | J15: Use this tool to determine the index: | M15: http://imd-by-postcode.opendatacommunities.org/
C16: 1 | D16: Penetration | G16: 700 | J16: Pre-set to 700, will be updated by your local Participation Development Partner
C17: 1 | D17: Court upgrade works required?
C18: 1 | D18: Venue operations outsourced? | J18: If you plan to lease out all operations (court bookings, season tickets & coaching) please select "yes" here
C19: 1
C20: 1
C21: 1 | D21: Court Information
C22: 1
C23: 1
C24: 1 | D24: Courts at the venue
C25: 1 | D25: Number of non floodlit courts | J25: Total at the end of the project
C26: 1 | D26: Number of floodlit courts | J26: Total at the end of the project
C27: 1 | D27: Total available court hours | G27: =G26*FL_CH+G25*NFL_CH -> 0
C28: 1
C29: 1 | D29: Gates required
C30: 1 | D30: Number of gates required | J30: All gate access systems must be the same at each venue
C31: 1 | D31: Type of gate system required | J31: See the LTA website for details of the different gates
C32: 1 | D32: If solar chosen grant funded by LTA?
C33: 1 | J33: https://www.lta.org.uk/globalassets/venue/ready-to-rally-brochure---parks.pdf
C34: =IF(G17="yes",1,0) -> 0 | D34: Court upgrade works
C35: =C34 -> 0 | D35: Do you know the exact cost of renovation?
C36: =IF(G35="yes",1,0) -> 0 | D36: Expected cost of project
C37: =IF(G35="yes",0,IF(G17="yes",1,0)) -> 0 | D37: Level of court renovation required
C38: =C37 -> 0 | D38: Number of courts to be renovated
C39: 0 | D39: Cost of fencing / other costs | J39: Replacement of 1 x 3m chain link fence panel = c£250
C40: =C37 -> 0 | D40: New LED floodlights | J40: Number of courts needing New LED floodlight installation (£15,000/court)
C41: =C40 -> 0 | D41: Conversion to LED floodlights | J41: Number of courts needing conversion to LED floodlights (£10,000/court)
C42: 0 | D42: Expected cost of project | G42: =IFERROR(VLOOKUP(G37,Inputs!$B$22:$C$27,2,0)*G38,0)+'Venue 1'!G40*Inputs!C29+'Venue 1'!G41*Inputs!C30+G39 -> 0 | J42: Calculated based on inputs above - note this is an estimate
C43: =C34 -> 0 | D43: Capital funding available | J43: For example from Sport England, local charities, own reserves
C44: =C43 -> 0 | D44: Loan required from LTA* | G44: =IF(ISBLANK(G42),"",IF(G35="yes",G36-G43,G42-G43)) -> 0
C45: =C43 -> 0 | D45: *There are specific conditions required in order to apply for LTA loan funding. Please speak to your PDP or visit our website for the type of investments we support (see link below)
C46: =C44 -> 0 | D46: https://www.lta.org.uk/workforce-venues/tennis-venue-support/tennis-and-padel-facility-funding-and-advice/quick-access-loan-scheme/
C47: 0 | T47: Max | U47: Max | V47: Max | W47: Min | X47: Min | Y47: Min
C48: 0 | T48: =IF($G$15>0,IF(G15<3,2,IF(G15=10,8,$G$15-1)),"") ->  | U48: =IF($G$15>0,T48+1,"") ->  | V48: =IF($G$15>0,U48+1,"") ->  | W48: =T48 -> 
C49: =IF($G$18="yes",0,1) -> 1 | R49: Comparison
C50: =C49 -> 1 | R50: ="Range for IMD levels "&T48&" - "&V48 -> Range for IMD levels -
C51: 1 | D51: Income assumptions
B52: 10 | C52: 1 | D52: Court cost per hour (non FL) | J52: Pay and play for non floodlit courts | R52: =IFERROR("£"&MIN(W52:Y52)&" - £"&MAX(T52:V52),"") ->  | T52: =VLOOKUP(T$48,'Case Studies'!$D$87:$K$95,4,0) ->  | U52: =VLOOKUP(U$48,'Case Studies'!$D$87:$K$95,4,0) ->  | V52: =VLOOKUP(V$48,'Case Studies'!$D$87:$K$95,4,0) ->  | W52: =VLOOKUP(W$48,'Case Studies'!$D$87:$K$95,5,0) ->  | X52: =VLOOKUP(X$48,'Case Studies'!$D$87:$K$95,5,0) ->  | Y52: =VLOOKUP(Y$48,'Case Studies'!$D$87:$K$95,5,0) -> 
B53: 9 | C53: 1 | D53: Court cost per hour (FL) | J53: Pay and play for floodlit courts. Usually £2-£3 more expensive than non floodlit | T53: =VLOOKUP(T$48,'Case Studies'!$D$87:$K$95,2,0) ->  | U53: =VLOOKUP(U$48,'Case Studies'!$D$87:$K$95,2,0) ->  | V53: =VLOOKUP(V$48,'Case Studies'!$D$87:$K$95,2,0) ->  | W53: =VLOOKUP(W$48,'Case Studies'!$D$87:$K$95,3,0) ->  | X53: =VLOOKUP(X$48,'Case Studies'!$D$87:$K$95,3,0) ->  | Y53: =VLOOKUP(Y$48,'Case Studies'!$D$87:$K$95,3,0) -> 
B54: 13 | C54: 1 | D54: Season ticket cost | J54: Annual price for a household | T54: =VLOOKUP(T$48,'Case Studies'!$D$87:$K$95,7,0) ->  | U54: =VLOOKUP(U$48,'Case Studies'!$D$87:$K$95,7,0) ->  | V54: =VLOOKUP(V$48,'Case Studies'!$D$87:$K$95,7,0) ->  | W54: =VLOOKUP(W$48,'Case Studies'!$D$87:$K$95,8,0) ->  | X54: =VLOOKUP(X$48,'Case Studies'!$D$87:$K$95,8,0) ->  | Y54: =VLOOKUP(Y$48,'Case Studies'!$D$87:$K$95,8,0) -> 
C55: 1 | D55: Court hours committed to being free | J55: % of court hours you expect to be free for use
B56: 42 | C56: 1 | D56: Expected % of court hours sold for pay and play | J56: Based on total court hours across the year | R56: ='Case Studies'!$AS$81 -> 0.07001787303
C57: 1 | D57: Expected % of households that buy a season ticket | J57: Comparative figures are based on the average for all areas of deprivation. Note that the number of households can be calculated by taking the penetration and dividing by 2.4 | R57: =+'Case Studies'!$AW$81 -> 0.2274281712
C58: 1
C59: 1
C60: 1
C61: 1 | D61: Plausable annual profit | G61: =TEXT(G81,"£#,###")&IF(G81<0," loss"," profit") -> £ profit
C62: 1
C63: 1
C64: 1 | D64: Income
C65: =IF($G$18="yes",0,1) -> 1 | D65: - Pay and play | G65: =IF(G18="yes",0,G52*G27*G56*(1-G55)) -> 0
C66: 1 | D66: - Season tickets | G66: =IF(G18="yes",0,G54*G16/2.4*G57) -> 0
C67: 1 | D67: =IF(G18="yes","- Agreement fee","- Coaching") -> - Coaching | J67: ="Enter the annual income expected if there is an agreement to hire courts to "&IF(G18="yes","an operator","a local coach") -> Enter the annual income expected if there is an agreement to hire courts to a local coach
C68: =IF(G18="no",1,0) -> 0 | J68: Click here for the coach programming tool
C69: 1 | D69: Total income | G69: =SUM(G65:G67) -> 0
C70: 1
C71: 1 | D71: Costs
C72: =IF($G$18="yes",0,1) -> 1 | D72: - Clubspark and Payment Fees | G72: =IF(G18="yes",0,IFERROR((G65/G52)*CSfee_1+G65*CSfee_2+G66*CSfee_3,0)) -> 0 | J72: ClubSpark (booking platform) charge 1.4% + 5p per transaction, Stripe (payment platform) charge 1.4% + 20p per transaction
C73: =IF($G$18="yes",0,1) -> 1 | D73: - Gate access maintenance | G73: =IFERROR(G30*VLOOKUP(G31,Inputs!B13:C15,2,0),0) -> 0
C74: =IF($G$18="yes",0,1) -> 1 | D74: - Code lock generator (lite systems only) | G74: =IF(G18="yes",0,IF(G31=SmartAccess_Lite,Inputs!C16*G27*G56+Inputs!C16*G27*G55,0)) -> 0
C75: 1 | D75: - Court sinking fund | G75: =G26*FL_SF+G25*NFL_SF -> 0
C76: 1 | D76: - Registration fees | G76: =60*(G25+G26) -> 0
C77: =IF($G$18="yes",0,1) -> 1 | D77: - Staffing costs | J77: Enter any staff costs specific to the site / reallocated from support costs
C78: 1 | D78: - Marketing costs | J78: Enter any specific marketing costs expected to reach participation levels
C79: 1 | D79: Total costs | G79: =SUM(G72:G78) -> 0
C80: 1
C81: 1 | D81: ="Net annual "&IF(G81<0,"loss","profit") -> Net annual profit | G81: =G69-G79 -> 0
C82: 1 | D82: Net annual profit per court | G82: =IFERROR(G81/SUM(G25:G26),0) -> 0
C83: 1
C84: 1
C85: 1 | D85: Plausable cashflow | G85: ="£"&TEXT(J106,"#,###")&" by year 5" -> £ by year 5
C86: 1
C87: 1
C88: =IF($G$18="yes",0,1) -> 1 | D88: Projected cashflow forecast is calculated below assuming: 1. Starting cash position is £0 2. Pay and play and season tickets sales in year 1 are at 70% of target 3. Sales reach target stated above by year 2 4. From year 5 onwards sales increase by 1% 5. Any loan is repaid over 10 years
C89: 1
C90: 1
C91: 1
C92: 1
C93: 1
C94: 1 | D94: 6. Click here for sinking fund calculator
C95: =IF($G$18="yes",1,0) -> 0 | D95: Projected cashflow forecast is calculated below assuming: 1. Starting cash position is £0 2. Agreement fee is paid at the full rate from year 1 3. Any loan is repaid over 10 years
C96: =IF($G$18="yes",1,0) -> 0
C97: =IF($G$18="yes",1,0) -> 0
C98: =IF($G$18="yes",1,0) -> 0
C99: =IF($G$18="yes",1,0) -> 0 | D99: 4. Click here for sinking fund calculator
C100: 1
C101: 1 | F101: Year 1 | G101: Year 2 | H101: Year 3 | I101: Year 4 | J101: Year 5 | K101: Year 10 | L101: Year 20
C102: 1 | D102: Starting cash position | F102: 0 | G102: =F106 -> 0 | H102: =G106 -> 0 | I102: 0 | J102: 0 | K102: =N117 -> 0 | L102: =X117 -> 0
C103: 1 | D103: Projected profit / (loss) | F103: =F113-F114 -> 0 | G103: =G113-G114 -> 0 | H103: =H113-H114 -> 0 | I103: =I113-I114 -> 0 | J103: =J113-J114 -> 0 | K103: =O113-O114 -> 0 | L103: =S113-S114 -> 0
C104: 1 | D104: LTA loan repayments | F104: =IF($G$17="no",0,-$G$44/10) -> 0 | G104: 0 | H104: 0 | I104: 0 | J104: 0 | K104: 0 | L104: 0
C105: 1 | D105: Net annual cashflow | F105: =SUM(F103:F104) -> 0 | G105: =SUM(G103:G104) -> 0 | H105: 0 | I105: 0 | J105: 0 | K105: 0 | L105: 0
C106: 1 | D106: Closing cash position after sinking fund | F106: =F105+F102 -> 0 | G106: =G105+G102 -> 0 | H106: 0 | I106: 0 | J106: 0 | K106: 0 | L106: 0
C107: 1
C108: 1
C109: 1
C110: 1
C111: 0 | F111: 1 | G111: 2 | H111: 3 | I111: 4 | J111: 5 | K111: 6 | L111: 7 | M111: 8 | N111: 9 | O111: 10 | P111: 11 | Q111: 12 | R111: 13 | S111: 14 | T111: 15 | U111: 16 | V111: 17 | W111: 18 | X111: 19 | Y111: 20
C112: 0 | D112: P&P % court hours | F112: =G112*0.7 -> 0 | G112: =G56 -> 0 | H112: =G112 -> 0 | I112: =H112 -> 0 | J112: =+I112+1% -> 0.01 | K112: 0.02 | L112: 0.03 | M112: 0.04 | N112: 0.05 | O112: 0.06 | P112: 0.07 | Q112: 0.08 | R112: 0.09 | S112: =+R112+1% -> 0.1 | T112: 0.11 | U112: 0.12 | V112: 0.13 | W112: 0.14 | X112: 0.15 | Y112: 0.16
C113: 0 | D113: Sales | F113: =IFERROR($G$65/$G$56*F112,0)+SUM($G$66)*70%+$G$67 -> 0 | G113: =IFERROR($G$65/$G$56*G112,0)+SUM($G$66)+$G$67 -> 0 | H113: =IFERROR($G$65/$G$56*H112,0)+SUM($G$66)+$G$67 -> 0 | I113: 0 | J113: 0 | K113: 0 | L113: 0 | M113: 0 | N113: 0 | O113: 0 | P113: 0 | Q113: 0 | R113: 0 | S113: 0 | T113: 0 | U113: 0 | V113: 0 | W113: 0 | X113: 0 | Y113: 0
C114: 0 | D114: Costs | F114: =IFERROR(SUM($G$72)/$G$56*F112,0)+SUM($G$73:$I$78) -> 0 | G114: 0 | H114: 0 | I114: 0 | J114: 0 | K114: 0 | L114: 0 | M114: 0 | N114: 0 | O114: 0 | P114: 0 | Q114: 0 | R114: 0 | S114: 0 | T114: 0 | U114: 0 | V114: 0 | W114: 0 | X114: 0 | Y114: 0
C115: 0 | D115: Loan repayment | F115: =IF($G$17="no",0,$G$44/10) -> 0 | G115: 0 | H115: 0 | I115: 0 | J115: 0 | K115: 0 | L115: 0 | M115: 0 | N115: 0 | O115: 0
C116: 0 | D116: net cash | F116: =F113-F114-F115 -> 0 | G116: 0 | H116: 0 | I116: 0 | J116: 0 | K116: 0 | L116: 0 | M116: 0 | N116: 0 | O116: 0 | P116: 0 | Q116: 0 | R116: 0 | S116: 0 | T116: 0 | U116: 0 | V116: 0 | W116: 0 | X116: 0 | Y116: 0
C117: 0 | D117: closing cash | F117: =F116 -> 0 | G117: =F117+G116 -> 0 | H117: 0 | I117: 0 | J117: 0 | K117: 0 | L117: 0 | M117: 0 | N117: 0 | O117: 0 | P117: 0 | Q117: 0 | R117: 0 | S117: =R117+S116 -> 0 | T117: 0 | U117: 0 | V117: 0 | W117: 0 | X117: 0 | Y117: 0
C118: 0
C119: 1
C120: 1
C121: 1
C122: 1
C123: 1

Sheet Venue 2
E3: ="LTA Local Authority Parks Toolkit"&IF(ISBLANK(G13),""," - Site "&G13) -> LTA Local Authority Parks Toolkit
D6: It is recommended that this form is completed with the assistance of a PDP, in order to produce the most accurate forecast. As a guide there are case studies online that will help with operating models and court rates.
D9: Site Background
C10: 1
C11: 1
C12: 1 | D12: Local Authority | G12: ='Venue 1'!G12 -> 0
C13: 1 | D13: Site Name
C14: 1 | D14: Postcode
C15: 1 | D15: Deprivation Index | J15: Use this tool to determine the index: | M15: http://imd-by-postcode.opendatacommunities.org/
C16: 1 | D16: Penetration | G16: 700 | J16: Pre-set to 700, will be updated by your local Participation Development Partner
C17: 1 | D17: Court upgrade works required?
C18: 1 | D18: Venue operations outsourced? | J18: If you plan to lease out all operations (court bookings, season tickets & coaching) please select "yes" here
C19: 1
C20: 1
C21: 1 | D21: Court Information
C22: 1
C23: 1
C24: 1 | D24: Courts at the venue
C25: 1 | D25: Number of non floodlit courts | J25: Total at the end of the project
C26: 1 | D26: Number of floodlit courts | J26: Total at the end of the project
C27: 1 | D27: Total available court hours | G27: =G26*FL_CH+G25*NFL_CH -> 0
C28: 1
C29: 1 | D29: Gates required
C30: 1 | D30: Number of gates required | J30: All gate access systems must be the same at each venue
C31: 1 | D31: Type of gate system required | J31: See the LTA website for details of the different gates
C32: 1 | D32: If solar chosen grant funded by LTA?
C33: 1 | J33: https://www.lta.org.uk/globalassets/venue/ready-to-rally-brochure---parks.pdf
C34: =IF(G17="yes",1,0) -> 0 | D34: Court upgrade works
C35: =C34 -> 0 | D35: Do you know the exact cost of renovation?
C36: =IF(G35="yes",1,0) -> 0 | D36: Expected cost of project
C37: =IF(G35="yes",0,IF(G17="yes",1,0)) -> 0 | D37: Level of court renovation required
C38: =C37 -> 0 | D38: Number of courts to be renovated
C39: 0 | D39: Cost of fencing / other costs | J39: Replacement of 1 x 3m chain link fence panel = c£250
C40: =C37 -> 0 | D40: New LED floodlights | J40: Number of courts needing New LED floodlight installation (£15,000/court)
C41: =C40 -> 0 | D41: Conversion to LED floodlights | J41: Number of courts needing conversion to LED floodlights (£10,000/court)
C42: 0 | D42: Expected cost of project | G42: =IFERROR(VLOOKUP(G37,Inputs!$B$22:$C$27,2,0)*G38,0)+'Venue 2'!G40*Inputs!C29+'Venue 2'!G41*Inputs!C30+G39 -> 0 | J42: Calculated based on inputs above - note this is an estimate
C43: =C34 -> 0 | D43: Capital funding available | J43: For example from Sport England, local charities, own reserves
C44: =C43 -> 0 | D44: Loan required from LTA* | G44: =IF(ISBLANK(G42),"",IF(G35="yes",G36-G43,G42-G43)) -> 0
C45: =C43 -> 0 | D45: *There are specific conditions required in order to apply for LTA loan funding. Please speak to your PDP or visit our website for the type of investments we support (see link below)
C46: =C44 -> 0 | D46: https://www.lta.org.uk/workforce-venues/tennis-venue-support/tennis-and-padel-facility-funding-and-advice/quick-access-loan-scheme/
C47: 0 | T47: Max | U47: Max | V47: Max | W47: Min | X47: Min | Y47: Min
C48: 0 | T48: =IF($G$15>0,IF(G15<3,2,IF(G15=10,8,$G$15-1)),"") ->  | U48: =IF($G$15>0,T48+1,"") ->  | V48: =IF($G$15>0,U48+1,"") ->  | W48: =T48 -> 
C49: =IF($G$18="yes",0,1) -> 1 | R49: Comparison
C50: =C49 -> 1 | R50: ="Range for IMD levels "&T48&" - "&V48 -> Range for IMD levels -
C51: 1 | D51: Income assumptions
B52: 10 | C52: 1 | D52: Court cost per hour (non FL) | J52: Pay and play for non floodlit courts | R52: =IFERROR("£"&MIN(W52:Y52)&" - £"&MAX(T52:V52),"") ->  | T52: =VLOOKUP(T$48,'Case Studies'!$D$87:$K$95,4,0) ->  | U52: =VLOOKUP(U$48,'Case Studies'!$D$87:$K$95,4,0) ->  | V52: =VLOOKUP(V$48,'Case Studies'!$D$87:$K$95,4,0) ->  | W52: =VLOOKUP(W$48,'Case Studies'!$D$87:$K$95,5,0) ->  | X52: =VLOOKUP(X$48,'Case Studies'!$D$87:$K$95,5,0) ->  | Y52: =VLOOKUP(Y$48,'Case Studies'!$D$87:$K$95,5,0) -> 
B53: 9 | C53: 1 | D53: Court cost per hour (FL) | J53: Pay and play for floodlit courts. Usually £2-£3 more expensive than non floodlit | T53: =VLOOKUP(T$48,'Case Studies'!$D$87:$K$95,2,0) ->  | U53: =VLOOKUP(U$48,'Case Studies'!$D$87:$K$95,2,0) ->  | V53: =VLOOKUP(V$48,'Case Studies'!$D$87:$K$95,2,0) ->  | W53: =VLOOKUP(W$48,'Case Studies'!$D$87:$K$95,3,0) ->  | X53: =VLOOKUP(X$48,'Case Studies'!$D$87:$K$95,3,0) ->  | Y53: =VLOOKUP(Y$48,'Case Studies'!$D$87:$K$95,3,0) -> 
B54: 13 | C54: 1 | D54: Season ticket cost | J54: Annual price for a household | T54: =VLOOKUP(T$48,'Case Studies'!$D$87:$K$95,7,0) ->  | U54: =VLOOKUP(U$48,'Case Studies'!$D$87:$K$95,7,0) ->  | V54: =VLOOKUP(V$48,'Case Studies'!$D$87:$K$95,7,0) ->  | W54: =VLOOKUP(W$48,'Case Studies'!$D$87:$K$95,8,0) ->  | X54: =VLOOKUP(X$48,'Case Studies'!$D$87:$K$95,8,0) ->  | Y54: =VLOOKUP(Y$48,'Case Studies'!$D$87:$K$95,8,0) -> 
C55: 1 | D55: Court hours committed to being free | J55: % of court hours you expect to be free for use
B56: 42 | C56: 1 | D56: Expected % of court hours sold for pay and play | J56: Based on total court hours across the year | R56: ='Case Studies'!$AS$81 -> 0.07001787303
C57: 1 | D57: Expected % of households that buy a season ticket | J57: Comparative figures are based on the average for all areas of deprivation. Note that the number of households can be calculated by taking the penetration and dividing by 2.4 | R57: =+'Case Studies'!$AW$81 -> 0.2274281712
C58: 1
C59: 1
C60: 1
C61: 1 | D61: Plausable annual profit | G61: =TEXT(G81,"£#,###")&IF(G81<0," loss"," profit") -> £ profit
C62: 1
C63: 1
C64: 1 | D64: Income
C65: =IF($G$18="yes",0,1) -> 1 | D65: - Pay and play | G65: =IF(G18="yes",0,G52*G27*G56*(1-G55)) -> 0
C66: 1 | D66: - Season tickets | G66: =IF(G18="yes",0,G54*G16/2.4*G57) -> 0
C67: 1 | D67: =IF(G18="yes","- Agreement fee","- Coaching") -> - Coaching | J67: ="Enter the annual income expected if there is an agreement to hire courts to "&IF(G18="yes","an operator","a local coach") -> Enter the annual income expected if there is an agreement to hire courts to a local coach
C68: =IF(G18="no",1,0) -> 0 | J68: Click here for the coach programming tool
C69: 1 | D69: Total income | G69: =SUM(G65:G67) -> 0
C70: 1
C71: 1 | D71: Costs
C72: =IF($G$18="yes",0,1) -> 1 | D72: - Clubspark and Payment Fees | G72: =IF(G18="yes",0,IFERROR((G65/G52)*CSfee_1+G65*CSfee_2+G66*CSfee_3,0)) -> 0 | J72: ClubSpark (booking platform) charge 1.4% + 5p per transaction, Stripe (payment platform) charge 1.4% + 20p per transaction
C73: =IF($G$18="yes",0,1) -> 1 | D73: - Gate access maintenance | G73: =IFERROR(G30*VLOOKUP(G31,Inputs!B13:C15,2,0),0) -> 0
C74: =IF($G$18="yes",0,1) -> 1 | D74: - Code lock generator (lite systems only) | G74: =IF(G18="yes",0,IF(G31=SmartAccess_Lite,Inputs!C16*G27*G56+Inputs!C16*G27*G55,0)) -> 0
C75: 1 | D75: - Court sinking fund | G75: =G26*FL_SF+G25*NFL_SF -> 0
C76: 1 | D76: - Registration fees | G76: =60*(G25+G26) -> 0
C77: =IF($G$18="yes",0,1) -> 1 | D77: - Staffing costs | J77: Enter any staff costs specific to the site / reallocated from support costs
C78: 1 | D78: - Marketing costs | J78: Enter any specific marketing costs expected to reach participation levels
C79: 1 | D79: Total costs | G79: =SUM(G72:G78) -> 0
C80: 1
C81: 1 | D81: ="Net annual "&IF(G81<0,"loss","profit") -> Net annual profit | G81: =G69-G79 -> 0
C82: 1 | D82: Net annual profit per court | G82: =IFERROR(G81/SUM(G25:G26),0) -> 0
C83: 1
C84: 1
C85: 1 | D85: Plausable cashflow | G85: ="£"&TEXT(J106,"#,###")&" by year 5" -> £ by year 5
C86: 1
C87: 1
C88: =IF($G$18="yes",0,1) -> 1 | D88: Projected cashflow forecast is calculated below assuming: 1. Starting cash position is £0 2. Pay and play and season tickets sales in year 1 are at 70% of target 3. Sales reach target stated above by year 2 4. From year 5 onwards sales increase by 1% 5. Any loan is repaid over 10 years
C89: 1
C90: 1
C91: 1
C92: 1
C93: 1
C94: 1 | D94: 6. Click here for sinking fund calculator
C95: =IF($G$18="yes",1,0) -> 0 | D95: Projected cashflow forecast is calculated below assuming: 1. Starting cash position is £0 2. Agreement fee is paid at the full rate from year 1 3. Any loan is repaid over 10 years
C96: =IF($G$18="yes",1,0) -> 0
C97: =IF($G$18="yes",1,0) -> 0
C98: =IF($G$18="yes",1,0) -> 0
C99: =IF($G$18="yes",1,0) -> 0 | D99: 4. Click here for sinking fund calculator
C100: 1
C101: 1 | F101: Year 1 | G101: Year 2 | H101: Year 3 | I101: Year 4 | J101: Year 5 | K101: Year 10 | L101: Year 20
C102: 1 | D102: Starting cash position | F102: 0 | G102: =F106 -> 0 | H102: =G106 -> 0 | I102: 0 | J102: 0 | K102: =N117 -> 0 | L102: =X117 -> 0
C103: 1 | D103: Projected profit / (loss) | F103: =F113-F114 -> 0 | G103: =G113-G114 -> 0 | H103: =H113-H114 -> 0 | I103: =I113-I114 -> 0 | J103: =J113-J114 -> 0 | K103: =O113-O114 -> 0 | L103: =S113-S114 -> 0
C104: 1 | D104: LTA loan repayments | F104: =IF($G$17="no",0,-$G$44/10) -> 0 | G104: 0 | H104: 0 | I104: 0 | J104: 0 | K104: 0 | L104: 0
C105: 1 | D105: Net annual cashflow | F105: =SUM(F103:F104) -> 0 | G105: =SUM(G103:G104) -> 0 | H105: 0 | I105: 0 | J105: 0 | K105: 0 | L105: 0
C106: 1 | D106: Closing cash position after sinking fund | F106: =F105+F102 -> 0 | G106: =G105+G102 -> 0 | H106: 0 | I106: 0 | J106: 0 | K106: 0 | L106: 0
C107: 1
C108: 1
C109: 1
C110: 1
C111: 0 | F111: 1 | G111: 2 | H111: 3 | I111: 4 | J111: 5 | K111: 6 | L111: 7 | M111: 8 | N111: 9 | O111: 10 | P111: 11 | Q111: 12 | R111: 13 | S111: 14 | T111: 15 | U111: 16 | V111: 17 | W111: 18 | X111: 19 | Y111: 20
C112: 0 | D112: P&P % court hours | F112: =G112*0.7 -> 0 | G112: =G56 -> 0 | H112: =G112 -> 0 | I112: =H112 -> 0 | J112: =+I112+1% -> 0.01 | K112: 0.02 | L112: 0.03 | M112: 0.04 | N112: 0.05 | O112: 0.06 | P112: 0.07 | Q112: 0.08 | R112: 0.09 | S112: =+R112+1% -> 0.1 | T112: 0.11 | U112: 0.12 | V112: 0.13 | W112: 0.14 | X112: 0.15 | Y112: 0.16
C113: 0 | D113: Sales | F113: =IFERROR($G$65/$G$56*F112,0)+SUM($G$66)*70%+$G$67 -> 0 | G113: =IFERROR($G$65/$G$56*G112,0)+SUM($G$66)+$G$67 -> 0 | H113: =IFERROR($G$65/$G$56*H112,0)+SUM($G$66)+$G$67 -> 0 | I113: 0 | J113: 0 | K113: 0 | L113: 0 | M113: 0 | N113: 0 | O113: 0 | P113: 0 | Q113: 0 | R113: 0 | S113: 0 | T113: 0 | U113: 0 | V113: 0 | W113: 0 | X113: 0 | Y113: 0
C114: 0 | D114: Costs | F114: =IFERROR(SUM($G$72)/$G$56*F112,0)+SUM($G$73:$I$78) -> 0 | G114: 0 | H114: 0 | I114: 0 | J114: 0 | K114: 0 | L114: 0 | M114: 0 | N114: 0 | O114: 0 | P114: 0 | Q114: 0 | R114: 0 | S114: 0 | T114: 0 | U114: 0 | V114: 0 | W114: 0 | X114: 0 | Y114: 0
C115: 0 | D115: Loan repayment | F115: =IF($G$17="no",0,$G$44/10) -> 0 | G115: 0 | H115: 0 | I115: 0 | J115: 0 | K115: 0 | L115: 0 | M115: 0 | N115: 0 | O115: 0
C116: 0 | D116: net cash | F116: =F113-F114-F115 -> 0 | G116: 0 | H116: 0 | I116: 0 | J116: 0 | K116: 0 | L116: 0 | M116: 0 | N116: 0 | O116: 0 | P116: 0 | Q116: 0 | R116: 0 | S116: 0 | T116: 0 | U116: 0 | V116: 0 | W116: 0 | X116: 0 | Y116: 0
C117: 0 | D117: closing cash | F117: =F116 -> 0 | G117: =F117+G116 -> 0 | H117: 0 | I117: 0 | J117: 0 | K117: 0 | L117: 0 | M117: 0 | N117: 0 | O117: 0 | P117: 0 | Q117: 0 | R117: 0 | S117: =R117+S116 -> 0 | T117: 0 | U117: 0 | V117: 0 | W117: 0 | X117: 0 | Y117: 0
C118: 0
C119: 1
C120: 1
C121: 1
C122: 1
C123: 1

Sheet Venue 3
E3: ="LTA Local Authority Parks Toolkit"&IF(ISBLANK(G13),""," - Site "&G13) -> LTA Local Authority Parks Toolkit
D6: It is recommended that this form is completed with the assistance of a PDP, in order to produce the most accurate forecast. As a guide there are case studies online that will help with operating models and court rates.
D9: Site Background
C10: 1
C11: 1
C12: 1 | D12: Local Authority | G12: ='Venue 1'!G12 -> 0
C13: 1 | D13: Site Name
C14: 1 | D14: Postcode
C15: 1 | D15: Deprivation Index | J15: Use this tool to determine the index: | M15: http://imd-by-postcode.opendatacommunities.org/
C16: 1 | D16: Penetration | G16: 700 | J16: Pre-set to 700, will be updated by your local Participation Development Partner
C17: 1 | D17: Court upgrade works required?
C18: 1 | D18: Venue operations outsourced? | J18: If you plan to lease out all operations (court bookings, season tickets & coaching) please select "yes" here
C19: 1
C20: 1
C21: 1 | D21: Court Information
C22: 1
C23: 1
C24: 1 | D24: Courts at the venue
C25: 1 | D25: Number of non floodlit courts | J25: Total at the end of the project
C26: 1 | D26: Number of floodlit courts | J26: Total at the end of the project
C27: 1 | D27: Total available court hours | G27: =G26*FL_CH+G25*NFL_CH -> 0
C28: 1
C29: 1 | D29: Gates required
C30: 1 | D30: Number of gates required | J30: All gate access systems must be the same at each venue
C31: 1 | D31: Type of gate system required | J31: See the LTA website for details of the different gates
D32: If solar chosen grant funded by LTA?
C33: =IF(G17="yes",1,0) -> 0 | J33: https://www.lta.org.uk/globalassets/venue/ready-to-rally-brochure---parks.pdf
C34: =C33 -> 0 | D34: Court upgrade works
C35: 0 | D35: Do you know the exact cost of renovation?
C36: =IF(G35="yes",1,0) -> 0 | D36: Expected cost of project
C37: =IF(G35="yes",0,IF(G17="yes",1,0)) -> 0 | D37: Level of court renovation required
C38: 0 | D38: Number of courts to be renovated
C39: 0 | D39: Cost of fencing / other costs | J39: Replacement of 1 x 3m chain link fence panel = c£250
C40: =C37 -> 0 | D40: New LED floodlights | J40: Number of courts needing New LED floodlight installation (£15,000/court)
C41: =C40 -> 0 | D41: Conversion to LED floodlights | J41: Number of courts needing conversion to LED floodlights (£10,000/court)
C42: 0 | D42: Expected cost of project | G42: =IFERROR(VLOOKUP(G37,Inputs!$B$22:$C$27,2,0)*G38,0)+'Venue 3'!G40*Inputs!C29+'Venue 3'!G41*Inputs!C30+G39 -> 0 | J42: Calculated based on inputs above - note this is an estimate
C43: =C34 -> 0 | D43: Capital funding available | J43: For example from Sport England, local charities, own reserves
C44: =C43 -> 0 | D44: Loan required from LTA* | G44: =IF(ISBLANK(G42),"",IF(G35="yes",G36-G43,G42-G43)) -> 0
C45: =C43 -> 0 | D45: *There are specific conditions required in order to apply for LTA loan funding. Please speak to your PDP or visit our website for the type of investments we support (see link below)
C46: =C44 -> 0 | D46: https://www.lta.org.uk/workforce-venues/tennis-venue-support/tennis-and-padel-facility-funding-and-advice/quick-access-loan-scheme/
C47: 0 | T47: Max | U47: Max | V47: Max | W47: Min | X47: Min | Y47: Min
C48: 0 | T48: =IF($G$15>0,IF(G15<3,2,IF(G15=10,8,$G$15-1)),"") ->  | U48: =IF($G$15>0,T48+1,"") ->  | V48: =IF($G$15>0,U48+1,"") ->  | W48: =T48 -> 
C49: =IF($G$18="yes",0,1) -> 1 | R49: Comparison
C50: =C49 -> 1 | R50: ="Range for IMD levels "&T48&" - "&V48 -> Range for IMD levels -
C51: 1 | D51: Income assumptions
B52: 10 | C52: 1 | D52: Court cost per hour (non FL) | J52: Pay and play for non floodlit courts | R52: =IFERROR("£"&MIN(W52:Y52)&" - £"&MAX(T52:V52),"") ->  | T52: =VLOOKUP(T$48,'Case Studies'!$D$87:$K$95,4,0) ->  | U52: =VLOOKUP(U$48,'Case Studies'!$D$87:$K$95,4,0) ->  | V52: =VLOOKUP(V$48,'Case Studies'!$D$87:$K$95,4,0) ->  | W52: =VLOOKUP(W$48,'Case Studies'!$D$87:$K$95,5,0) ->  | X52: =VLOOKUP(X$48,'Case Studies'!$D$87:$K$95,5,0) ->  | Y52: =VLOOKUP(Y$48,'Case Studies'!$D$87:$K$95,5,0) -> 
B53: 9 | C53: 1 | D53: Court cost per hour (FL) | J53: Pay and play for floodlit courts. Usually £2-£3 more expensive than non floodlit | T53: =VLOOKUP(T$48,'Case Studies'!$D$87:$K$95,2,0) ->  | U53: =VLOOKUP(U$48,'Case Studies'!$D$87:$K$95,2,0) ->  | V53: =VLOOKUP(V$48,'Case Studies'!$D$87:$K$95,2,0) ->  | W53: =VLOOKUP(W$48,'Case Studies'!$D$87:$K$95,3,0) ->  | X53: =VLOOKUP(X$48,'Case Studies'!$D$87:$K$95,3,0) ->  | Y53: =VLOOKUP(Y$48,'Case Studies'!$D$87:$K$95,3,0) -> 
B54: 13 | C54: 1 | D54: Season ticket cost | J54: Annual price for a household | T54: =VLOOKUP(T$48,'Case Studies'!$D$87:$K$95,7,0) ->  | U54: =VLOOKUP(U$48,'Case Studies'!$D$87:$K$95,7,0) ->  | V54: =VLOOKUP(V$48,'Case Studies'!$D$87:$K$95,7,0) ->  | W54: =VLOOKUP(W$48,'Case Studies'!$D$87:$K$95,8,0) ->  | X54: =VLOOKUP(X$48,'Case Studies'!$D$87:$K$95,8,0) ->  | Y54: =VLOOKUP(Y$48,'Case Studies'!$D$87:$K$95,8,0) -> 
C55: 1 | D55: Court hours committed to being free | J55: % of court hours you expect to be free for use
B56: 42 | C56: 1 | D56: Expected % of court hours sold for pay and play | J56: Based on total court hours across the year | R56: ='Case Studies'!$AS$81 -> 0.07001787303
C57: 1 | D57: Expected % of households that buy a season ticket | J57: Comparative figures are based on the average for all areas of deprivation. Note that the number of households can be calculated by taking the penetration and dividing by 2.4 | R57: =+'Case Studies'!$AW$81 -> 0.2274281712
C58: 1
C59: 1
C60: 1
C61: 1 | D61: Plausable annual profit | G61: =TEXT(G81,"£#,###")&IF(G81<0," loss"," profit") -> £ profit
C62: 1
C63: 1
C64: 1 | D64: Income
C65: =IF($G$18="yes",0,1) -> 1 | D65: - Pay and play | G65: =IF(G18="yes",0,G52*G27*G56*(1-G55)) -> 0
C66: 1 | D66: - Season tickets | G66: =IF(G18="yes",0,G54*G16/2.4*G57) -> 0
C67: 1 | D67: =IF(G18="yes","- Agreement fee","- Coaching") -> - Coaching | J67: ="Enter the annual income expected if there is an agreement to hire courts to "&IF(G18="yes","an operator","a local coach") -> Enter the annual income expected if there is an agreement to hire courts to a local coach
C68: =IF(G18="no",1,0) -> 0 | J68: Click here for the coach programming tool
C69: 1 | D69: Total income | G69: =SUM(G65:G67) -> 0
C70: 1
C71: 1 | D71: Costs
C72: =IF($G$18="yes",0,1) -> 1 | D72: - Clubspark and Payment Fees | G72: =IF(G18="yes",0,IFERROR((G65/G52)*CSfee_1+G65*CSfee_2+G66*CSfee_3,0)) -> 0 | J72: ClubSpark (booking platform) charge 1.4% + 5p per transaction, Stripe (payment platform) charge 1.4% + 20p per transaction
C73: =IF($G$18="yes",0,1) -> 1 | D73: - Gate access maintenance | G73: =IFERROR(G30*VLOOKUP(G31,Inputs!B13:C15,2,0),0) -> 0
C74: =IF($G$18="yes",0,1) -> 1 | D74: - Code lock generator (lite systems only) | G74: =IF(G18="yes",0,IF(G31=SmartAccess_Lite,Inputs!C16*G27*G56+Inputs!C16*G27*G55,0)) -> 0
C75: 1 | D75: - Court sinking fund | G75: =G26*FL_SF+G25*NFL_SF -> 0
C76: 1 | D76: - Registration fees | G76: =60*(G25+G26) -> 0
C77: =IF($G$18="yes",0,1) -> 1 | D77: - Staffing costs | J77: Enter any staff costs specific to the site / reallocated from support costs
C78: 1 | D78: - Marketing costs | J78: Enter any specific marketing costs expected to reach participation levels
C79: 1 | D79: Total costs | G79: =SUM(G72:G78) -> 0
C80: 1
C81: 1 | D81: ="Net annual "&IF(G81<0,"loss","profit") -> Net annual profit | G81: =G69-G79 -> 0
C82: 1 | D82: Net annual profit per court | G82: =IFERROR(G81/SUM(G25:G26),0) -> 0
C83: 1
C84: 1
C85: 1 | D85: Plausable cashflow | G85: ="£"&TEXT(J106,"#,###")&" by year 5" -> £ by year 5
C86: 1
C87: 1
C88: =IF($G$18="yes",0,1) -> 1 | D88: Projected cashflow forecast is calculated below assuming: 1. Starting cash position is £0 2. Pay and play and season tickets sales in year 1 are at 70% of target 3. Sales reach target stated above by year 2 4. From year 5 onwards sales increase by 1% 5. Any loan is repaid over 10 years
C89: 1
C90: 1
C91: 1
C92: 1
C93: 1
C94: 1 | D94: 6. Click here for sinking fund calculator
C95: =IF($G$18="yes",1,0) -> 0 | D95: Projected cashflow forecast is calculated below assuming: 1. Starting cash position is £0 2. Agreement fee is paid at the full rate from year 1 3. Any loan is repaid over 10 years
C96: =IF($G$18="yes",1,0) -> 0
C97: =IF($G$18="yes",1,0) -> 0
C98: =IF($G$18="yes",1,0) -> 0
C99: =IF($G$18="yes",1,0) -> 0 | D99: 4. Click here for sinking fund calculator
C100: 1
C101: 1 | F101: Year 1 | G101: Year 2 | H101: Year 3 | I101: Year 4 | J101: Year 5 | K101: Year 10 | L101: Year 20
C102: 1 | D102: Starting cash position | F102: 0 | G102: =F106 -> 0 | H102: =G106 -> 0 | I102: 0 | J102: 0 | K102: =N117 -> 0 | L102: =X117 -> 0
C103: 1 | D103: Projected profit / (loss) | F103: =F113-F114 -> 0 | G103: =G113-G114 -> 0 | H103: =H113-H114 -> 0 | I103: =I113-I114 -> 0 | J103: =J113-J114 -> 0 | K103: =O113-O114 -> 0 | L103: =S113-S114 -> 0
C104: 1 | D104: LTA loan repayments | F104: =IF($G$17="no",0,-$G$44/10) -> 0 | G104: 0 | H104: 0 | I104: 0 | J104: 0 | K104: 0 | L104: 0
C105: 1 | D105: Net annual cashflow | F105: =SUM(F103:F104) -> 0 | G105: =SUM(G103:G104) -> 0 | H105: 0 | I105: 0 | J105: 0 | K105: 0 | L105: 0
C106: 1 | D106: Closing cash position after sinking fund | F106: =F105+F102 -> 0 | G106: =G105+G102 -> 0 | H106: 0 | I106: 0 | J106: 0 | K106: 0 | L106: 0
C107: 1
C108: 1
C109: 1
C110: 1
C111: 0 | F111: 1 | G111: 2 | H111: 3 | I111: 4 | J111: 5 | K111: 6 | L111: 7 | M111: 8 | N111: 9 | O111: 10 | P111: 11 | Q111: 12 | R111: 13 | S111: 14 | T111: 15 | U111: 16 | V111: 17 | W111: 18 | X111: 19 | Y111: 20
C112: 0 | D112: P&P % court hours | F112: =G112*0.7 -> 0 | G112: =G56 -> 0 | H112: =G112 -> 0 | I112: =H112 -> 0 | J112: =+I112+1% -> 0.01 | K112: 0.02 | L112: 0.03 | M112: 0.04 | N112: 0.05 | O112: 0.06 | P112: 0.07 | Q112: 0.08 | R112: 0.09 | S112: =+R112+1% -> 0.1 | T112: 0.11 | U112: 0.12 | V112: 0.13 | W112: 0.14 | X112: 0.15 | Y112: 0.16
C113: 0 | D113: Sales | F113: =IFERROR($G$65/$G$56*F112,0)+SUM($G$66)*70%+$G$67 -> 0 | G113: =IFERROR($G$65/$G$56*G112,0)+SUM($G$66)+$G$67 -> 0 | H113: =IFERROR($G$65/$G$56*H112,0)+SUM($G$66)+$G$67 -> 0 | I113: 0 | J113: 0 | K113: 0 | L113: 0 | M113: 0 | N113: 0 | O113: 0 | P113: 0 | Q113: 0 | R113: 0 | S113: 0 | T113: 0 | U113: 0 | V113: 0 | W113: 0 | X113: 0 | Y113: 0
C114: 0 | D114: Costs | F114: =IFERROR(SUM($G$72)/$G$56*F112,0)+SUM($G$73:$I$78) -> 0 | G114: 0 | H114: 0 | I114: 0 | J114: 0 | K114: 0 | L114: 0 | M114: 0 | N114: 0 | O114: 0 | P114: 0 | Q114: 0 | R114: 0 | S114: 0 | T114: 0 | U114: 0 | V114: 0 | W114: 0 | X114: 0 | Y114: 0
C115: 0 | D115: Loan repayment | F115: =IF($G$17="no",0,$G$44/10) -> 0 | G115: 0 | H115: 0 | I115: 0 | J115: 0 | K115: 0 | L115: 0 | M115: 0 | N115: 0 | O115: 0
C116: 0 | D116: net cash | F116: =F113-F114-F115 -> 0 | G116: 0 | H116: 0 | I116: 0 | J116: 0 | K116: 0 | L116: 0 | M116: 0 | N116: 0 | O116: 0 | P116: 0 | Q116: 0 | R116: 0 | S116: 0 | T116: 0 | U116: 0 | V116: 0 | W116: 0 | X116: 0 | Y116: 0
C117: 0 | D117: closing cash | F117: =F116 -> 0 | G117: =F117+G116 -> 0 | H117: 0 | I117: 0 | J117: 0 | K117: 0 | L117: 0 | M117: 0 | N117: 0 | O117: 0 | P117: 0 | Q117: 0 | R117: 0 | S117: =R117+S116 -> 0 | T117: 0 | U117: 0 | V117: 0 | W117: 0 | X117: 0 | Y117: 0
C118: 0
C119: 1
C120: 1
C121: 1
C122: 1
C123: 1

Sheet Venue 4
E3: ="LTA Local Authority Parks Toolkit"&IF(ISBLANK(G13),""," - Site "&G13) -> LTA Local Authority Parks Toolkit
D6: It is recommended that this form is completed with the assistance of a PDP, in order to produce the most accurate forecast. As a guide there are case studies online that will help with operating models and court rates.
D9: Site Background
C10: 1
C11: 1
C12: 1 | D12: Local Authority | G12: ='Venue 1'!G12 -> 0
C13: 1 | D13: Site Name
C14: 1 | D14: Postcode
C15: 1 | D15: Deprivation Index | J15: Use this tool to determine the index: | M15: http://imd-by-postcode.opendatacommunities.org/
C16: 1 | D16: Penetration | G16: 700 | J16: Pre-set to 700, will be updated by your local Participation Development Partner
C17: 1 | D17: Court upgrade works required?
C18: 1 | D18: Venue operations outsourced? | J18: If you plan to lease out all operations (court bookings, season tickets & coaching) please select "yes" here
C19: 1
C20: 1
C21: 1 | D21: Court Information
C22: 1
C23: 1
C24: 1 | D24: Courts at the venue
C25: 1 | D25: Number of non floodlit courts | J25: Total at the end of the project
C26: 1 | D26: Number of floodlit courts | J26: Total at the end of the project
C27: 1 | D27: Total available court hours | G27: =G26*FL_CH+G25*NFL_CH -> 0
C28: 1
C29: 1 | D29: Gates required
C30: 1 | D30: Number of gates required | J30: All gate access systems must be the same at each venue
C31: 1 | D31: Type of gate system required | J31: See the LTA website for details of the different gates
D32: If solar chosen grant funded by LTA?
C33: =IF(G17="yes",1,0) -> 0 | J33: https://www.lta.org.uk/globalassets/venue/ready-to-rally-brochure---parks.pdf
C34: =C33 -> 0 | D34: Court upgrade works
C35: 0 | D35: Do you know the exact cost of renovation?
C36: =IF(G35="yes",1,0) -> 0 | D36: Expected cost of project
C37: =IF(G35="yes",0,IF(G17="yes",1,0)) -> 0 | D37: Level of court renovation required
C38: 0 | D38: Number of courts to be renovated
C39: 0 | D39: Cost of fencing / other costs | J39: Replacement of 1 x 3m chain link fence panel = c£250
C40: =C37 -> 0 | D40: New LED floodlights | J40: Number of courts needing New LED floodlight installation (£15,000/court)
C41: =C40 -> 0 | D41: Conversion to LED floodlights | J41: Number of courts needing conversion to LED floodlights (£10,000/court)
C42: 0 | D42: Expected cost of project | G42: =IFERROR(VLOOKUP(G37,Inputs!$B$22:$C$27,2,0)*G38,0)+'Venue 4'!G40*Inputs!C29+'Venue 4'!G41*Inputs!C30+G39 -> 0 | J42: Calculated based on inputs above - note this is an estimate
C43: =C34 -> 0 | D43: Capital funding available | J43: For example from Sport England, local charities, own reserves
C44: =C43 -> 0 | D44: Loan required from LTA* | G44: =IF(ISBLANK(G42),"",IF(G35="yes",G36-G43,G42-G43)) -> 0
C45: =C43 -> 0 | D45: *There are specific conditions required in order to apply for LTA loan funding. Please speak to your PDP or visit our website for the type of investments we support (see link below)
C46: =C44 -> 0 | D46: https://www.lta.org.uk/workforce-venues/tennis-venue-support/tennis-and-padel-facility-funding-and-advice/quick-access-loan-scheme/
C47: 0 | T47: Max | U47: Max | V47: Max | W47: Min | X47: Min | Y47: Min
C48: 0 | T48: =IF($G$15>0,IF(G15<3,2,IF(G15=10,8,$G$15-1)),"") ->  | U48: =IF($G$15>0,T48+1,"") ->  | V48: =IF($G$15>0,U48+1,"") ->  | W48: =T48 -> 
C49: =IF($G$18="yes",0,1) -> 1 | R49: Comparison
C50: =C49 -> 1 | R50: ="Range for IMD levels "&T48&" - "&V48 -> Range for IMD levels -
C51: 1 | D51: Income assumptions
B52: 10 | C52: 1 | D52: Court cost per hour (non FL) | J52: Pay and play for non floodlit courts | R52: =IFERROR("£"&MIN(W52:Y52)&" - £"&MAX(T52:V52),"") ->  | T52: =VLOOKUP(T$48,'Case Studies'!$D$87:$K$95,4,0) ->  | U52: =VLOOKUP(U$48,'Case Studies'!$D$87:$K$95,4,0) ->  | V52: =VLOOKUP(V$48,'Case Studies'!$D$87:$K$95,4,0) ->  | W52: =VLOOKUP(W$48,'Case Studies'!$D$87:$K$95,5,0) ->  | X52: =VLOOKUP(X$48,'Case Studies'!$D$87:$K$95,5,0) ->  | Y52: =VLOOKUP(Y$48,'Case Studies'!$D$87:$K$95,5,0) -> 
B53: 9 | C53: 1 | D53: Court cost per hour (FL) | J53: Pay and play for floodlit courts. Usually £2-£3 more expensive than non floodlit | T53: =VLOOKUP(T$48,'Case Studies'!$D$87:$K$95,2,0) ->  | U53: =VLOOKUP(U$48,'Case Studies'!$D$87:$K$95,2,0) ->  | V53: =VLOOKUP(V$48,'Case Studies'!$D$87:$K$95,2,0) ->  | W53: =VLOOKUP(W$48,'Case Studies'!$D$87:$K$95,3,0) ->  | X53: =VLOOKUP(X$48,'Case Studies'!$D$87:$K$95,3,0) ->  | Y53: =VLOOKUP(Y$48,'Case Studies'!$D$87:$K$95,3,0) -> 
B54: 13 | C54: 1 | D54: Season ticket cost | J54: Annual price for a household | T54: =VLOOKUP(T$48,'Case Studies'!$D$87:$K$95,7,0) ->  | U54: =VLOOKUP(U$48,'Case Studies'!$D$87:$K$95,7,0) ->  | V54: =VLOOKUP(V$48,'Case Studies'!$D$87:$K$95,7,0) ->  | W54: =VLOOKUP(W$48,'Case Studies'!$D$87:$K$95,8,0) ->  | X54: =VLOOKUP(X$48,'Case Studies'!$D$87:$K$95,8,0) ->  | Y54: =VLOOKUP(Y$48,'Case Studies'!$D$87:$K$95,8,0) -> 
C55: 1 | D55: Court hours committed to being free | J55: % of court hours you expect to be free for use
B56: 42 | C56: 1 | D56: Expected % of court hours sold for pay and play | J56: Based on total court hours across the year | R56: ='Case Studies'!$AS$81 -> 0.07001787303
C57: 1 | D57: Expected % of households that buy a season ticket | J57: Comparative figures are based on the average for all areas of deprivation. Note that the number of households can be calculated by taking the penetration and dividing by 2.4 | R57: =+'Case Studies'!$AW$81 -> 0.2274281712
C58: 1
C59: 1
C60: 1
C61: 1 | D61: Plausable annual profit | G61: =TEXT(G81,"£#,###")&IF(G81<0," loss"," profit") -> £ profit
C62: 1
C63: 1
C64: 1 | D64: Income
C65: =IF($G$18="yes",0,1) -> 1 | D65: - Pay and play | G65: =IF(G18="yes",0,G52*G27*G56*(1-G55)) -> 0
C66: 1 | D66: - Season tickets | G66: =IF(G18="yes",0,G54*G16/2.4*G57) -> 0
C67: 1 | D67: =IF(G18="yes","- Agreement fee","- Coaching") -> - Coaching | J67: ="Enter the annual income expected if there is an agreement to hire courts to "&IF(G18="yes","an operator","a local coach") -> Enter the annual income expected if there is an agreement to hire courts to a local coach
C68: =IF(G18="no",1,0) -> 0 | J68: Click here for the coach programming tool
C69: 1 | D69: Total income | G69: =SUM(G65:G67) -> 0
C70: 1
C71: 1 | D71: Costs
C72: =IF($G$18="yes",0,1) -> 1 | D72: '- Clubspark and Payment Fees | G72: =IF(G18="yes",0,IFERROR((G65/G52)*CSfee_1+G65*CSfee_2+G66*CSfee_3,0)) -> 0 | J72: ClubSpark (booking platform) charge 1.4% + 5p per transaction, Stripe (payment platform) charge 1.4% + 20p per transaction
C73: =IF($G$18="yes",0,1) -> 1 | D73: - Gate access maintenance | G73: =IFERROR(G30*VLOOKUP(G31,Inputs!B13:C15,2,0),0) -> 0
C74: =IF($G$18="yes",0,1) -> 1 | D74: - Code lock generator (lite systems only) | G74: =IF(G18="yes",0,IF(G31=SmartAccess_Lite,Inputs!C16*G27*G56+Inputs!C16*G27*G55,0)) -> 0
C75: 1 | D75: - Court sinking fund | G75: =G26*FL_SF+G25*NFL_SF -> 0
C76: 1 | D76: - Registration fees | G76: =60*(G25+G26) -> 0
C77: =IF($G$18="yes",0,1) -> 1 | D77: - Staffing costs | J77: Enter any staff costs specific to the site / reallocated from support costs
C78: 1 | D78: - Marketing costs | J78: Enter any specific marketing costs expected to reach participation levels
C79: 1 | D79: Total costs | G79: =SUM(G72:G78) -> 0
C80: 1
C81: 1 | D81: ="Net annual "&IF(G81<0,"loss","profit") -> Net annual profit | G81: =G69-G79 -> 0
C82: 1 | D82: Net annual profit per court | G82: =IFERROR(G81/SUM(G25:G26),0) -> 0
C83: 1
C84: 1
C85: 1 | D85: Plausable cashflow | G85: ="£"&TEXT(J106,"#,###")&" by year 5" -> £ by year 5
C86: 1
C87: 1
C88: =IF($G$18="yes",0,1) -> 1 | D88: Projected cashflow forecast is calculated below assuming: 1. Starting cash position is £0 2. Pay and play and season tickets sales in year 1 are at 70% of target 3. Sales reach target stated above by year 2 4. From year 5 onwards sales increase by 1% 5. Any loan is repaid over 10 years
C89: 1
C90: 1
C91: 1
C92: 1
C93: 1
C94: 1 | D94: 6. Click here for sinking fund calculator
C95: =IF($G$18="yes",1,0) -> 0 | D95: Projected cashflow forecast is calculated below assuming: 1. Starting cash position is £0 2. Agreement fee is paid at the full rate from year 1 3. Any loan is repaid over 10 years
C96: =IF($G$18="yes",1,0) -> 0
C97: =IF($G$18="yes",1,0) -> 0
C98: =IF($G$18="yes",1,0) -> 0
C99: =IF($G$18="yes",1,0) -> 0 | D99: 4. Click here for sinking fund calculator
C100: 1
C101: 1 | F101: Year 1 | G101: Year 2 | H101: Year 3 | I101: Year 4 | J101: Year 5 | K101: Year 10 | L101: Year 20
C102: 1 | D102: Starting cash position | F102: 0 | G102: =F106 -> 0 | H102: =G106 -> 0 | I102: 0 | J102: 0 | K102: =N117 -> 0 | L102: =X117 -> 0
C103: 1 | D103: Projected profit / (loss) | F103: =F113-F114 -> 0 | G103: =G113-G114 -> 0 | H103: =H113-H114 -> 0 | I103: =I113-I114 -> 0 | J103: =J113-J114 -> 0 | K103: =O113-O114 -> 0 | L103: =S113-S114 -> 0
C104: 1 | D104: LTA loan repayments | F104: =IF($G$17="no",0,-$G$44/10) -> 0 | G104: 0 | H104: 0 | I104: 0 | J104: 0 | K104: 0 | L104: 0
C105: 1 | D105: Net annual cashflow | F105: =SUM(F103:F104) -> 0 | G105: =SUM(G103:G104) -> 0 | H105: 0 | I105: 0 | J105: 0 | K105: 0 | L105: 0
C106: 1 | D106: Closing cash position after sinking fund | F106: =F105+F102 -> 0 | G106: =G105+G102 -> 0 | H106: 0 | I106: 0 | J106: 0 | K106: 0 | L106: 0
C107: 1
C108: 1
C109: 1
C110: 1
C111: 0 | F111: 1 | G111: 2 | H111: 3 | I111: 4 | J111: 5 | K111: 6 | L111: 7 | M111: 8 | N111: 9 | O111: 10 | P111: 11 | Q111: 12 | R111: 13 | S111: 14 | T111: 15 | U111: 16 | V111: 17 | W111: 18 | X111: 19 | Y111: 20
C112: 0 | D112: P&P % court hours | F112: =G112*0.7 -> 0 | G112: =G56 -> 0 | H112: =G112 -> 0 | I112: =H112 -> 0 | J112: =+I112+1% -> 0.01 | K112: 0.02 | L112: 0.03 | M112: 0.04 | N112: 0.05 | O112: 0.06 | P112: 0.07 | Q112: 0.08 | R112: 0.09 | S112: =+R112+1% -> 0.1 | T112: 0.11 | U112: 0.12 | V112: 0.13 | W112: 0.14 | X112: 0.15 | Y112: 0.16
C113: 0 | D113: Sales | F113: =IFERROR($G$65/$G$56*F112,0)+SUM($G$66)*70%+$G$67 -> 0 | G113: =IFERROR($G$65/$G$56*G112,0)+SUM($G$66)+$G$67 -> 0 | H113: =IFERROR($G$65/$G$56*H112,0)+SUM($G$66)+$G$67 -> 0 | I113: 0 | J113: 0 | K113: 0 | L113: 0 | M113: 0 | N113: 0 | O113: 0 | P113: 0 | Q113: 0 | R113: 0 | S113: 0 | T113: 0 | U113: 0 | V113: 0 | W113: 0 | X113: 0 | Y113: 0
C114: 0 | D114: Costs | F114: =IFERROR(SUM($G$72)/$G$56*F112,0)+SUM($G$73:$I$78) -> 0 | G114: 0 | H114: 0 | I114: 0 | J114: 0 | K114: 0 | L114: 0 | M114: 0 | N114: 0 | O114: 0 | P114: 0 | Q114: 0 | R114: 0 | S114: 0 | T114: 0 | U114: 0 | V114: 0 | W114: 0 | X114: 0 | Y114: 0
C115: 0 | D115: Loan repayment | F115: =IF($G$17="no",0,$G$44/10) -> 0 | G115: 0 | H115: 0 | I115: 0 | J115: 0 | K115: 0 | L115: 0 | M115: 0 | N115: 0 | O115: 0
C116: 0 | D116: net cash | F116: =F113-F114-F115 -> 0 | G116: 0 | H116: 0 | I116: 0 | J116: 0 | K116: 0 | L116: 0 | M116: 0 | N116: 0 | O116: 0 | P116: 0 | Q116: 0 | R116: 0 | S116: 0 | T116: 0 | U116: 0 | V116: 0 | W116: 0 | X116: 0 | Y116: 0
C117: 0 | D117: closing cash | F117: =F116 -> 0 | G117: =F117+G116 -> 0 | H117: 0 | I117: 0 | J117: 0 | K117: 0 | L117: 0 | M117: 0 | N117: 0 | O117: 0 | P117: 0 | Q117: 0 | R117: 0 | S117: =R117+S116 -> 0 | T117: 0 | U117: 0 | V117: 0 | W117: 0 | X117: 0 | Y117: 0
C118: 0
C119: 1
C120: 1
C121: 1
C122: 1
C123: 1

Sheet Venue 5
E3: ="LTA Local Authority Parks Toolkit"&IF(ISBLANK(G13),""," - Site "&G13) -> LTA Local Authority Parks Toolkit
D6: It is recommended that this form is completed with the assistance of a PDP, in order to produce the most accurate forecast. As a guide there are case studies online that will help with operating models and court rates.
D9: Site Background
C10: 1
C11: 1
C12: 1 | D12: Local Authority | G12: ='Venue 1'!G12 -> 0
C13: 1 | D13: Site Name
C14: 1 | D14: Postcode
C15: 1 | D15: Deprivation Index | J15: Use this tool to determine the index: | M15: http://imd-by-postcode.opendatacommunities.org/
C16: 1 | D16: Penetration | G16: 700 | J16: Pre-set to 700, will be updated by your local Participation Development Partner
C17: 1 | D17: Court upgrade works required?
C18: 1 | D18: Venue operations outsourced? | J18: If you plan to lease out all operations (court bookings, season tickets & coaching) please select "yes" here
C19: 1
C20: 1
C21: 1 | D21: Court Information
C22: 1
C23: 1
C24: 1 | D24: Courts at the venue
C25: 1 | D25: Number of non floodlit courts | J25: Total at the end of the project
C26: 1 | D26: Number of floodlit courts | J26: Total at the end of the project
C27: 1 | D27: Total available court hours | G27: =G26*FL_CH+G25*NFL_CH -> 0
C28: 1
C29: 1 | D29: Gates required
C30: 1 | D30: Number of gates required | J30: All gate access systems must be the same at each venue
C31: 1 | D31: Type of gate system required | J31: See the LTA website for details of the different gates
D32: If solar chosen grant funded by LTA?
C33: =IF(G17="yes",1,0) -> 0 | J33: https://www.lta.org.uk/globalassets/venue/ready-to-rally-brochure---parks.pdf
C34: =C33 -> 0 | D34: Court upgrade works
C35: 0 | D35: Do you know the exact cost of renovation?
C36: =IF(G35="yes",1,0) -> 0 | D36: Expected cost of project
C37: =IF(G35="yes",0,IF(G17="yes",1,0)) -> 0 | D37: Level of court renovation required
C38: 0 | D38: Number of courts to be renovated
C39: 0 | D39: Cost of fencing / other costs | J39: Replacement of 1 x 3m chain link fence panel = c£250
C40: =C37 -> 0 | D40: New LED floodlights | J40: Number of courts needing New LED floodlight installation (£15,000/court)
C41: =C40 -> 0 | D41: Conversion to LED floodlights | J41: Number of courts needing conversion to LED floodlights (£10,000/court)
C42: 0 | D42: Expected cost of project | G42: =IFERROR(VLOOKUP(G37,Inputs!$B$22:$C$27,2,0)*G38,0)+'Venue 5'!G40*Inputs!C29+'Venue 5'!G41*Inputs!C30+G39 -> 0 | J42: Calculated based on inputs above - note this is an estimate
C43: =C34 -> 0 | D43: Capital funding available | J43: For example from Sport England, local charities, own reserves
C44: =C43 -> 0 | D44: Loan required from LTA* | G44: =IF(ISBLANK(G42),"",IF(G35="yes",G36-G43,G42-G43)) -> 0
C45: =C43 -> 0 | D45: *There are specific conditions required in order to apply for LTA loan funding. Please speak to your PDP or visit our website for the type of investments we support (see link below)
C46: =C44 -> 0 | D46: https://www.lta.org.uk/workforce-venues/tennis-venue-support/tennis-and-padel-facility-funding-and-advice/quick-access-loan-scheme/
C47: 0 | T47: Max | U47: Max | V47: Max | W47: Min | X47: Min | Y47: Min
C48: 0 | T48: =IF($G$15>0,IF(G15<3,2,IF(G15=10,8,$G$15-1)),"") ->  | U48: =IF($G$15>0,T48+1,"") ->  | V48: =IF($G$15>0,U48+1,"") ->  | W48: =T48 -> 
C49: =IF($G$18="yes",0,1) -> 1 | R49: Comparison
C50: =C49 -> 1 | R50: ="Range for IMD levels "&T48&" - "&V48 -> Range for IMD levels -
C51: 1 | D51: Income assumptions
B52: 10 | C52: 1 | D52: Court cost per hour (non FL) | J52: Pay and play for non floodlit courts | R52: =IFERROR("£"&MIN(W52:Y52)&" - £"&MAX(T52:V52),"") ->  | T52: =VLOOKUP(T$48,'Case Studies'!$D$87:$K$95,4,0) ->  | U52: =VLOOKUP(U$48,'Case Studies'!$D$87:$K$95,4,0) ->  | V52: =VLOOKUP(V$48,'Case Studies'!$D$87:$K$95,4,0) ->  | W52: =VLOOKUP(W$48,'Case Studies'!$D$87:$K$95,5,0) ->  | X52: =VLOOKUP(X$48,'Case Studies'!$D$87:$K$95,5,0) ->  | Y52: =VLOOKUP(Y$48,'Case Studies'!$D$87:$K$95,5,0) -> 
B53: 9 | C53: 1 | D53: Court cost per hour (FL) | J53: Pay and play for floodlit courts. Usually £2-£3 more expensive than non floodlit | T53: =VLOOKUP(T$48,'Case Studies'!$D$87:$K$95,2,0) ->  | U53: =VLOOKUP(U$48,'Case Studies'!$D$87:$K$95,2,0) ->  | V53: =VLOOKUP(V$48,'Case Studies'!$D$87:$K$95,2,0) ->  | W53: =VLOOKUP(W$48,'Case Studies'!$D$87:$K$95,3,0) ->  | X53: =VLOOKUP(X$48,'Case Studies'!$D$87:$K$95,3,0) ->  | Y53: =VLOOKUP(Y$48,'Case Studies'!$D$87:$K$95,3,0) -> 
B54: 13 | C54: 1 | D54: Season ticket cost | J54: Annual price for a household | T54: =VLOOKUP(T$48,'Case Studies'!$D$87:$K$95,7,0) ->  | U54: =VLOOKUP(U$48,'Case Studies'!$D$87:$K$95,7,0) ->  | V54: =VLOOKUP(V$48,'Case Studies'!$D$87:$K$95,7,0) ->  | W54: =VLOOKUP(W$48,'Case Studies'!$D$87:$K$95,8,0) ->  | X54: =VLOOKUP(X$48,'Case Studies'!$D$87:$K$95,8,0) ->  | Y54: =VLOOKUP(Y$48,'Case Studies'!$D$87:$K$95,8,0) -> 
C55: 1 | D55: Court hours committed to being free | J55: % of court hours you expect to be free for use
B56: 42 | C56: 1 | D56: Expected % of court hours sold for pay and play | J56: Based on total court hours across the year | R56: ='Case Studies'!$AS$81 -> 0.07001787303
C57: 1 | D57: Expected % of households that buy a season ticket | J57: Comparative figures are based on the average for all areas of deprivation. Note that the number of households can be calculated by taking the penetration and dividing by 2.4 | R57: =+'Case Studies'!$AW$81 -> 0.2274281712
C58: 1
C59: 1
C60: 1
C61: 1 | D61: Plausable annual profit | G61: =TEXT(G81,"£#,###")&IF(G81<0," loss"," profit") -> £ profit
C62: 1
C63: 1
C64: 1 | D64: Income
C65: =IF($G$18="yes",0,1) -> 1 | D65: - Pay and play | G65: =IF(G18="yes",0,G52*G27*G56*(1-G55)) -> 0
C66: 1 | D66: - Season tickets | G66: =IF(G18="yes",0,G54*G16/2.4*G57) -> 0
C67: 1 | D67: =IF(G18="yes","- Agreement fee","- Coaching") -> - Coaching | J67: ="Enter the annual income expected if there is an agreement to hire courts to "&IF(G18="yes","an operator","a local coach") -> Enter the annual income expected if there is an agreement to hire courts to a local coach
C68: =IF(G18="no",1,0) -> 0 | J68: Click here for the coach programming tool
C69: 1 | D69: Total income | G69: =SUM(G65:G67) -> 0
C70: 1
C71: 1 | D71: Costs
C72: =IF($G$18="yes",0,1) -> 1 | D72: '- Clubspark and Payment Fees | G72: =IF(G18="yes",0,IFERROR((G65/G52)*CSfee_1+G65*CSfee_2+G66*CSfee_3,0)) -> 0 | J72: ClubSpark (booking platform) charge 1.4% + 5p per transaction, Stripe (payment platform) charge 1.4% + 20p per transaction
C73: =IF($G$18="yes",0,1) -> 1 | D73: - Gate access maintenance | G73: =IFERROR(G30*VLOOKUP(G31,Inputs!B13:C15,2,0),0) -> 0
C74: =IF($G$18="yes",0,1) -> 1 | D74: - Code lock generator (lite systems only) | G74: =IF(G18="yes",0,IF(G31=SmartAccess_Lite,Inputs!C16*G27*G56+Inputs!C16*G27*G55,0)) -> 0
C75: 1 | D75: - Court sinking fund | G75: =G26*FL_SF+G25*NFL_SF -> 0
C76: 1 | D76: - Registration fees | G76: =60*(G25+G26) -> 0
C77: =IF($G$18="yes",0,1) -> 1 | D77: - Staffing costs | J77: Enter any staff costs specific to the site / reallocated from support costs
C78: 1 | D78: - Marketing costs | J78: Enter any specific marketing costs expected to reach participation levels
C79: 1 | D79: Total costs | G79: =SUM(G72:G78) -> 0
C80: 1
C81: 1 | D81: ="Net annual "&IF(G81<0,"loss","profit") -> Net annual profit | G81: =G69-G79 -> 0
C82: 1 | D82: Net annual profit per court | G82: =IFERROR(G81/SUM(G25:G26),0) -> 0
C83: 1
C84: 1
C85: 1 | D85: Plausable cashflow | G85: ="£"&TEXT(J106,"#,###")&" by year 5" -> £ by year 5
C86: 1
C87: 1
C88: =IF($G$18="yes",0,1) -> 1 | D88: Projected cashflow forecast is calculated below assuming: 1. Starting cash position is £0 2. Pay and play and season tickets sales in year 1 are at 70% of target 3. Sales reach target stated above by year 2 4. From year 5 onwards sales increase by 1% 5. Any loan is repaid over 10 years
C89: 1
C90: 1
C91: 1
C92: 1
C93: 1
C94: 1 | D94: 6. Click here for sinking fund calculator
C95: =IF($G$18="yes",1,0) -> 0 | D95: Projected cashflow forecast is calculated below assuming: 1. Starting cash position is £0 2. Agreement fee is paid at the full rate from year 1 3. Any loan is repaid over 10 years
C96: =IF($G$18="yes",1,0) -> 0
C97: =IF($G$18="yes",1,0) -> 0
C98: =IF($G$18="yes",1,0) -> 0
C99: =IF($G$18="yes",1,0) -> 0 | D99: 4. Click here for sinking fund calculator
C100: 1
C101: 1 | F101: Year 1 | G101: Year 2 | H101: Year 3 | I101: Year 4 | J101: Year 5 | K101: Year 10 | L101: Year 20
C102: 1 | D102: Starting cash position | F102: 0 | G102: =F106 -> 0 | H102: =G106 -> 0 | I102: 0 | J102: 0 | K102: =N117 -> 0 | L102: =X117 -> 0
C103: 1 | D103: Projected profit / (loss) | F103: =F113-F114 -> 0 | G103: =G113-G114 -> 0 | H103: =H113-H114 -> 0 | I103: =I113-I114 -> 0 | J103: =J113-J114 -> 0 | K103: =O113-O114 -> 0 | L103: =S113-S114 -> 0
C104: 1 | D104: LTA loan repayments | F104: =IF($G$17="no",0,-$G$44/10) -> 0 | G104: 0 | H104: 0 | I104: 0 | J104: 0 | K104: 0 | L104: 0
C105: 1 | D105: Net annual cashflow | F105: =SUM(F103:F104) -> 0 | G105: =SUM(G103:G104) -> 0 | H105: 0 | I105: 0 | J105: 0 | K105: 0 | L105: 0
C106: 1 | D106: Closing cash position after sinking fund | F106: =F105+F102 -> 0 | G106: =G105+G102 -> 0 | H106: 0 | I106: 0 | J106: 0 | K106: 0 | L106: 0
C107: 1
C108: 1
C109: 1
C110: 1
C111: 0 | F111: 1 | G111: 2 | H111: 3 | I111: 4 | J111: 5 | K111: 6 | L111: 7 | M111: 8 | N111: 9 | O111: 10 | P111: 11 | Q111: 12 | R111: 13 | S111: 14 | T111: 15 | U111: 16 | V111: 17 | W111: 18 | X111: 19 | Y111: 20
C112: 0 | D112: P&P % court hours | F112: =G112*0.7 -> 0 | G112: =G56 -> 0 | H112: =G112 -> 0 | I112: =H112 -> 0 | J112: =+I112+1% -> 0.01 | K112: 0.02 | L112: 0.03 | M112: 0.04 | N112: 0.05 | O112: 0.06 | P112: 0.07 | Q112: 0.08 | R112: 0.09 | S112: =+R112+1% -> 0.1 | T112: 0.11 | U112: 0.12 | V112: 0.13 | W112: 0.14 | X112: 0.15 | Y112: 0.16
C113: 0 | D113: Sales | F113: =IFERROR($G$65/$G$56*F112,0)+SUM($G$66)*70%+$G$67 -> 0 | G113: =IFERROR($G$65/$G$56*G112,0)+SUM($G$66)+$G$67 -> 0 | H113: =IFERROR($G$65/$G$56*H112,0)+SUM($G$66)+$G$67 -> 0 | I113: 0 | J113: 0 | K113: 0 | L113: 0 | M113: 0 | N113: 0 | O113: 0 | P113: 0 | Q113: 0 | R113: 0 | S113: 0 | T113: 0 | U113: 0 | V113: 0 | W113: 0 | X113: 0 | Y113: 0
C114: 0 | D114: Costs | F114: =IFERROR(SUM($G$72)/$G$56*F112,0)+SUM($G$73:$I$78) -> 0 | G114: 0 | H114: 0 | I114: 0 | J114: 0 | K114: 0 | L114: 0 | M114: 0 | N114: 0 | O114: 0 | P114: 0 | Q114: 0 | R114: 0 | S114: 0 | T114: 0 | U114: 0 | V114: 0 | W114: 0 | X114: 0 | Y114: 0
C115: 0 | D115: Loan repayment | F115: =IF($G$17="no",0,$G$44/10) -> 0 | G115: 0 | H115: 0 | I115: 0 | J115: 0 | K115: 0 | L115: 0 | M115: 0 | N115: 0 | O115: 0
C116: 0 | D116: net cash | F116: =F113-F114-F115 -> 0 | G116: 0 | H116: 0 | I116: 0 | J116: 0 | K116: 0 | L116: 0 | M116: 0 | N116: 0 | O116: 0 | P116: 0 | Q116: 0 | R116: 0 | S116: 0 | T116: 0 | U116: 0 | V116: 0 | W116: 0 | X116: 0 | Y116: 0
C117: 0 | D117: closing cash | F117: =F116 -> 0 | G117: =F117+G116 -> 0 | H117: 0 | I117: 0 | J117: 0 | K117: 0 | L117: 0 | M117: 0 | N117: 0 | O117: 0 | P117: 0 | Q117: 0 | R117: 0 | S117: =R117+S116 -> 0 | T117: 0 | U117: 0 | V117: 0 | W117: 0 | X117: 0 | Y117: 0
C118: 0
C119: 1
C120: 1
C121: 1
C122: 1
C123: 1

Sheet Venue 6
E3: ="LTA Local Authority Parks Toolkit"&IF(ISBLANK(G13),""," - Site "&G13) -> LTA Local Authority Parks Toolkit
D6: It is recommended that this form is completed with the assistance of a PDP, in order to produce the most accurate forecast. As a guide there are case studies online that will help with operating models and court rates.
D9: Site Background
C10: 1
C11: 1
C12: 1 | D12: Local Authority | G12: ='Venue 1'!G12 -> 0
C13: 1 | D13: Site Name
C14: 1 | D14: Postcode
C15: 1 | D15: Deprivation Index | J15: Use this tool to determine the index: | M15: http://imd-by-postcode.opendatacommunities.org/
C16: 1 | D16: Penetration | G16: 700 | J16: Pre-set to 700, will be updated by your local Participation Development Partner
C17: 1 | D17: Court upgrade works required?
C18: 1 | D18: Venue operations outsourced? | J18: If you plan to lease out all operations (court bookings, season tickets & coaching) please select "yes" here
C19: 1
C20: 1
C21: 1 | D21: Court Information
C22: 1
C23: 1
C24: 1 | D24: Courts at the venue
C25: 1 | D25: Number of non floodlit courts | J25: Total at the end of the project
C26: 1 | D26: Number of floodlit courts | J26: Total at the end of the project
C27: 1 | D27: Total available court hours | G27: =G26*FL_CH+G25*NFL_CH -> 0
C28: 1
C29: 1 | D29: Gates required
C30: 1 | D30: Number of gates required | J30: All gate access systems must be the same at each venue
C31: 1 | D31: Type of gate system required | J31: See the LTA website for details of the different gates
D32: If solar chosen grant funded by LTA?
C33: =IF(G17="yes",1,0) -> 0 | J33: https://www.lta.org.uk/globalassets/venue/ready-to-rally-brochure---parks.pdf
C34: =C33 -> 0 | D34: Court upgrade works
C35: 0 | D35: Do you know the exact cost of renovation?
C36: =IF(G35="yes",1,0) -> 0 | D36: Expected cost of project
C37: =IF(G35="yes",0,IF(G17="yes",1,0)) -> 0 | D37: Level of court renovation required
C38: 0 | D38: Number of courts to be renovated
C39: 0 | D39: Cost of fencing / other costs | J39: Replacement of 1 x 3m chain link fence panel = c£250
C40: =C37 -> 0 | D40: New LED floodlights | J40: Number of courts needing New LED floodlight installation (£15,000/court)
C41: =C40 -> 0 | D41: Conversion to LED floodlights | J41: Number of courts needing conversion to LED floodlights (£10,000/court)
C42: 0 | D42: Expected cost of project | G42: =IFERROR(VLOOKUP(G37,Inputs!$B$22:$C$27,2,0)*G38,0)+'Venue 6'!G40*Inputs!C29+'Venue 6'!G41*Inputs!C30+G39 -> 0 | J42: Calculated based on inputs above - note this is an estimate
C43: =C34 -> 0 | D43: Capital funding available | J43: For example from Sport England, local charities, own reserves
C44: =C43 -> 0 | D44: Loan required from LTA* | G44: =IF(ISBLANK(G42),"",IF(G35="yes",G36-G43,G42-G43)) -> 0
C45: =C43 -> 0 | D45: *There are specific conditions required in order to apply for LTA loan funding. Please speak to your PDP or visit our website for the type of investments we support (see link below)
C46: =C44 -> 0 | D46: https://www.lta.org.uk/workforce-venues/tennis-venue-support/tennis-and-padel-facility-funding-and-advice/quick-access-loan-scheme/
C47: 0 | T47: Max | U47: Max | V47: Max | W47: Min | X47: Min | Y47: Min
C48: 0 | T48: =IF($G$15>0,IF(G15<3,2,IF(G15=10,8,$G$15-1)),"") ->  | U48: =IF($G$15>0,T48+1,"") ->  | V48: =IF($G$15>0,U48+1,"") ->  | W48: =T48 -> 
C49: =IF($G$18="yes",0,1) -> 1 | R49: Comparison
C50: =C49 -> 1 | R50: ="Range for IMD levels "&T48&" - "&V48 -> Range for IMD levels -
C51: 1 | D51: Income assumptions
B52: 10 | C52: 1 | D52: Court cost per hour (non FL) | J52: Pay and play for non floodlit courts | R52: =IFERROR("£"&MIN(W52:Y52)&" - £"&MAX(T52:V52),"") ->  | T52: =VLOOKUP(T$48,'Case Studies'!$D$87:$K$95,4,0) ->  | U52: =VLOOKUP(U$48,'Case Studies'!$D$87:$K$95,4,0) ->  | V52: =VLOOKUP(V$48,'Case Studies'!$D$87:$K$95,4,0) ->  | W52: =VLOOKUP(W$48,'Case Studies'!$D$87:$K$95,5,0) ->  | X52: =VLOOKUP(X$48,'Case Studies'!$D$87:$K$95,5,0) ->  | Y52: =VLOOKUP(Y$48,'Case Studies'!$D$87:$K$95,5,0) -> 
B53: 9 | C53: 1 | D53: Court cost per hour (FL) | J53: Pay and play for floodlit courts. Usually £2-£3 more expensive than non floodlit | T53: =VLOOKUP(T$48,'Case Studies'!$D$87:$K$95,2,0) ->  | U53: =VLOOKUP(U$48,'Case Studies'!$D$87:$K$95,2,0) ->  | V53: =VLOOKUP(V$48,'Case Studies'!$D$87:$K$95,2,0) ->  | W53: =VLOOKUP(W$48,'Case Studies'!$D$87:$K$95,3,0) ->  | X53: =VLOOKUP(X$48,'Case Studies'!$D$87:$K$95,3,0) ->  | Y53: =VLOOKUP(Y$48,'Case Studies'!$D$87:$K$95,3,0) -> 
B54: 13 | C54: 1 | D54: Season ticket cost | J54: Annual price for a household | T54: =VLOOKUP(T$48,'Case Studies'!$D$87:$K$95,7,0) ->  | U54: =VLOOKUP(U$48,'Case Studies'!$D$87:$K$95,7,0) ->  | V54: =VLOOKUP(V$48,'Case Studies'!$D$87:$K$95,7,0) ->  | W54: =VLOOKUP(W$48,'Case Studies'!$D$87:$K$95,8,0) ->  | X54: =VLOOKUP(X$48,'Case Studies'!$D$87:$K$95,8,0) ->  | Y54: =VLOOKUP(Y$48,'Case Studies'!$D$87:$K$95,8,0) -> 
C55: 1 | D55: Court hours committed to being free | J55: % of court hours you expect to be free for use
B56: 42 | C56: 1 | D56: Expected % of court hours sold for pay and play | J56: Based on total court hours across the year | R56: ='Case Studies'!$AS$81 -> 0.07001787303
C57: 1 | D57: Expected % of households that buy a season ticket | J57: Comparative figures are based on the average for all areas of deprivation. Note that the number of households can be calculated by taking the penetration and dividing by 2.4 | R57: =+'Case Studies'!$AW$81 -> 0.2274281712
C58: 1
C59: 1
C60: 1
C61: 1 | D61: Plausable annual profit | G61: =TEXT(G81,"£#,###")&IF(G81<0," loss"," profit") -> £ profit
C62: 1
C63: 1
C64: 1 | D64: Income
C65: =IF($G$18="yes",0,1) -> 1 | D65: - Pay and play | G65: =IF(G18="yes",0,G52*G27*G56*(1-G55)) -> 0
C66: 1 | D66: - Season tickets | G66: =IF(G18="yes",0,G54*G16/2.4*G57) -> 0
C67: 1 | D67: =IF(G18="yes","- Agreement fee","- Coaching") -> - Coaching | J67: ="Enter the annual income expected if there is an agreement to hire courts to "&IF(G18="yes","an operator","a local coach") -> Enter the annual income expected if there is an agreement to hire courts to a local coach
C68: =IF(G18="no",1,0) -> 0 | J68: Click here for the coach programming tool
C69: 1 | D69: Total income | G69: =SUM(G65:G67) -> 0
C70: 1
C71: 1 | D71: Costs
C72: =IF($G$18="yes",0,1) -> 1 | D72: '- Clubspark and Payment Fees | G72: =IF(G18="yes",0,IFERROR((G65/G52)*CSfee_1+G65*CSfee_2+G66*CSfee_3,0)) -> 0 | J72: ClubSpark (booking platform) charge 1.4% + 5p per transaction, Stripe (payment platform) charge 1.4% + 20p per transaction
C73: =IF($G$18="yes",0,1) -> 1 | D73: - Gate access maintenance | G73: =IFERROR(G30*VLOOKUP(G31,Inputs!B13:C15,2,0),0) -> 0
C74: =IF($G$18="yes",0,1) -> 1 | D74: - Code lock generator (lite systems only) | G74: =IF(G18="yes",0,IF(G31=SmartAccess_Lite,Inputs!C16*G27*G56+Inputs!C16*G27*G55,0)) -> 0
C75: 1 | D75: - Court sinking fund | G75: =G26*FL_SF+G25*NFL_SF -> 0
C76: 1 | D76: - Registration fees | G76: =60*(G25+G26) -> 0
C77: =IF($G$18="yes",0,1) -> 1 | D77: - Staffing costs | J77: Enter any staff costs specific to the site / reallocated from support costs
C78: 1 | D78: - Marketing costs | J78: Enter any specific marketing costs expected to reach participation levels
C79: 1 | D79: Total costs | G79: =SUM(G72:G78) -> 0
C80: 1
C81: 1 | D81: ="Net annual "&IF(G81<0,"loss","profit") -> Net annual profit | G81: =G69-G79 -> 0
C82: 1 | D82: Net annual profit per court | G82: =IFERROR(G81/SUM(G25:G26),0) -> 0
C83: 1
C84: 1
C85: 1 | D85: Plausable cashflow | G85: ="£"&TEXT(J106,"#,###")&" by year 5" -> £ by year 5
C86: 1
C87: 1
C88: =IF($G$18="yes",0,1) -> 1 | D88: Projected cashflow forecast is calculated below assuming: 1. Starting cash position is £0 2. Pay and play and season tickets sales in year 1 are at 70% of target 3. Sales reach target stated above by year 2 4. From year 5 onwards sales increase by 1% 5. Any loan is repaid over 10 years
C89: 1
C90: 1
C91: 1
C92: 1
C93: 1
C94: 1 | D94: 6. Click here for sinking fund calculator
C95: =IF($G$18="yes",1,0) -> 0 | D95: Projected cashflow forecast is calculated below assuming: 1. Starting cash position is £0 2. Agreement fee is paid at the full rate from year 1 3. Any loan is repaid over 10 years
C96: =IF($G$18="yes",1,0) -> 0
C97: =IF($G$18="yes",1,0) -> 0
C98: =IF($G$18="yes",1,0) -> 0
C99: =IF($G$18="yes",1,0) -> 0 | D99: 4. Click here for sinking fund calculator
C100: 1
C101: 1 | F101: Year 1 | G101: Year 2 | H101: Year 3 | I101: Year 4 | J101: Year 5 | K101: Year 10 | L101: Year 20
C102: 1 | D102: Starting cash position | F102: 0 | G102: =F106 -> 0 | H102: =G106 -> 0 | I102: 0 | J102: 0 | K102: =N117 -> 0 | L102: =X117 -> 0
C103: 1 | D103: Projected profit / (loss) | F103: =F113-F114 -> 0 | G103: =G113-G114 -> 0 | H103: =H113-H114 -> 0 | I103: =I113-I114 -> 0 | J103: =J113-J114 -> 0 | K103: =O113-O114 -> 0 | L103: =S113-S114 -> 0
C104: 1 | D104: LTA loan repayments | F104: =IF($G$17="no",0,-$G$44/10) -> 0 | G104: 0 | H104: 0 | I104: 0 | J104: 0 | K104: 0 | L104: 0
C105: 1 | D105: Net annual cashflow | F105: =SUM(F103:F104) -> 0 | G105: =SUM(G103:G104) -> 0 | H105: 0 | I105: 0 | J105: 0 | K105: 0 | L105: 0
C106: 1 | D106: Closing cash position after sinking fund | F106: =F105+F102 -> 0 | G106: =G105+G102 -> 0 | H106: 0 | I106: 0 | J106: 0 | K106: 0 | L106: 0
C107: 1
C108: 1
C109: 1
C110: 1
C111: 0 | F111: 1 | G111: 2 | H111: 3 | I111: 4 | J111: 5 | K111: 6 | L111: 7 | M111: 8 | N111: 9 | O111: 10 | P111: 11 | Q111: 12 | R111: 13 | S111: 14 | T111: 15 | U111: 16 | V111: 17 | W111: 18 | X111: 19 | Y111: 20
C112: 0 | D112: P&P % court hours | F112: =G112*0.7 -> 0 | G112: =G56 -> 0 | H112: =G112 -> 0 | I112: =H112 -> 0 | J112: =+I112+1% -> 0.01 | K112: 0.02 | L112: 0.03 | M112: 0.04 | N112: 0.05 | O112: 0.06 | P112: 0.07 | Q112: 0.08 | R112: 0.09 | S112: =+R112+1% -> 0.1 | T112: 0.11 | U112: 0.12 | V112: 0.13 | W112: 0.14 | X112: 0.15 | Y112: 0.16
C113: 0 | D113: Sales | F113: =IFERROR($G$65/$G$56*F112,0)+SUM($G$66)*70%+$G$67 -> 0 | G113: =IFERROR($G$65/$G$56*G112,0)+SUM($G$66)+$G$67 -> 0 | H113: =IFERROR($G$65/$G$56*H112,0)+SUM($G$66)+$G$67 -> 0 | I113: 0 | J113: 0 | K113: 0 | L113: 0 | M113: 0 | N113: 0 | O113: 0 | P113: 0 | Q113: 0 | R113: 0 | S113: 0 | T113: 0 | U113: 0 | V113: 0 | W113: 0 | X113: 0 | Y113: 0
C114: 0 | D114: Costs | F114: =IFERROR(SUM($G$72)/$G$56*F112,0)+SUM($G$73:$I$78) -> 0 | G114: 0 | H114: 0 | I114: 0 | J114: 0 | K114: 0 | L114: 0 | M114: 0 | N114: 0 | O114: 0 | P114: 0 | Q114: 0 | R114: 0 | S114: 0 | T114: 0 | U114: 0 | V114: 0 | W114: 0 | X114: 0 | Y114: 0
C115: 0 | D115: Loan repayment | F115: =IF($G$17="no",0,$G$44/10) -> 0 | G115: 0 | H115: 0 | I115: 0 | J115: 0 | K115: 0 | L115: 0 | M115: 0 | N115: 0 | O115: 0
C116: 0 | D116: net cash | F116: =F113-F114-F115 -> 0 | G116: 0 | H116: 0 | I116: 0 | J116: 0 | K116: 0 | L116: 0 | M116: 0 | N116: 0 | O116: 0 | P116: 0 | Q116: 0 | R116: 0 | S116: 0 | T116: 0 | U116: 0 | V116: 0 | W116: 0 | X116: 0 | Y116: 0
C117: 0 | D117: closing cash | F117: =F116 -> 0 | G117: =F117+G116 -> 0 | H117: 0 | I117: 0 | J117: 0 | K117: 0 | L117: 0 | M117: 0 | N117: 0 | O117: 0 | P117: 0 | Q117: 0 | R117: 0 | S117: =R117+S116 -> 0 | T117: 0 | U117: 0 | V117: 0 | W117: 0 | X117: 0 | Y117: 0
C118: 0
C119: 1
C120: 1
C121: 1
C122: 1
C123: 1

Sheet Venue 7
E3: ="LTA Local Authority Parks Toolkit"&IF(ISBLANK(G13),""," - Site "&G13) -> LTA Local Authority Parks Toolkit
D6: It is recommended that this form is completed with the assistance of a PDP, in order to produce the most accurate forecast. As a guide there are case studies online that will help with operating models and court rates.
D9: Site Background
C10: 1
C11: 1
C12: 1 | D12: Local Authority | G12: ='Venue 1'!G12 -> 0
C13: 1 | D13: Site Name
C14: 1 | D14: Postcode
C15: 1 | D15: Deprivation Index | J15: Use this tool to determine the index: | M15: http://imd-by-postcode.opendatacommunities.org/
C16: 1 | D16: Penetration | G16: 700 | J16: Pre-set to 700, will be updated by your local Participation Development Partner
C17: 1 | D17: Court upgrade works required?
C18: 1 | D18: Venue operations outsourced? | J18: If you plan to lease out all operations (court bookings, season tickets & coaching) please select "yes" here
C19: 1
C20: 1
C21: 1 | D21: Court Information
C22: 1
C23: 1
C24: 1 | D24: Courts at the venue
C25: 1 | D25: Number of non floodlit courts | J25: Total at the end of the project
C26: 1 | D26: Number of floodlit courts | J26: Total at the end of the project
C27: 1 | D27: Total available court hours | G27: =G26*FL_CH+G25*NFL_CH -> 0
C28: 1
C29: 1 | D29: Gates required
C30: 1 | D30: Number of gates required | J30: All gate access systems must be the same at each venue
C31: 1 | D31: Type of gate system required | J31: See the LTA website for details of the different gates
D32: If solar chosen grant funded by LTA?
C33: =IF(G17="yes",1,0) -> 0 | J33: https://www.lta.org.uk/globalassets/venue/ready-to-rally-brochure---parks.pdf
C34: =C33 -> 0 | D34: Court upgrade works
C35: 0 | D35: Do you know the exact cost of renovation?
C36: =IF(G35="yes",1,0) -> 0 | D36: Expected cost of project
C37: =IF(G35="yes",0,IF(G17="yes",1,0)) -> 0 | D37: Level of court renovation required
C38: 0 | D38: Number of courts to be renovated
C39: 0 | D39: Cost of fencing / other costs | J39: Replacement of 1 x 3m chain link fence panel = c£250
C40: =C37 -> 0 | D40: New LED floodlights | J40: Number of courts needing New LED floodlight installation (£15,000/court)
C41: =C40 -> 0 | D41: Conversion to LED floodlights | J41: Number of courts needing conversion to LED floodlights (£10,000/court)
C42: 0 | D42: Expected cost of project | G42: =IFERROR(VLOOKUP(G37,Inputs!$B$22:$C$27,2,0)*G38,0)+'Venue 7'!G40*Inputs!C29+'Venue 7'!G41*Inputs!C30+G39 -> 0 | J42: Calculated based on inputs above - note this is an estimate
C43: =C34 -> 0 | D43: Capital funding available | J43: For example from Sport England, local charities, own reserves
C44: =C43 -> 0 | D44: Loan required from LTA* | G44: =IF(ISBLANK(G42),"",IF(G35="yes",G36-G43,G42-G43)) -> 0
C45: =C43 -> 0 | D45: *There are specific conditions required in order to apply for LTA loan funding. Please speak to your PDP or visit our website for the type of investments we support (see link below)
C46: =C44 -> 0 | D46: https://www.lta.org.uk/workforce-venues/tennis-venue-support/tennis-and-padel-facility-funding-and-advice/quick-access-loan-scheme/
C47: 0 | T47: Max | U47: Max | V47: Max | W47: Min | X47: Min | Y47: Min
C48: 0 | T48: =IF($G$15>0,IF(G15<3,2,IF(G15=10,8,$G$15-1)),"") ->  | U48: =IF($G$15>0,T48+1,"") ->  | V48: =IF($G$15>0,U48+1,"") ->  | W48: =T48 -> 
C49: =IF($G$18="yes",0,1) -> 1 | R49: Comparison
C50: =C49 -> 1 | R50: ="Range for IMD levels "&T48&" - "&V48 -> Range for IMD levels -
C51: 1 | D51: Income assumptions
B52: 10 | C52: 1 | D52: Court cost per hour (non FL) | J52: Pay and play for non floodlit courts | R52: =IFERROR("£"&MIN(W52:Y52)&" - £"&MAX(T52:V52),"") ->  | T52: =VLOOKUP(T$48,'Case Studies'!$D$87:$K$95,4,0) ->  | U52: =VLOOKUP(U$48,'Case Studies'!$D$87:$K$95,4,0) ->  | V52: =VLOOKUP(V$48,'Case Studies'!$D$87:$K$95,4,0) ->  | W52: =VLOOKUP(W$48,'Case Studies'!$D$87:$K$95,5,0) ->  | X52: =VLOOKUP(X$48,'Case Studies'!$D$87:$K$95,5,0) ->  | Y52: =VLOOKUP(Y$48,'Case Studies'!$D$87:$K$95,5,0) -> 
B53: 9 | C53: 1 | D53: Court cost per hour (FL) | J53: Pay and play for floodlit courts. Usually £2-£3 more expensive than non floodlit | T53: =VLOOKUP(T$48,'Case Studies'!$D$87:$K$95,2,0) ->  | U53: =VLOOKUP(U$48,'Case Studies'!$D$87:$K$95,2,0) ->  | V53: =VLOOKUP(V$48,'Case Studies'!$D$87:$K$95,2,0) ->  | W53: =VLOOKUP(W$48,'Case Studies'!$D$87:$K$95,3,0) ->  | X53: =VLOOKUP(X$48,'Case Studies'!$D$87:$K$95,3,0) ->  | Y53: =VLOOKUP(Y$48,'Case Studies'!$D$87:$K$95,3,0) -> 
B54: 13 | C54: 1 | D54: Season ticket cost | J54: Annual price for a household | T54: =VLOOKUP(T$48,'Case Studies'!$D$87:$K$95,7,0) ->  | U54: =VLOOKUP(U$48,'Case Studies'!$D$87:$K$95,7,0) ->  | V54: =VLOOKUP(V$48,'Case Studies'!$D$87:$K$95,7,0) ->  | W54: =VLOOKUP(W$48,'Case Studies'!$D$87:$K$95,8,0) ->  | X54: =VLOOKUP(X$48,'Case Studies'!$D$87:$K$95,8,0) ->  | Y54: =VLOOKUP(Y$48,'Case Studies'!$D$87:$K$95,8,0) -> 
C55: 1 | D55: Court hours committed to being free | J55: % of court hours you expect to be free for use
B56: 42 | C56: 1 | D56: Expected % of court hours sold for pay and play | J56: Based on total court hours across the year | R56: ='Case Studies'!$AS$81 -> 0.07001787303
C57: 1 | D57: Expected % of households that buy a season ticket | J57: Comparative figures are based on the average for all areas of deprivation. Note that the number of households can be calculated by taking the penetration and dividing by 2.4 | R57: =+'Case Studies'!$AW$81 -> 0.2274281712
C58: 1
C59: 1
C60: 1
C61: 1 | D61: Plausable annual profit | G61: =TEXT(G81,"£#,###")&IF(G81<0," loss"," profit") -> £ profit
C62: 1
C63: 1
C64: 1 | D64: Income
C65: =IF($G$18="yes",0,1) -> 1 | D65: - Pay and play | G65: =IF(G18="yes",0,G52*G27*G56*(1-G55)) -> 0
C66: 1 | D66: - Season tickets | G66: =IF(G18="yes",0,G54*G16/2.4*G57) -> 0
C67: 1 | D67: =IF(G18="yes","- Agreement fee","- Coaching") -> - Coaching | J67: ="Enter the annual income expected if there is an agreement to hire courts to "&IF(G18="yes","an operator","a local coach") -> Enter the annual income expected if there is an agreement to hire courts to a local coach
C68: =IF(G18="no",1,0) -> 0 | J68: Click here for the coach programming tool
C69: 1 | D69: Total income | G69: =SUM(G65:G67) -> 0
C70: 1
C71: 1 | D71: Costs
C72: =IF($G$18="yes",0,1) -> 1 | D72: '- Clubspark and Payment Fees | G72: =IF(G18="yes",0,IFERROR((G65/G52)*CSfee_1+G65*CSfee_2+G66*CSfee_3,0)) -> 0 | J72: ClubSpark (booking platform) charge 1.4% + 5p per transaction, Stripe (payment platform) charge 1.4% + 20p per transaction
C73: =IF($G$18="yes",0,1) -> 1 | D73: - Gate access maintenance | G73: =IFERROR(G30*VLOOKUP(G31,Inputs!B13:C15,2,0),0) -> 0
C74: =IF($G$18="yes",0,1) -> 1 | D74: - Code lock generator (lite systems only) | G74: =IF(G18="yes",0,IF(G31=SmartAccess_Lite,Inputs!C16*G27*G56+Inputs!C16*G27*G55,0)) -> 0
C75: 1 | D75: - Court sinking fund | G75: =G26*FL_SF+G25*NFL_SF -> 0
C76: 1 | D76: - Registration fees | G76: =60*(G25+G26) -> 0
C77: =IF($G$18="yes",0,1) -> 1 | D77: - Staffing costs | J77: Enter any staff costs specific to the site / reallocated from support costs
C78: 1 | D78: - Marketing costs | J78: Enter any specific marketing costs expected to reach participation levels
C79: 1 | D79: Total costs | G79: =SUM(G72:G78) -> 0
C80: 1
C81: 1 | D81: ="Net annual "&IF(G81<0,"loss","profit") -> Net annual profit | G81: =G69-G79 -> 0
C82: 1 | D82: Net annual profit per court | G82: =IFERROR(G81/SUM(G25:G26),0) -> 0
C83: 1
C84: 1
C85: 1 | D85: Plausable cashflow | G85: ="£"&TEXT(J106,"#,###")&" by year 5" -> £ by year 5
C86: 1
C87: 1
C88: =IF($G$18="yes",0,1) -> 1 | D88: Projected cashflow forecast is calculated below assuming: 1. Starting cash position is £0 2. Pay and play and season tickets sales in year 1 are at 70% of target 3. Sales reach target stated above by year 2 4. From year 5 onwards sales increase by 1% 5. Any loan is repaid over 10 years
C89: 1
C90: 1
C91: 1
C92: 1
C93: 1
C94: 1 | D94: 6. Click here for sinking fund calculator
C95: =IF($G$18="yes",1,0) -> 0 | D95: Projected cashflow forecast is calculated below assuming: 1. Starting cash position is £0 2. Agreement fee is paid at the full rate from year 1 3. Any loan is repaid over 10 years
C96: =IF($G$18="yes",1,0) -> 0
C97: =IF($G$18="yes",1,0) -> 0
C98: =IF($G$18="yes",1,0) -> 0
C99: =IF($G$18="yes",1,0) -> 0 | D99: 4. Click here for sinking fund calculator
C100: 1
C101: 1 | F101: Year 1 | G101: Year 2 | H101: Year 3 | I101: Year 4 | J101: Year 5 | K101: Year 10 | L101: Year 20
C102: 1 | D102: Starting cash position | F102: 0 | G102: =F106 -> 0 | H102: =G106 -> 0 | I102: 0 | J102: 0 | K102: =N117 -> 0 | L102: =X117 -> 0
C103: 1 | D103: Projected profit / (loss) | F103: =F113-F114 -> 0 | G103: =G113-G114 -> 0 | H103: =H113-H114 -> 0 | I103: =I113-I114 -> 0 | J103: =J113-J114 -> 0 | K103: =O113-O114 -> 0 | L103: =S113-S114 -> 0
C104: 1 | D104: LTA loan repayments | F104: =IF($G$17="no",0,-$G$44/10) -> 0 | G104: 0 | H104: 0 | I104: 0 | J104: 0 | K104: 0 | L104: 0
C105: 1 | D105: Net annual cashflow | F105: =SUM(F103:F104) -> 0 | G105: =SUM(G103:G104) -> 0 | H105: 0 | I105: 0 | J105: 0 | K105: 0 | L105: 0
C106: 1 | D106: Closing cash position after sinking fund | F106: =F105+F102 -> 0 | G106: =G105+G102 -> 0 | H106: 0 | I106: 0 | J106: 0 | K106: 0 | L106: 0
C107: 1
C108: 1
C109: 1
C110: 1
C111: 0 | F111: 1 | G111: 2 | H111: 3 | I111: 4 | J111: 5 | K111: 6 | L111: 7 | M111: 8 | N111: 9 | O111: 10 | P111: 11 | Q111: 12 | R111: 13 | S111: 14 | T111: 15 | U111: 16 | V111: 17 | W111: 18 | X111: 19 | Y111: 20
C112: 0 | D112: P&P % court hours | F112: =G112*0.7 -> 0 | G112: =G56 -> 0 | H112: =G112 -> 0 | I112: =H112 -> 0 | J112: =+I112+1% -> 0.01 | K112: 0.02 | L112: 0.03 | M112: 0.04 | N112: 0.05 | O112: 0.06 | P112: 0.07 | Q112: 0.08 | R112: 0.09 | S112: =+R112+1% -> 0.1 | T112: 0.11 | U112: 0.12 | V112: 0.13 | W112: 0.14 | X112: 0.15 | Y112: 0.16
C113: 0 | D113: Sales | F113: =IFERROR($G$65/$G$56*F112,0)+SUM($G$66)*70%+$G$67 -> 0 | G113: =IFERROR($G$65/$G$56*G112,0)+SUM($G$66)+$G$67 -> 0 | H113: =IFERROR($G$65/$G$56*H112,0)+SUM($G$66)+$G$67 -> 0 | I113: 0 | J113: 0 | K113: 0 | L113: 0 | M113: 0 | N113: 0 | O113: 0 | P113: 0 | Q113: 0 | R113: 0 | S113: 0 | T113: 0 | U113: 0 | V113: 0 | W113: 0 | X113: 0 | Y113: 0
C114: 0 | D114: Costs | F114: =IFERROR(SUM($G$72)/$G$56*F112,0)+SUM($G$73:$I$78) -> 0 | G114: 0 | H114: 0 | I114: 0 | J114: 0 | K114: 0 | L114: 0 | M114: 0 | N114: 0 | O114: 0 | P114: 0 | Q114: 0 | R114: 0 | S114: 0 | T114: 0 | U114: 0 | V114: 0 | W114: 0 | X114: 0 | Y114: 0
C115: 0 | D115: Loan repayment | F115: =IF($G$17="no",0,$G$44/10) -> 0 | G115: 0 | H115: 0 | I115: 0 | J115: 0 | K115: 0 | L115: 0 | M115: 0 | N115: 0 | O115: 0
C116: 0 | D116: net cash | F116: =F113-F114-F115 -> 0 | G116: 0 | H116: 0 | I116: 0 | J116: 0 | K116: 0 | L116: 0 | M116: 0 | N116: 0 | O116: 0 | P116: 0 | Q116: 0 | R116: 0 | S116: 0 | T116: 0 | U116: 0 | V116: 0 | W116: 0 | X116: 0 | Y116: 0
C117: 0 | D117: closing cash | F117: =F116 -> 0 | G117: =F117+G116 -> 0 | H117: 0 | I117: 0 | J117: 0 | K117: 0 | L117: 0 | M117: 0 | N117: 0 | O117: 0 | P117: 0 | Q117: 0 | R117: 0 | S117: =R117+S116 -> 0 | T117: 0 | U117: 0 | V117: 0 | W117: 0 | X117: 0 | Y117: 0
C118: 0
C119: 1
C120: 1
C121: 1
C122: 1
C123: 1

Sheet Venue 8
E3: ="LTA Local Authority Parks Toolkit"&IF(ISBLANK(G13),""," - Site "&G13) -> LTA Local Authority Parks Toolkit
D6: It is recommended that this form is completed with the assistance of a PDP, in order to produce the most accurate forecast. As a guide there are case studies online that will help with operating models and court rates.
D9: Site Background
C10: 1
C11: 1
C12: 1 | D12: Local Authority | G12: ='Venue 1'!G12 -> 0
C13: 1 | D13: Site Name
C14: 1 | D14: Postcode
C15: 1 | D15: Deprivation Index | J15: Use this tool to determine the index: | M15: http://imd-by-postcode.opendatacommunities.org/
C16: 1 | D16: Penetration | G16: 700 | J16: Pre-set to 700, will be updated by your local Participation Development Partner
C17: 1 | D17: Court upgrade works required?
C18: 1 | D18: Venue operations outsourced? | J18: If you plan to lease out all operations (court bookings, season tickets & coaching) please select "yes" here
C19: 1
C20: 1
C21: 1 | D21: Court Information
C22: 1
C23: 1
C24: 1 | D24: Courts at the venue
C25: 1 | D25: Number of non floodlit courts | J25: Total at the end of the project
C26: 1 | D26: Number of floodlit courts | J26: Total at the end of the project
C27: 1 | D27: Total available court hours | G27: =G26*FL_CH+G25*NFL_CH -> 0
C28: 1
C29: 1 | D29: Gates required
C30: 1 | D30: Number of gates required | J30: All gate access systems must be the same at each venue
C31: 1 | D31: Type of gate system required | J31: See the LTA website for details of the different gates
D32: If solar chosen grant funded by LTA?
C33: =IF(G17="yes",1,0) -> 0 | J33: https://www.lta.org.uk/globalassets/venue/ready-to-rally-brochure---parks.pdf
C34: =C33 -> 0 | D34: Court upgrade works
C35: 0 | D35: Do you know the exact cost of renovation?
C36: =IF(G35="yes",1,0) -> 0 | D36: Expected cost of project
C37: =IF(G35="yes",0,IF(G17="yes",1,0)) -> 0 | D37: Level of court renovation required
C38: 0 | D38: Number of courts to be renovated
C39: 0 | D39: Cost of fencing / other costs | J39: Replacement of 1 x 3m chain link fence panel = c£250
C40: =C37 -> 0 | D40: New LED floodlights | J40: Number of courts needing New LED floodlight installation (£15,000/court)
C41: =C40 -> 0 | D41: Conversion to LED floodlights | J41: Number of courts needing conversion to LED floodlights (£10,000/court)
C42: 0 | D42: Expected cost of project | G42: =IFERROR(VLOOKUP(G37,Inputs!$B$22:$C$27,2,0)*G38,0)+'Venue 8'!G40*Inputs!C29+'Venue 8'!G41*Inputs!C30+G39 -> 0 | J42: Calculated based on inputs above - note this is an estimate
C43: =C34 -> 0 | D43: Capital funding available | J43: For example from Sport England, local charities, own reserves
C44: =C43 -> 0 | D44: Loan required from LTA* | G44: =IF(ISBLANK(G42),"",IF(G35="yes",G36-G43,G42-G43)) -> 0
C45: =C43 -> 0 | D45: *There are specific conditions required in order to apply for LTA loan funding. Please speak to your PDP or visit our website for the type of investments we support (see link below)
C46: =C44 -> 0 | D46: https://www.lta.org.uk/workforce-venues/tennis-venue-support/tennis-and-padel-facility-funding-and-advice/quick-access-loan-scheme/
C47: 0 | T47: Max | U47: Max | V47: Max | W47: Min | X47: Min | Y47: Min
C48: 0 | T48: =IF($G$15>0,IF(G15<3,2,IF(G15=10,8,$G$15-1)),"") ->  | U48: =IF($G$15>0,T48+1,"") ->  | V48: =IF($G$15>0,U48+1,"") ->  | W48: =T48 -> 
C49: =IF($G$18="yes",0,1) -> 1 | R49: Comparison
C50: =C49 -> 1 | R50: ="Range for IMD levels "&T48&" - "&V48 -> Range for IMD levels -
C51: 1 | D51: Income assumptions
B52: 10 | C52: 1 | D52: Court cost per hour (non FL) | J52: Pay and play for non floodlit courts | R52: =IFERROR("£"&MIN(W52:Y52)&" - £"&MAX(T52:V52),"") ->  | T52: =VLOOKUP(T$48,'Case Studies'!$D$87:$K$95,4,0) ->  | U52: =VLOOKUP(U$48,'Case Studies'!$D$87:$K$95,4,0) ->  | V52: =VLOOKUP(V$48,'Case Studies'!$D$87:$K$95,4,0) ->  | W52: =VLOOKUP(W$48,'Case Studies'!$D$87:$K$95,5,0) ->  | X52: =VLOOKUP(X$48,'Case Studies'!$D$87:$K$95,5,0) ->  | Y52: =VLOOKUP(Y$48,'Case Studies'!$D$87:$K$95,5,0) -> 
B53: 9 | C53: 1 | D53: Court cost per hour (FL) | J53: Pay and play for floodlit courts. Usually £2-£3 more expensive than non floodlit | T53: =VLOOKUP(T$48,'Case Studies'!$D$87:$K$95,2,0) ->  | U53: =VLOOKUP(U$48,'Case Studies'!$D$87:$K$95,2,0) ->  | V53: =VLOOKUP(V$48,'Case Studies'!$D$87:$K$95,2,0) ->  | W53: =VLOOKUP(W$48,'Case Studies'!$D$87:$K$95,3,0) ->  | X53: =VLOOKUP(X$48,'Case Studies'!$D$87:$K$95,3,0) ->  | Y53: =VLOOKUP(Y$48,'Case Studies'!$D$87:$K$95,3,0) -> 
B54: 13 | C54: 1 | D54: Season ticket cost | J54: Annual price for a household | T54: =VLOOKUP(T$48,'Case Studies'!$D$87:$K$95,7,0) ->  | U54: =VLOOKUP(U$48,'Case Studies'!$D$87:$K$95,7,0) ->  | V54: =VLOOKUP(V$48,'Case Studies'!$D$87:$K$95,7,0) ->  | W54: =VLOOKUP(W$48,'Case Studies'!$D$87:$K$95,8,0) ->  | X54: =VLOOKUP(X$48,'Case Studies'!$D$87:$K$95,8,0) ->  | Y54: =VLOOKUP(Y$48,'Case Studies'!$D$87:$K$95,8,0) -> 
C55: 1 | D55: Court hours committed to being free | J55: % of court hours you expect to be free for use
B56: 42 | C56: 1 | D56: Expected % of court hours sold for pay and play | J56: Based on total court hours across the year | R56: ='Case Studies'!$AS$81 -> 0.07001787303
C57: 1 | D57: Expected % of households that buy a season ticket | J57: Comparative figures are based on the average for all areas of deprivation. Note that the number of households can be calculated by taking the penetration and dividing by 2.4 | R57: =+'Case Studies'!$AW$81 -> 0.2274281712
C58: 1
C59: 1
C60: 1
C61: 1 | D61: Plausable annual profit | G61: =TEXT(G81,"£#,###")&IF(G81<0," loss"," profit") -> £ profit
C62: 1
C63: 1
C64: 1 | D64: Income
C65: =IF($G$18="yes",0,1) -> 1 | D65: - Pay and play | G65: =IF(G18="yes",0,G52*G27*G56*(1-G55)) -> 0
C66: 1 | D66: - Season tickets | G66: =IF(G18="yes",0,G54*G16/2.4*G57) -> 0
C67: 1 | D67: =IF(G18="yes","- Agreement fee","- Coaching") -> - Coaching | J67: ="Enter the annual income expected if there is an agreement to hire courts to "&IF(G18="yes","an operator","a local coach") -> Enter the annual income expected if there is an agreement to hire courts to a local coach
C68: =IF(G18="no",1,0) -> 0 | J68: Click here for the coach programming tool
C69: 1 | D69: Total income | G69: =SUM(G65:G67) -> 0
C70: 1
C71: 1 | D71: Costs
C72: =IF($G$18="yes",0,1) -> 1 | D72: '- Clubspark and Payment Fees | G72: =IF(G18="yes",0,IFERROR((G65/G52)*CSfee_1+G65*CSfee_2+G66*CSfee_3,0)) -> 0 | J72: ClubSpark (booking platform) charge 1.4% + 5p per transaction, Stripe (payment platform) charge 1.4% + 20p per transaction
C73: =IF($G$18="yes",0,1) -> 1 | D73: - Gate access maintenance | G73: =IFERROR(G30*VLOOKUP(G31,Inputs!B13:C15,2,0),0) -> 0
C74: =IF($G$18="yes",0,1) -> 1 | D74: - Code lock generator (lite systems only) | G74: =IF(G18="yes",0,IF(G31=SmartAccess_Lite,Inputs!C16*G27*G56+Inputs!C16*G27*G55,0)) -> 0
C75: 1 | D75: - Court sinking fund | G75: =G26*FL_SF+G25*NFL_SF -> 0
C76: 1 | D76: - Registration fees | G76: =60*(G25+G26) -> 0
C77: =IF($G$18="yes",0,1) -> 1 | D77: - Staffing costs | J77: Enter any staff costs specific to the site / reallocated from support costs
C78: 1 | D78: - Marketing costs | J78: Enter any specific marketing costs expected to reach participation levels
C79: 1 | D79: Total costs | G79: =SUM(G72:G78) -> 0
C80: 1
C81: 1 | D81: ="Net annual "&IF(G81<0,"loss","profit") -> Net annual profit | G81: =G69-G79 -> 0
C82: 1 | D82: Net annual profit per court | G82: =IFERROR(G81/SUM(G25:G26),0) -> 0
C83: 1
C84: 1
C85: 1 | D85: Plausable cashflow | G85: ="£"&TEXT(J106,"#,###")&" by year 5" -> £ by year 5
C86: 1
C87: 1
C88: =IF($G$18="yes",0,1) -> 1 | D88: Projected cashflow forecast is calculated below assuming: 1. Starting cash position is £0 2. Pay and play and season tickets sales in year 1 are at 70% of target 3. Sales reach target stated above by year 2 4. From year 5 onwards sales increase by 1% 5. Any loan is repaid over 10 years
C89: 1
C90: 1
C91: 1
C92: 1
C93: 1
C94: 1 | D94: 6. Click here for sinking fund calculator
C95: =IF($G$18="yes",1,0) -> 0 | D95: Projected cashflow forecast is calculated below assuming: 1. Starting cash position is £0 2. Agreement fee is paid at the full rate from year 1 3. Any loan is repaid over 10 years
C96: =IF($G$18="yes",1,0) -> 0
C97: =IF($G$18="yes",1,0) -> 0
C98: =IF($G$18="yes",1,0) -> 0
C99: =IF($G$18="yes",1,0) -> 0 | D99: 4. Click here for sinking fund calculator
C100: 1
C101: 1 | F101: Year 1 | G101: Year 2 | H101: Year 3 | I101: Year 4 | J101: Year 5 | K101: Year 10 | L101: Year 20
C102: 1 | D102: Starting cash position | F102: 0 | G102: =F106 -> 0 | H102: =G106 -> 0 | I102: 0 | J102: 0 | K102: =N117 -> 0 | L102: =X117 -> 0
C103: 1 | D103: Projected profit / (loss) | F103: =F113-F114 -> 0 | G103: =G113-G114 -> 0 | H103: =H113-H114 -> 0 | I103: =I113-I114 -> 0 | J103: =J113-J114 -> 0 | K103: =O113-O114 -> 0 | L103: =S113-S114 -> 0
C104: 1 | D104: LTA loan repayments | F104: =IF($G$17="no",0,-$G$44/10) -> 0 | G104: 0 | H104: 0 | I104: 0 | J104: 0 | K104: 0 | L104: 0
C105: 1 | D105: Net annual cashflow | F105: =SUM(F103:F104) -> 0 | G105: =SUM(G103:G104) -> 0 | H105: 0 | I105: 0 | J105: 0 | K105: 0 | L105: 0
C106: 1 | D106: Closing cash position after sinking fund | F106: =F105+F102 -> 0 | G106: =G105+G102 -> 0 | H106: 0 | I106: 0 | J106: 0 | K106: 0 | L106: 0
C107: 1
C108: 1
C109: 1
C110: 1
C111: 0 | F111: 1 | G111: 2 | H111: 3 | I111: 4 | J111: 5 | K111: 6 | L111: 7 | M111: 8 | N111: 9 | O111: 10 | P111: 11 | Q111: 12 | R111: 13 | S111: 14 | T111: 15 | U111: 16 | V111: 17 | W111: 18 | X111: 19 | Y111: 20
C112: 0 | D112: P&P % court hours | F112: =G112*0.7 -> 0 | G112: =G56 -> 0 | H112: =G112 -> 0 | I112: =H112 -> 0 | J112: =+I112+1% -> 0.01 | K112: 0.02 | L112: 0.03 | M112: 0.04 | N112: 0.05 | O112: 0.06 | P112: 0.07 | Q112: 0.08 | R112: 0.09 | S112: =+R112+1% -> 0.1 | T112: 0.11 | U112: 0.12 | V112: 0.13 | W112: 0.14 | X112: 0.15 | Y112: 0.16
C113: 0 | D113: Sales | F113: =IFERROR($G$65/$G$56*F112,0)+SUM($G$66)*70%+$G$67 -> 0 | G113: =IFERROR($G$65/$G$56*G112,0)+SUM($G$66)+$G$67 -> 0 | H113: =IFERROR($G$65/$G$56*H112,0)+SUM($G$66)+$G$67 -> 0 | I113: 0 | J113: 0 | K113: 0 | L113: 0 | M113: 0 | N113: 0 | O113: 0 | P113: 0 | Q113: 0 | R113: 0 | S113: 0 | T113: 0 | U113: 0 | V113: 0 | W113: 0 | X113: 0 | Y113: 0
C114: 0 | D114: Costs | F114: =IFERROR(SUM($G$72)/$G$56*F112,0)+SUM($G$73:$I$78) -> 0 | G114: 0 | H114: 0 | I114: 0 | J114: 0 | K114: 0 | L114: 0 | M114: 0 | N114: 0 | O114: 0 | P114: 0 | Q114: 0 | R114: 0 | S114: 0 | T114: 0 | U114: 0 | V114: 0 | W114: 0 | X114: 0 | Y114: 0
C115: 0 | D115: Loan repayment | F115: =IF($G$17="no",0,$G$44/10) -> 0 | G115: 0 | H115: 0 | I115: 0 | J115: 0 | K115: 0 | L115: 0 | M115: 0 | N115: 0 | O115: 0
C116: 0 | D116: net cash | F116: =F113-F114-F115 -> 0 | G116: 0 | H116: 0 | I116: 0 | J116: 0 | K116: 0 | L116: 0 | M116: 0 | N116: 0 | O116: 0 | P116: 0 | Q116: 0 | R116: 0 | S116: 0 | T116: 0 | U116: 0 | V116: 0 | W116: 0 | X116: 0 | Y116: 0
C117: 0 | D117: closing cash | F117: =F116 -> 0 | G117: =F117+G116 -> 0 | H117: 0 | I117: 0 | J117: 0 | K117: 0 | L117: 0 | M117: 0 | N117: 0 | O117: 0 | P117: 0 | Q117: 0 | R117: 0 | S117: =R117+S116 -> 0 | T117: 0 | U117: 0 | V117: 0 | W117: 0 | X117: 0 | Y117: 0
C118: 0
C119: 1
C120: 1
C121: 1
C122: 1
C123: 1

Sheet Venue 9
E3: ="LTA Local Authority Parks Toolkit"&IF(ISBLANK(G13),""," - Site "&G13) -> LTA Local Authority Parks Toolkit
D6: It is recommended that this form is completed with the assistance of a PDP, in order to produce the most accurate forecast. As a guide there are case studies online that will help with operating models and court rates.
D9: Site Background
C10: 1
C11: 1
C12: 1 | D12: Local Authority | G12: ='Venue 1'!G12 -> 0
C13: 1 | D13: Site Name
C14: 1 | D14: Postcode
C15: 1 | D15: Deprivation Index | J15: Use this tool to determine the index: | M15: http://imd-by-postcode.opendatacommunities.org/
C16: 1 | D16: Penetration | G16: 700 | J16: Pre-set to 700, will be updated by your local Participation Development Partner
C17: 1 | D17: Court upgrade works required?
C18: 1 | D18: Venue operations outsourced? | J18: If you plan to lease out all operations (court bookings, season tickets & coaching) please select "yes" here
C19: 1
C20: 1
C21: 1 | D21: Court Information
C22: 1
C23: 1
C24: 1 | D24: Courts at the venue
C25: 1 | D25: Number of non floodlit courts | J25: Total at the end of the project
C26: 1 | D26: Number of floodlit courts | J26: Total at the end of the project
C27: 1 | D27: Total available court hours | G27: =G26*FL_CH+G25*NFL_CH -> 0
C28: 1
C29: 1 | D29: Gates required
C30: 1 | D30: Number of gates required | J30: All gate access systems must be the same at each venue
C31: 1 | D31: Type of gate system required | J31: See the LTA website for details of the different gates
D32: If solar chosen grant funded by LTA?
C33: =IF(G17="yes",1,0) -> 0 | J33: https://www.lta.org.uk/globalassets/venue/ready-to-rally-brochure---parks.pdf
C34: =C33 -> 0 | D34: Court upgrade works
C35: 0 | D35: Do you know the exact cost of renovation?
C36: =IF(G35="yes",1,0) -> 0 | D36: Expected cost of project
C37: =IF(G35="yes",0,IF(G17="yes",1,0)) -> 0 | D37: Level of court renovation required
C38: 0 | D38: Number of courts to be renovated
C39: 0 | D39: Cost of fencing / other costs | J39: Replacement of 1 x 3m chain link fence panel = c£250
C40: =C37 -> 0 | D40: New LED floodlights | J40: Number of courts needing New LED floodlight installation (£15,000/court)
C41: =C40 -> 0 | D41: Conversion to LED floodlights | J41: Number of courts needing conversion to LED floodlights (£10,000/court)
C42: 0 | D42: Expected cost of project | G42: =IFERROR(VLOOKUP(G37,Inputs!$B$22:$C$27,2,0)*G38,0)+'Venue 9'!G40*Inputs!C29+'Venue 9'!G41*Inputs!C30+G39 -> 0 | J42: Calculated based on inputs above - note this is an estimate
C43: =C34 -> 0 | D43: Capital funding available | J43: For example from Sport England, local charities, own reserves
C44: =C43 -> 0 | D44: Loan required from LTA* | G44: =IF(ISBLANK(G42),"",IF(G35="yes",G36-G43,G42-G43)) -> 0
C45: =C43 -> 0 | D45: *There are specific conditions required in order to apply for LTA loan funding. Please speak to your PDP or visit our website for the type of investments we support (see link below)
C46: =C44 -> 0 | D46: https://www.lta.org.uk/workforce-venues/tennis-venue-support/tennis-and-padel-facility-funding-and-advice/quick-access-loan-scheme/
C47: 0 | T47: Max | U47: Max | V47: Max | W47: Min | X47: Min | Y47: Min
C48: 0 | T48: =IF($G$15>0,IF(G15<3,2,IF(G15=10,8,$G$15-1)),"") ->  | U48: =IF($G$15>0,T48+1,"") ->  | V48: =IF($G$15>0,U48+1,"") ->  | W48: =T48 -> 
C49: =IF($G$18="yes",0,1) -> 1 | R49: Comparison
C50: =C49 -> 1 | R50: ="Range for IMD levels "&T48&" - "&V48 -> Range for IMD levels -
C51: 1 | D51: Income assumptions
B52: 10 | C52: 1 | D52: Court cost per hour (non FL) | J52: Pay and play for non floodlit courts | R52: =IFERROR("£"&MIN(W52:Y52)&" - £"&MAX(T52:V52),"") ->  | T52: =VLOOKUP(T$48,'Case Studies'!$D$87:$K$95,4,0) ->  | U52: =VLOOKUP(U$48,'Case Studies'!$D$87:$K$95,4,0) ->  | V52: =VLOOKUP(V$48,'Case Studies'!$D$87:$K$95,4,0) ->  | W52: =VLOOKUP(W$48,'Case Studies'!$D$87:$K$95,5,0) ->  | X52: =VLOOKUP(X$48,'Case Studies'!$D$87:$K$95,5,0) ->  | Y52: =VLOOKUP(Y$48,'Case Studies'!$D$87:$K$95,5,0) -> 
B53: 9 | C53: 1 | D53: Court cost per hour (FL) | J53: Pay and play for floodlit courts. Usually £2-£3 more expensive than non floodlit | T53: =VLOOKUP(T$48,'Case Studies'!$D$87:$K$95,2,0) ->  | U53: =VLOOKUP(U$48,'Case Studies'!$D$87:$K$95,2,0) ->  | V53: =VLOOKUP(V$48,'Case Studies'!$D$87:$K$95,2,0) ->  | W53: =VLOOKUP(W$48,'Case Studies'!$D$87:$K$95,3,0) ->  | X53: =VLOOKUP(X$48,'Case Studies'!$D$87:$K$95,3,0) ->  | Y53: =VLOOKUP(Y$48,'Case Studies'!$D$87:$K$95,3,0) -> 
B54: 13 | C54: 1 | D54: Season ticket cost | J54: Annual price for a household | T54: =VLOOKUP(T$48,'Case Studies'!$D$87:$K$95,7,0) ->  | U54: =VLOOKUP(U$48,'Case Studies'!$D$87:$K$95,7,0) ->  | V54: =VLOOKUP(V$48,'Case Studies'!$D$87:$K$95,7,0) ->  | W54: =VLOOKUP(W$48,'Case Studies'!$D$87:$K$95,8,0) ->  | X54: =VLOOKUP(X$48,'Case Studies'!$D$87:$K$95,8,0) ->  | Y54: =VLOOKUP(Y$48,'Case Studies'!$D$87:$K$95,8,0) -> 
C55: 1 | D55: Court hours committed to being free | J55: % of court hours you expect to be free for use
B56: 42 | C56: 1 | D56: Expected % of court hours sold for pay and play | J56: Based on total court hours across the year | R56: ='Case Studies'!$AS$81 -> 0.07001787303
C57: 1 | D57: Expected % of households that buy a season ticket | J57: Comparative figures are based on the average for all areas of deprivation. Note that the number of households can be calculated by taking the penetration and dividing by 2.4 | R57: =+'Case Studies'!$AW$81 -> 0.2274281712
C58: 1
C59: 1
C60: 1
C61: 1 | D61: Plausable annual profit | G61: =TEXT(G81,"£#,###")&IF(G81<0," loss"," profit") -> £ profit
C62: 1
C63: 1
C64: 1 | D64: Income
C65: =IF($G$18="yes",0,1) -> 1 | D65: - Pay and play | G65: =IF(G18="yes",0,G52*G27*G56*(1-G55)) -> 0
C66: 1 | D66: - Season tickets | G66: =IF(G18="yes",0,G54*G16/2.4*G57) -> 0
C67: 1 | D67: =IF(G18="yes","- Agreement fee","- Coaching") -> - Coaching | J67: ="Enter the annual income expected if there is an agreement to hire courts to "&IF(G18="yes","an operator","a local coach") -> Enter the annual income expected if there is an agreement to hire courts to a local coach
C68: =IF(G18="no",1,0) -> 0 | J68: Click here for the coach programming tool
C69: 1 | D69: Total income | G69: =SUM(G65:G67) -> 0
C70: 1
C71: 1 | D71: Costs
C72: =IF($G$18="yes",0,1) -> 1 | D72: '- Clubspark and Payment Fees | G72: =IF(G18="yes",0,IFERROR((G65/G52)*CSfee_1+G65*CSfee_2+G66*CSfee_3,0)) -> 0 | J72: ClubSpark (booking platform) charge 1.4% + 5p per transaction, Stripe (payment platform) charge 1.4% + 20p per transaction
C73: =IF($G$18="yes",0,1) -> 1 | D73: - Gate access maintenance | G73: =IFERROR(G30*VLOOKUP(G31,Inputs!B13:C15,2,0),0) -> 0
C74: =IF($G$18="yes",0,1) -> 1 | D74: - Code lock generator (lite systems only) | G74: =IF(G18="yes",0,IF(G31=SmartAccess_Lite,Inputs!C16*G27*G56+Inputs!C16*G27*G55,0)) -> 0
C75: 1 | D75: - Court sinking fund | G75: =G26*FL_SF+G25*NFL_SF -> 0
C76: 1 | D76: - Registration fees | G76: =60*(G25+G26) -> 0
C77: =IF($G$18="yes",0,1) -> 1 | D77: - Staffing costs | J77: Enter any staff costs specific to the site / reallocated from support costs
C78: 1 | D78: - Marketing costs | J78: Enter any specific marketing costs expected to reach participation levels
C79: 1 | D79: Total costs | G79: =SUM(G72:G78) -> 0
C80: 1
C81: 1 | D81: ="Net annual "&IF(G81<0,"loss","profit") -> Net annual profit | G81: =G69-G79 -> 0
C82: 1 | D82: Net annual profit per court | G82: =IFERROR(G81/SUM(G25:G26),0) -> 0
C83: 1
C84: 1
C85: 1 | D85: Plausable cashflow | G85: ="£"&TEXT(J106,"#,###")&" by year 5" -> £ by year 5
C86: 1
C87: 1
C88: =IF($G$18="yes",0,1) -> 1 | D88: Projected cashflow forecast is calculated below assuming: 1. Starting cash position is £0 2. Pay and play and season tickets sales in year 1 are at 70% of target 3. Sales reach target stated above by year 2 4. From year 5 onwards sales increase by 1% 5. Any loan is repaid over 10 years
C89: 1
C90: 1
C91: 1
C92: 1
C93: 1
C94: 1 | D94: 6. Click here for sinking fund calculator
C95: =IF($G$18="yes",1,0) -> 0 | D95: Projected cashflow forecast is calculated below assuming: 1. Starting cash position is £0 2. Agreement fee is paid at the full rate from year 1 3. Any loan is repaid over 10 years
C96: =IF($G$18="yes",1,0) -> 0
C97: =IF($G$18="yes",1,0) -> 0
C98: =IF($G$18="yes",1,0) -> 0
C99: =IF($G$18="yes",1,0) -> 0 | D99: 4. Click here for sinking fund calculator
C100: 1
C101: 1 | F101: Year 1 | G101: Year 2 | H101: Year 3 | I101: Year 4 | J101: Year 5 | K101: Year 10 | L101: Year 20
C102: 1 | D102: Starting cash position | F102: 0 | G102: =F106 -> 0 | H102: =G106 -> 0 | I102: 0 | J102: 0 | K102: =N117 -> 0 | L102: =X117 -> 0
C103: 1 | D103: Projected profit / (loss) | F103: =F113-F114 -> 0 | G103: =G113-G114 -> 0 | H103: =H113-H114 -> 0 | I103: =I113-I114 -> 0 | J103: =J113-J114 -> 0 | K103: =O113-O114 -> 0 | L103: =S113-S114 -> 0
C104: 1 | D104: LTA loan repayments | F104: =IF($G$17="no",0,-$G$44/10) -> 0 | G104: 0 | H104: 0 | I104: 0 | J104: 0 | K104: 0 | L104: 0
C105: 1 | D105: Net annual cashflow | F105: =SUM(F103:F104) -> 0 | G105: =SUM(G103:G104) -> 0 | H105: 0 | I105: 0 | J105: 0 | K105: 0 | L105: 0
C106: 1 | D106: Closing cash position after sinking fund | F106: =F105+F102 -> 0 | G106: =G105+G102 -> 0 | H106: 0 | I106: 0 | J106: 0 | K106: 0 | L106: 0
C107: 1
C108: 1
C109: 1
C110: 1
C111: 0 | F111: 1 | G111: 2 | H111: 3 | I111: 4 | J111: 5 | K111: 6 | L111: 7 | M111: 8 | N111: 9 | O111: 10 | P111: 11 | Q111: 12 | R111: 13 | S111: 14 | T111: 15 | U111: 16 | V111: 17 | W111: 18 | X111: 19 | Y111: 20
C112: 0 | D112: P&P % court hours | F112: =G112*0.7 -> 0 | G112: =G56 -> 0 | H112: =G112 -> 0 | I112: =H112 -> 0 | J112: =+I112+1% -> 0.01 | K112: 0.02 | L112: 0.03 | M112: 0.04 | N112: 0.05 | O112: 0.06 | P112: 0.07 | Q112: 0.08 | R112: 0.09 | S112: =+R112+1% -> 0.1 | T112: 0.11 | U112: 0.12 | V112: 0.13 | W112: 0.14 | X112: 0.15 | Y112: 0.16
C113: 0 | D113: Sales | F113: =IFERROR($G$65/$G$56*F112,0)+SUM($G$66)*70%+$G$67 -> 0 | G113: =IFERROR($G$65/$G$56*G112,0)+SUM($G$66)+$G$67 -> 0 | H113: =IFERROR($G$65/$G$56*H112,0)+SUM($G$66)+$G$67 -> 0 | I113: 0 | J113: 0 | K113: 0 | L113: 0 | M113: 0 | N113: 0 | O113: 0 | P113: 0 | Q113: 0 | R113: 0 | S113: 0 | T113: 0 | U113: 0 | V113: 0 | W113: 0 | X113: 0 | Y113: 0
C114: 0 | D114: Costs | F114: =IFERROR(SUM($G$72)/$G$56*F112,0)+SUM($G$73:$I$78) -> 0 | G114: 0 | H114: 0 | I114: 0 | J114: 0 | K114: 0 | L114: 0 | M114: 0 | N114: 0 | O114: 0 | P114: 0 | Q114: 0 | R114: 0 | S114: 0 | T114: 0 | U114: 0 | V114: 0 | W114: 0 | X114: 0 | Y114: 0
C115: 0 | D115: Loan repayment | F115: =IF($G$17="no",0,$G$44/10) -> 0 | G115: 0 | H115: 0 | I115: 0 | J115: 0 | K115: 0 | L115: 0 | M115: 0 | N115: 0 | O115: 0
C116: 0 | D116: net cash | F116: =F113-F114-F115 -> 0 | G116: 0 | H116: 0 | I116: 0 | J116: 0 | K116: 0 | L116: 0 | M116: 0 | N116: 0 | O116: 0 | P116: 0 | Q116: 0 | R116: 0 | S116: 0 | T116: 0 | U116: 0 | V116: 0 | W116: 0 | X116: 0 | Y116: 0
C117: 0 | D117: closing cash | F117: =F116 -> 0 | G117: =F117+G116 -> 0 | H117: 0 | I117: 0 | J117: 0 | K117: 0 | L117: 0 | M117: 0 | N117: 0 | O117: 0 | P117: 0 | Q117: 0 | R117: 0 | S117: =R117+S116 -> 0 | T117: 0 | U117: 0 | V117: 0 | W117: 0 | X117: 0 | Y117: 0
C118: 0
C119: 1
C120: 1
C121: 1
C122: 1
C123: 1

Sheet Venue 10
E3: ="LTA Local Authority Parks Toolkit"&IF(ISBLANK(G13),""," - Site "&G13) -> LTA Local Authority Parks Toolkit
D6: It is recommended that this form is completed with the assistance of a PDP, in order to produce the most accurate forecast. As a guide there are case studies online that will help with operating models and court rates.
D9: Site Background
C10: 1
C11: 1
C12: 1 | D12: Local Authority | G12: ='Venue 1'!G12 -> 0
C13: 1 | D13: Site Name
C14: 1 | D14: Postcode
C15: 1 | D15: Deprivation Index | J15: Use this tool to determine the index: | M15: http://imd-by-postcode.opendatacommunities.org/
C16: 1 | D16: Penetration | G16: 700 | J16: Pre-set to 700, will be updated by your local Participation Development Partner
C17: 1 | D17: Court upgrade works required?
C18: 1 | D18: Venue operations outsourced? | J18: If you plan to lease out all operations (court bookings, season tickets & coaching) please select "yes" here
C19: 1
C20: 1
C21: 1 | D21: Court Information
C22: 1
C23: 1
C24: 1 | D24: Courts at the venue
C25: 1 | D25: Number of non floodlit courts | J25: Total at the end of the project
C26: 1 | D26: Number of floodlit courts | J26: Total at the end of the project
C27: 1 | D27: Total available court hours | G27: =G26*FL_CH+G25*NFL_CH -> 0
C28: 1
C29: 1 | D29: Gates required
C30: 1 | D30: Number of gates required | J30: All gate access systems must be the same at each venue
C31: 1 | D31: Type of gate system required | J31: See the LTA website for details of the different gates
D32: If solar chosen grant funded by LTA?
C33: =IF(G17="yes",1,0) -> 0 | J33: https://www.lta.org.uk/globalassets/venue/ready-to-rally-brochure---parks.pdf
C34: =C33 -> 0 | D34: Court upgrade works
C35: 0 | D35: Do you know the exact cost of renovation?
C36: =IF(G35="yes",1,0) -> 0 | D36: Expected cost of project
C37: =IF(G35="yes",0,IF(G17="yes",1,0)) -> 0 | D37: Level of court renovation required
C38: 0 | D38: Number of courts to be renovated
C39: 0 | D39: Cost of fencing / other costs | J39: Replacement of 1 x 3m chain link fence panel = c£250
C40: =C37 -> 0 | D40: New LED floodlights | J40: Number of courts needing New LED floodlight installation (£15,000/court)
C41: =C40 -> 0 | D41: Conversion to LED floodlights | J41: Number of courts needing conversion to LED floodlights (£10,000/court)
C42: 0 | D42: Expected cost of project | G42: =IFERROR(VLOOKUP(G37,Inputs!$B$22:$C$27,2,0)*G38,0)+'Venue 10'!G40*Inputs!C29+'Venue 10'!G41*Inputs!C30+G39 -> 0 | J42: Calculated based on inputs above - note this is an estimate
C43: =C34 -> 0 | D43: Capital funding available | J43: For example from Sport England, local charities, own reserves
C44: =C43 -> 0 | D44: Loan required from LTA* | G44: =IF(ISBLANK(G42),"",IF(G35="yes",G36-G43,G42-G43)) -> 0
C45: =C43 -> 0 | D45: *There are specific conditions required in order to apply for LTA loan funding. Please speak to your PDP or visit our website for the type of investments we support (see link below)
C46: =C44 -> 0 | D46: https://www.lta.org.uk/workforce-venues/tennis-venue-support/tennis-and-padel-facility-funding-and-advice/quick-access-loan-scheme/
C47: 0 | T47: Max | U47: Max | V47: Max | W47: Min | X47: Min | Y47: Min
C48: 0 | T48: =IF($G$15>0,IF(G15<3,2,IF(G15=10,8,$G$15-1)),"") ->  | U48: =IF($G$15>0,T48+1,"") ->  | V48: =IF($G$15>0,U48+1,"") ->  | W48: =T48 -> 
C49: =IF($G$18="yes",0,1) -> 1 | R49: Comparison
C50: =C49 -> 1 | R50: ="Range for IMD levels "&T48&" - "&V48 -> Range for IMD levels -
C51: 1 | D51: Income assumptions
B52: 10 | C52: 1 | D52: Court cost per hour (non FL) | J52: Pay and play for non floodlit courts | R52: =IFERROR("£"&MIN(W52:Y52)&" - £"&MAX(T52:V52),"") ->  | T52: =VLOOKUP(T$48,'Case Studies'!$D$87:$K$95,4,0) ->  | U52: =VLOOKUP(U$48,'Case Studies'!$D$87:$K$95,4,0) ->  | V52: =VLOOKUP(V$48,'Case Studies'!$D$87:$K$95,4,0) ->  | W52: =VLOOKUP(W$48,'Case Studies'!$D$87:$K$95,5,0) ->  | X52: =VLOOKUP(X$48,'Case Studies'!$D$87:$K$95,5,0) ->  | Y52: =VLOOKUP(Y$48,'Case Studies'!$D$87:$K$95,5,0) -> 
B53: 9 | C53: 1 | D53: Court cost per hour (FL) | J53: Pay and play for floodlit courts. Usually £2-£3 more expensive than non floodlit | T53: =VLOOKUP(T$48,'Case Studies'!$D$87:$K$95,2,0) ->  | U53: =VLOOKUP(U$48,'Case Studies'!$D$87:$K$95,2,0) ->  | V53: =VLOOKUP(V$48,'Case Studies'!$D$87:$K$95,2,0) ->  | W53: =VLOOKUP(W$48,'Case Studies'!$D$87:$K$95,3,0) ->  | X53: =VLOOKUP(X$48,'Case Studies'!$D$87:$K$95,3,0) ->  | Y53: =VLOOKUP(Y$48,'Case Studies'!$D$87:$K$95,3,0) -> 
B54: 13 | C54: 1 | D54: Season ticket cost | J54: Annual price for a household | T54: =VLOOKUP(T$48,'Case Studies'!$D$87:$K$95,7,0) ->  | U54: =VLOOKUP(U$48,'Case Studies'!$D$87:$K$95,7,0) ->  | V54: =VLOOKUP(V$48,'Case Studies'!$D$87:$K$95,7,0) ->  | W54: =VLOOKUP(W$48,'Case Studies'!$D$87:$K$95,8,0) ->  | X54: =VLOOKUP(X$48,'Case Studies'!$D$87:$K$95,8,0) ->  | Y54: =VLOOKUP(Y$48,'Case Studies'!$D$87:$K$95,8,0) -> 
C55: 1 | D55: Court hours committed to being free | J55: % of court hours you expect to be free for use
B56: 42 | C56: 1 | D56: Expected % of court hours sold for pay and play | J56: Based on total court hours across the year | R56: ='Case Studies'!$AS$81 -> 0.07001787303
C57: 1 | D57: Expected % of households that buy a season ticket | J57: Comparative figures are based on the average for all areas of deprivation. Note that the number of households can be calculated by taking the penetration and dividing by 2.4 | R57: =+'Case Studies'!$AW$81 -> 0.2274281712
C58: 1
C59: 1
C60: 1
C61: 1 | D61: Plausable annual profit | G61: =TEXT(G81,"£#,###")&IF(G81<0," loss"," profit") -> £ profit
C62: 1
C63: 1
C64: 1 | D64: Income
C65: =IF($G$18="yes",0,1) -> 1 | D65: - Pay and play | G65: =IF(G18="yes",0,G52*G27*G56*(1-G55)) -> 0
C66: 1 | D66: - Season tickets | G66: =IF(G18="yes",0,G54*G16/2.4*G57) -> 0
C67: 1 | D67: =IF(G18="yes","- Agreement fee","- Coaching") -> - Coaching | J67: ="Enter the annual income expected if there is an agreement to hire courts to "&IF(G18="yes","an operator","a local coach") -> Enter the annual income expected if there is an agreement to hire courts to a local coach
C68: =IF(G18="no",1,0) -> 0 | J68: Click here for the coach programming tool
C69: 1 | D69: Total income | G69: =SUM(G65:G67) -> 0
C70: 1
C71: 1 | D71: Costs
C72: =IF($G$18="yes",0,1) -> 1 | D72: '- Clubspark and Payment Fees | G72: =IF(G18="yes",0,IFERROR((G65/G52)*CSfee_1+G65*CSfee_2+G66*CSfee_3,0)) -> 0 | J72: ClubSpark (booking platform) charge 1.4% + 5p per transaction, Stripe (payment platform) charge 1.4% + 20p per transaction
C73: =IF($G$18="yes",0,1) -> 1 | D73: - Gate access maintenance | G73: =IFERROR(G30*VLOOKUP(G31,Inputs!B13:C15,2,0),0) -> 0
C74: =IF($G$18="yes",0,1) -> 1 | D74: - Code lock generator (lite systems only) | G74: =IF(G18="yes",0,IF(G31=SmartAccess_Lite,Inputs!C16*G27*G56+Inputs!C16*G27*G55,0)) -> 0
C75: 1 | D75: - Court sinking fund | G75: =G26*FL_SF+G25*NFL_SF -> 0
C76: 1 | D76: - Registration fees | G76: =60*(G25+G26) -> 0
C77: =IF($G$18="yes",0,1) -> 1 | D77: - Staffing costs | J77: Enter any staff costs specific to the site / reallocated from support costs
C78: 1 | D78: - Marketing costs | J78: Enter any specific marketing costs expected to reach participation levels
C79: 1 | D79: Total costs | G79: =SUM(G72:G78) -> 0
C80: 1
C81: 1 | D81: ="Net annual "&IF(G81<0,"loss","profit") -> Net annual profit | G81: =G69-G79 -> 0
C82: 1 | D82: Net annual profit per court | G82: =IFERROR(G81/SUM(G25:G26),0) -> 0
C83: 1
C84: 1
C85: 1 | D85: Plausable cashflow | G85: ="£"&TEXT(J106,"#,###")&" by year 5" -> £ by year 5
C86: 1
C87: 1
C88: =IF($G$18="yes",0,1) -> 1 | D88: Projected cashflow forecast is calculated below assuming: 1. Starting cash position is £0 2. Pay and play and season tickets sales in year 1 are at 70% of target 3. Sales reach target stated above by year 2 4. From year 5 onwards sales increase by 1% 5. Any loan is repaid over 10 years
C89: 1
C90: 1
C91: 1
C92: 1
C93: 1
C94: 1 | D94: 6. Click here for sinking fund calculator
C95: =IF($G$18="yes",1,0) -> 0 | D95: Projected cashflow forecast is calculated below assuming: 1. Starting cash position is £0 2. Agreement fee is paid at the full rate from year 1 3. Any loan is repaid over 10 years
C96: =IF($G$18="yes",1,0) -> 0
C97: =IF($G$18="yes",1,0) -> 0
C98: =IF($G$18="yes",1,0) -> 0
C99: =IF($G$18="yes",1,0) -> 0 | D99: 4. Click here for sinking fund calculator
C100: 1
C101: 1 | F101: Year 1 | G101: Year 2 | H101: Year 3 | I101: Year 4 | J101: Year 5 | K101: Year 10 | L101: Year 20
C102: 1 | D102: Starting cash position | F102: 0 | G102: =F106 -> 0 | H102: =G106 -> 0 | I102: 0 | J102: 0 | K102: =N117 -> 0 | L102: =X117 -> 0
C103: 1 | D103: Projected profit / (loss) | F103: =F113-F114 -> 0 | G103: =G113-G114 -> 0 | H103: =H113-H114 -> 0 | I103: =I113-I114 -> 0 | J103: =J113-J114 -> 0 | K103: =O113-O114 -> 0 | L103: =S113-S114 -> 0
C104: 1 | D104: LTA loan repayments | F104: =IF($G$17="no",0,-$G$44/10) -> 0 | G104: 0 | H104: 0 | I104: 0 | J104: 0 | K104: 0 | L104: 0
C105: 1 | D105: Net annual cashflow | F105: =SUM(F103:F104) -> 0 | G105: =SUM(G103:G104) -> 0 | H105: 0 | I105: 0 | J105: 0 | K105: 0 | L105: 0
C106: 1 | D106: Closing cash position after sinking fund | F106: =F105+F102 -> 0 | G106: =G105+G102 -> 0 | H106: 0 | I106: 0 | J106: 0 | K106: 0 | L106: 0
C107: 1
C108: 1
C109: 1
C110: 1
C111: 0 | F111: 1 | G111: 2 | H111: 3 | I111: 4 | J111: 5 | K111: 6 | L111: 7 | M111: 8 | N111: 9 | O111: 10 | P111: 11 | Q111: 12 | R111: 13 | S111: 14 | T111: 15 | U111: 16 | V111: 17 | W111: 18 | X111: 19 | Y111: 20
C112: 0 | D112: P&P % court hours | F112: =G112*0.7 -> 0 | G112: =G56 -> 0 | H112: =G112 -> 0 | I112: =H112 -> 0 | J112: =+I112+1% -> 0.01 | K112: 0.02 | L112: 0.03 | M112: 0.04 | N112: 0.05 | O112: 0.06 | P112: 0.07 | Q112: 0.08 | R112: 0.09 | S112: =+R112+1% -> 0.1 | T112: 0.11 | U112: 0.12 | V112: 0.13 | W112: 0.14 | X112: 0.15 | Y112: 0.16
C113: 0 | D113: Sales | F113: =IFERROR($G$65/$G$56*F112,0)+SUM($G$66)*70%+$G$67 -> 0 | G113: =IFERROR($G$65/$G$56*G112,0)+SUM($G$66)+$G$67 -> 0 | H113: =IFERROR($G$65/$G$56*H112,0)+SUM($G$66)+$G$67 -> 0 | I113: 0 | J113: 0 | K113: 0 | L113: 0 | M113: 0 | N113: 0 | O113: 0 | P113: 0 | Q113: 0 | R113: 0 | S113: 0 | T113: 0 | U113: 0 | V113: 0 | W113: 0 | X113: 0 | Y113: 0
C114: 0 | D114: Costs | F114: =IFERROR(SUM($G$72)/$G$56*F112,0)+SUM($G$73:$I$78) -> 0 | G114: 0 | H114: 0 | I114: 0 | J114: 0 | K114: 0 | L114: 0 | M114: 0 | N114: 0 | O114: 0 | P114: 0 | Q114: 0 | R114: 0 | S114: 0 | T114: 0 | U114: 0 | V114: 0 | W114: 0 | X114: 0 | Y114: 0
C115: 0 | D115: Loan repayment | F115: =IF($G$17="no",0,$G$44/10) -> 0 | G115: 0 | H115: 0 | I115: 0 | J115: 0 | K115: 0 | L115: 0 | M115: 0 | N115: 0 | O115: 0
C116: 0 | D116: net cash | F116: =F113-F114-F115 -> 0 | G116: 0 | H116: 0 | I116: 0 | J116: 0 | K116: 0 | L116: 0 | M116: 0 | N116: 0 | O116: 0 | P116: 0 | Q116: 0 | R116: 0 | S116: 0 | T116: 0 | U116: 0 | V116: 0 | W116: 0 | X116: 0 | Y116: 0
C117: 0 | D117: closing cash | F117: =F116 -> 0 | G117: =F117+G116 -> 0 | H117: 0 | I117: 0 | J117: 0 | K117: 0 | L117: 0 | M117: 0 | N117: 0 | O117: 0 | P117: 0 | Q117: 0 | R117: 0 | S117: =R117+S116 -> 0 | T117: 0 | U117: 0 | V117: 0 | W117: 0 | X117: 0 | Y117: 0
C118: 0
C119: 1
C120: 1
C121: 1
C122: 1
C123: 1

Sheet Venue 11
E3: ="LTA Local Authority Parks Toolkit"&IF(ISBLANK(G13),""," - Site "&G13) -> LTA Local Authority Parks Toolkit
D6: It is recommended that this form is completed with the assistance of a PDP, in order to produce the most accurate forecast. As a guide there are case studies online that will help with operating models and court rates.
D9: Site Background
C10: 1
C11: 1
C12: 1 | D12: Local Authority | G12: ='Venue 1'!G12 -> 0
C13: 1 | D13: Site Name
C14: 1 | D14: Postcode
C15: 1 | D15: Deprivation Index | J15: Use this tool to determine the index: | M15: http://imd-by-postcode.opendatacommunities.org/
C16: 1 | D16: Penetration | G16: 700 | J16: Pre-set to 700, will be updated by your local Participation Development Partner
C17: 1 | D17: Court upgrade works required?
C18: 1 | D18: Venue operations outsourced? | J18: If you plan to lease out all operations (court bookings, season tickets & coaching) please select "yes" here
C19: 1
C20: 1
C21: 1 | D21: Court Information
C22: 1
C23: 1
C24: 1 | D24: Courts at the venue
C25: 1 | D25: Number of non floodlit courts | J25: Total at the end of the project
C26: 1 | D26: Number of floodlit courts | J26: Total at the end of the project
C27: 1 | D27: Total available court hours | G27: =G26*FL_CH+G25*NFL_CH -> 0
C28: 1
C29: 1 | D29: Gates required
C30: 1 | D30: Number of gates required | J30: All gate access systems must be the same at each venue
C31: 1 | D31: Type of gate system required | J31: See the LTA website for details of the different gates
D32: If solar chosen grant funded by LTA?
C33: =IF(G17="yes",1,0) -> 0 | J33: https://www.lta.org.uk/globalassets/venue/ready-to-rally-brochure---parks.pdf
C34: =C33 -> 0 | D34: Court upgrade works
C35: 0 | D35: Do you know the exact cost of renovation?
C36: =IF(G35="yes",1,0) -> 0 | D36: Expected cost of project
C37: =IF(G35="yes",0,IF(G17="yes",1,0)) -> 0 | D37: Level of court renovation required
C38: 0 | D38: Number of courts to be renovated
C39: 0 | D39: Cost of fencing / other costs | J39: Replacement of 1 x 3m chain link fence panel = c£250
C40: =C37 -> 0 | D40: New LED floodlights | J40: Number of courts needing New LED floodlight installation (£15,000/court)
C41: =C40 -> 0 | D41: Conversion to LED floodlights | J41: Number of courts needing conversion to LED floodlights (£10,000/court)
C42: 0 | D42: Expected cost of project | G42: =IFERROR(VLOOKUP(G37,Inputs!$B$22:$C$27,2,0)*G38,0)+'Venue 11'!G40*Inputs!C29+'Venue 11'!G41*Inputs!C30+G39 -> 0 | J42: Calculated based on inputs above - note this is an estimate
C43: =C34 -> 0 | D43: Capital funding available | J43: For example from Sport England, local charities, own reserves
C44: =C43 -> 0 | D44: Loan required from LTA* | G44: =IF(ISBLANK(G42),"",IF(G35="yes",G36-G43,G42-G43)) -> 0
C45: =C43 -> 0 | D45: *There are specific conditions required in order to apply for LTA loan funding. Please speak to your PDP or visit our website for the type of investments we support (see link below)
C46: =C44 -> 0 | D46: https://www.lta.org.uk/workforce-venues/tennis-venue-support/tennis-and-padel-facility-funding-and-advice/quick-access-loan-scheme/
C47: 0 | T47: Max | U47: Max | V47: Max | W47: Min | X47: Min | Y47: Min
C48: 0 | T48: =IF($G$15>0,IF(G15<3,2,IF(G15=10,8,$G$15-1)),"") ->  | U48: =IF($G$15>0,T48+1,"") ->  | V48: =IF($G$15>0,U48+1,"") ->  | W48: =T48 -> 
C49: =IF($G$18="yes",0,1) -> 1 | R49: Comparison
C50: =C49 -> 1 | R50: ="Range for IMD levels "&T48&" - "&V48 -> Range for IMD levels -
C51: 1 | D51: Income assumptions
B52: 10 | C52: 1 | D52: Court cost per hour (non FL) | J52: Pay and play for non floodlit courts | R52: =IFERROR("£"&MIN(W52:Y52)&" - £"&MAX(T52:V52),"") ->  | T52: =VLOOKUP(T$48,'Case Studies'!$D$87:$K$95,4,0) ->  | U52: =VLOOKUP(U$48,'Case Studies'!$D$87:$K$95,4,0) ->  | V52: =VLOOKUP(V$48,'Case Studies'!$D$87:$K$95,4,0) ->  | W52: =VLOOKUP(W$48,'Case Studies'!$D$87:$K$95,5,0) ->  | X52: =VLOOKUP(X$48,'Case Studies'!$D$87:$K$95,5,0) ->  | Y52: =VLOOKUP(Y$48,'Case Studies'!$D$87:$K$95,5,0) -> 
B53: 9 | C53: 1 | D53: Court cost per hour (FL) | J53: Pay and play for floodlit courts. Usually £2-£3 more expensive than non floodlit | T53: =VLOOKUP(T$48,'Case Studies'!$D$87:$K$95,2,0) ->  | U53: =VLOOKUP(U$48,'Case Studies'!$D$87:$K$95,2,0) ->  | V53: =VLOOKUP(V$48,'Case Studies'!$D$87:$K$95,2,0) ->  | W53: =VLOOKUP(W$48,'Case Studies'!$D$87:$K$95,3,0) ->  | X53: =VLOOKUP(X$48,'Case Studies'!$D$87:$K$95,3,0) ->  | Y53: =VLOOKUP(Y$48,'Case Studies'!$D$87:$K$95,3,0) -> 
B54: 13 | C54: 1 | D54: Season ticket cost | J54: Annual price for a household | T54: =VLOOKUP(T$48,'Case Studies'!$D$87:$K$95,7,0) ->  | U54: =VLOOKUP(U$48,'Case Studies'!$D$87:$K$95,7,0) ->  | V54: =VLOOKUP(V$48,'Case Studies'!$D$87:$K$95,7,0) ->  | W54: =VLOOKUP(W$48,'Case Studies'!$D$87:$K$95,8,0) ->  | X54: =VLOOKUP(X$48,'Case Studies'!$D$87:$K$95,8,0) ->  | Y54: =VLOOKUP(Y$48,'Case Studies'!$D$87:$K$95,8,0) -> 
C55: 1 | D55: Court hours committed to being free | J55: % of court hours you expect to be free for use
B56: 42 | C56: 1 | D56: Expected % of court hours sold for pay and play | J56: Based on total court hours across the year | R56: ='Case Studies'!$AS$81 -> 0.07001787303
C57: 1 | D57: Expected % of households that buy a season ticket | J57: Comparative figures are based on the average for all areas of deprivation. Note that the number of households can be calculated by taking the penetration and dividing by 2.4 | R57: =+'Case Studies'!$AW$81 -> 0.2274281712
C58: 1
C59: 1
C60: 1
C61: 1 | D61: Plausable annual profit | G61: =TEXT(G81,"£#,###")&IF(G81<0," loss"," profit") -> £ profit
C62: 1
C63: 1
C64: 1 | D64: Income
C65: =IF($G$18="yes",0,1) -> 1 | D65: - Pay and play | G65: =IF(G18="yes",0,G52*G27*G56*(1-G55)) -> 0
C66: 1 | D66: - Season tickets | G66: =IF(G18="yes",0,G54*G16/2.4*G57) -> 0
C67: 1 | D67: =IF(G18="yes","- Agreement fee","- Coaching") -> - Coaching | J67: ="Enter the annual income expected if there is an agreement to hire courts to "&IF(G18="yes","an operator","a local coach") -> Enter the annual income expected if there is an agreement to hire courts to a local coach
C68: =IF(G18="no",1,0) -> 0 | J68: Click here for the coach programming tool
C69: 1 | D69: Total income | G69: =SUM(G65:G67) -> 0
C70: 1
C71: 1 | D71: Costs
C72: =IF($G$18="yes",0,1) -> 1 | D72: '- Clubspark and Payment Fees | G72: =IF(G18="yes",0,IFERROR((G65/G52)*CSfee_1+G65*CSfee_2+G66*CSfee_3,0)) -> 0 | J72: ClubSpark (booking platform) charge 1.4% + 5p per transaction, Stripe (payment platform) charge 1.4% + 20p per transaction
C73: =IF($G$18="yes",0,1) -> 1 | D73: - Gate access maintenance | G73: =IFERROR(G30*VLOOKUP(G31,Inputs!B13:C15,2,0),0) -> 0
C74: =IF($G$18="yes",0,1) -> 1 | D74: - Code lock generator (lite systems only) | G74: =IF(G18="yes",0,IF(G31=SmartAccess_Lite,Inputs!C16*G27*G56+Inputs!C16*G27*G55,0)) -> 0
C75: 1 | D75: - Court sinking fund | G75: =G26*FL_SF+G25*NFL_SF -> 0
C76: 1 | D76: - Registration fees | G76: =60*(G25+G26) -> 0
C77: =IF($G$18="yes",0,1) -> 1 | D77: - Staffing costs | J77: Enter any staff costs specific to the site / reallocated from support costs
C78: 1 | D78: - Marketing costs | J78: Enter any specific marketing costs expected to reach participation levels
C79: 1 | D79: Total costs | G79: =SUM(G72:G78) -> 0
C80: 1
C81: 1 | D81: ="Net annual "&IF(G81<0,"loss","profit") -> Net annual profit | G81: =G69-G79 -> 0
C82: 1 | D82: Net annual profit per court | G82: =IFERROR(G81/SUM(G25:G26),0) -> 0
C83: 1
C84: 1
C85: 1 | D85: Plausable cashflow | G85: ="£"&TEXT(J106,"#,###")&" by year 5" -> £ by year 5
C86: 1
C87: 1
C88: =IF($G$18="yes",0,1) -> 1 | D88: Projected cashflow forecast is calculated below assuming: 1. Starting cash position is £0 2. Pay and play and season tickets sales in year 1 are at 70% of target 3. Sales reach target stated above by year 2 4. From year 5 onwards sales increase by 1% 5. Any loan is repaid over 10 years
C89: 1
C90: 1
C91: 1
C92: 1
C93: 1
C94: 1 | D94: 6. Click here for sinking fund calculator
C95: =IF($G$18="yes",1,0) -> 0 | D95: Projected cashflow forecast is calculated below assuming: 1. Starting cash position is £0 2. Agreement fee is paid at the full rate from year 1 3. Any loan is repaid over 10 years
C96: =IF($G$18="yes",1,0) -> 0
C97: =IF($G$18="yes",1,0) -> 0
C98: =IF($G$18="yes",1,0) -> 0
C99: =IF($G$18="yes",1,0) -> 0 | D99: 4. Click here for sinking fund calculator
C100: 1
C101: 1 | F101: Year 1 | G101: Year 2 | H101: Year 3 | I101: Year 4 | J101: Year 5 | K101: Year 10 | L101: Year 20
C102: 1 | D102: Starting cash position | F102: 0 | G102: =F106 -> 0 | H102: =G106 -> 0 | I102: 0 | J102: 0 | K102: =N117 -> 0 | L102: =X117 -> 0
C103: 1 | D103: Projected profit / (loss) | F103: =F113-F114 -> 0 | G103: =G113-G114 -> 0 | H103: =H113-H114 -> 0 | I103: =I113-I114 -> 0 | J103: =J113-J114 -> 0 | K103: =O113-O114 -> 0 | L103: =S113-S114 -> 0
C104: 1 | D104: LTA loan repayments | F104: =IF($G$17="no",0,-$G$44/10) -> 0 | G104: 0 | H104: 0 | I104: 0 | J104: 0 | K104: 0 | L104: 0
C105: 1 | D105: Net annual cashflow | F105: =SUM(F103:F104) -> 0 | G105: =SUM(G103:G104) -> 0 | H105: 0 | I105: 0 | J105: 0 | K105: 0 | L105: 0
C106: 1 | D106: Closing cash position after sinking fund | F106: =F105+F102 -> 0 | G106: =G105+G102 -> 0 | H106: 0 | I106: 0 | J106: 0 | K106: 0 | L106: 0
C107: 1
C108: 1
C109: 1
C110: 1
C111: 0 | F111: 1 | G111: 2 | H111: 3 | I111: 4 | J111: 5 | K111: 6 | L111: 7 | M111: 8 | N111: 9 | O111: 10 | P111: 11 | Q111: 12 | R111: 13 | S111: 14 | T111: 15 | U111: 16 | V111: 17 | W111: 18 | X111: 19 | Y111: 20
C112: 0 | D112: P&P % court hours | F112: =G112*0.7 -> 0 | G112: =G56 -> 0 | H112: =G112 -> 0 | I112: =H112 -> 0 | J112: =+I112+1% -> 0.01 | K112: 0.02 | L112: 0.03 | M112: 0.04 | N112: 0.05 | O112: 0.06 | P112: 0.07 | Q112: 0.08 | R112: 0.09 | S112: =+R112+1% -> 0.1 | T112: 0.11 | U112: 0.12 | V112: 0.13 | W112: 0.14 | X112: 0.15 | Y112: 0.16
C113: 0 | D113: Sales | F113: =IFERROR($G$65/$G$56*F112,0)+SUM($G$66)*70%+$G$67 -> 0 | G113: =IFERROR($G$65/$G$56*G112,0)+SUM($G$66)+$G$67 -> 0 | H113: =IFERROR($G$65/$G$56*H112,0)+SUM($G$66)+$G$67 -> 0 | I113: 0 | J113: 0 | K113: 0 | L113: 0 | M113: 0 | N113: 0 | O113: 0 | P113: 0 | Q113: 0 | R113: 0 | S113: 0 | T113: 0 | U113: 0 | V113: 0 | W113: 0 | X113: 0 | Y113: 0
C114: 0 | D114: Costs | F114: =IFERROR(SUM($G$72)/$G$56*F112,0)+SUM($G$73:$I$78) -> 0 | G114: 0 | H114: 0 | I114: 0 | J114: 0 | K114: 0 | L114: 0 | M114: 0 | N114: 0 | O114: 0 | P114: 0 | Q114: 0 | R114: 0 | S114: 0 | T114: 0 | U114: 0 | V114: 0 | W114: 0 | X114: 0 | Y114: 0
C115: 0 | D115: Loan repayment | F115: =IF($G$17="no",0,$G$44/10) -> 0 | G115: 0 | H115: 0 | I115: 0 | J115: 0 | K115: 0 | L115: 0 | M115: 0 | N115: 0 | O115: 0
C116: 0 | D116: net cash | F116: =F113-F114-F115 -> 0 | G116: 0 | H116: 0 | I116: 0 | J116: 0 | K116: 0 | L116: 0 | M116: 0 | N116: 0 | O116: 0 | P116: 0 | Q116: 0 | R116: 0 | S116: 0 | T116: 0 | U116: 0 | V116: 0 | W116: 0 | X116: 0 | Y116: 0
C117: 0 | D117: closing cash | F117: =F116 -> 0 | G117: =F117+G116 -> 0 | H117: 0 | I117: 0 | J117: 0 | K117: 0 | L117: 0 | M117: 0 | N117: 0 | O117: 0 | P117: 0 | Q117: 0 | R117: 0 | S117: =R117+S116 -> 0 | T117: 0 | U117: 0 | V117: 0 | W117: 0 | X117: 0 | Y117: 0
C118: 0
C119: 1
C120: 1
C121: 1
C122: 1
C123: 1

Sheet Venue 12
E3: ="LTA Local Authority Parks Toolkit"&IF(ISBLANK(G13),""," - Site "&G13) -> LTA Local Authority Parks Toolkit
D6: It is recommended that this form is completed with the assistance of a PDP, in order to produce the most accurate forecast. As a guide there are case studies online that will help with operating models and court rates.
D9: Site Background
C10: 1
C11: 1
C12: 1 | D12: Local Authority | G12: ='Venue 1'!G12 -> 0
C13: 1 | D13: Site Name
C14: 1 | D14: Postcode
C15: 1 | D15: Deprivation Index | J15: Use this tool to determine the index: | M15: http://imd-by-postcode.opendatacommunities.org/
C16: 1 | D16: Penetration | G16: 700 | J16: Pre-set to 700, will be updated by your local Participation Development Partner
C17: 1 | D17: Court upgrade works required?
C18: 1 | D18: Venue operations outsourced? | J18: If you plan to lease out all operations (court bookings, season tickets & coaching) please select "yes" here
C19: 1
C20: 1
C21: 1 | D21: Court Information
C22: 1
C23: 1
C24: 1 | D24: Courts at the venue
C25: 1 | D25: Number of non floodlit courts | J25: Total at the end of the project
C26: 1 | D26: Number of floodlit courts | J26: Total at the end of the project
C27: 1 | D27: Total available court hours | G27: =G26*FL_CH+G25*NFL_CH -> 0
C28: 1
C29: 1 | D29: Gates required
C30: 1 | D30: Number of gates required | J30: All gate access systems must be the same at each venue
C31: 1 | D31: Type of gate system required | J31: See the LTA website for details of the different gates
D32: If solar chosen grant funded by LTA?
C33: =IF(G17="yes",1,0) -> 0 | J33: https://www.lta.org.uk/globalassets/venue/ready-to-rally-brochure---parks.pdf
C34: =C33 -> 0 | D34: Court upgrade works
C35: 0 | D35: Do you know the exact cost of renovation?
C36: =IF(G35="yes",1,0) -> 0 | D36: Expected cost of project
C37: =IF(G35="yes",0,IF(G17="yes",1,0)) -> 0 | D37: Level of court renovation required
C38: 0 | D38: Number of courts to be renovated
C39: 0 | D39: Cost of fencing / other costs | J39: Replacement of 1 x 3m chain link fence panel = c£250
C40: =C37 -> 0 | D40: New LED floodlights | J40: Number of courts needing New LED floodlight installation (£15,000/court)
C41: =C40 -> 0 | D41: Conversion to LED floodlights | J41: Number of courts needing conversion to LED floodlights (£10,000/court)
C42: 0 | D42: Expected cost of project | G42: =IFERROR(VLOOKUP(G37,Inputs!$B$22:$C$27,2,0)*G38,0)+'Venue 12'!G40*Inputs!C29+'Venue 12'!G41*Inputs!C30+G39 -> 0 | J42: Calculated based on inputs above - note this is an estimate
C43: =C34 -> 0 | D43: Capital funding available | J43: For example from Sport England, local charities, own reserves
C44: =C43 -> 0 | D44: Loan required from LTA* | G44: =IF(ISBLANK(G42),"",IF(G35="yes",G36-G43,G42-G43)) -> 0
C45: =C43 -> 0 | D45: *There are specific conditions required in order to apply for LTA loan funding. Please speak to your PDP or visit our website for the type of investments we support (see link below)
C46: =C44 -> 0 | D46: https://www.lta.org.uk/workforce-venues/tennis-venue-support/tennis-and-padel-facility-funding-and-advice/quick-access-loan-scheme/
C47: 0 | T47: Max | U47: Max | V47: Max | W47: Min | X47: Min | Y47: Min
C48: 0 | T48: =IF($G$15>0,IF(G15<3,2,IF(G15=10,8,$G$15-1)),"") ->  | U48: =IF($G$15>0,T48+1,"") ->  | V48: =IF($G$15>0,U48+1,"") ->  | W48: =T48 -> 
C49: =IF($G$18="yes",0,1) -> 1 | R49: Comparison
C50: =C49 -> 1 | R50: ="Range for IMD levels "&T48&" - "&V48 -> Range for IMD levels -
C51: 1 | D51: Income assumptions
B52: 10 | C52: 1 | D52: Court cost per hour (non FL) | J52: Pay and play for non floodlit courts | R52: =IFERROR("£"&MIN(W52:Y52)&" - £"&MAX(T52:V52),"") ->  | T52: =VLOOKUP(T$48,'Case Studies'!$D$87:$K$95,4,0) ->  | U52: =VLOOKUP(U$48,'Case Studies'!$D$87:$K$95,4,0) ->  | V52: =VLOOKUP(V$48,'Case Studies'!$D$87:$K$95,4,0) ->  | W52: =VLOOKUP(W$48,'Case Studies'!$D$87:$K$95,5,0) ->  | X52: =VLOOKUP(X$48,'Case Studies'!$D$87:$K$95,5,0) ->  | Y52: =VLOOKUP(Y$48,'Case Studies'!$D$87:$K$95,5,0) -> 
B53: 9 | C53: 1 | D53: Court cost per hour (FL) | J53: Pay and play for floodlit courts. Usually £2-£3 more expensive than non floodlit | T53: =VLOOKUP(T$48,'Case Studies'!$D$87:$K$95,2,0) ->  | U53: =VLOOKUP(U$48,'Case Studies'!$D$87:$K$95,2,0) ->  | V53: =VLOOKUP(V$48,'Case Studies'!$D$87:$K$95,2,0) ->  | W53: =VLOOKUP(W$48,'Case Studies'!$D$87:$K$95,3,0) ->  | X53: =VLOOKUP(X$48,'Case Studies'!$D$87:$K$95,3,0) ->  | Y53: =VLOOKUP(Y$48,'Case Studies'!$D$87:$K$95,3,0) -> 
B54: 13 | C54: 1 | D54: Season ticket cost | J54: Annual price for a household | T54: =VLOOKUP(T$48,'Case Studies'!$D$87:$K$95,7,0) ->  | U54: =VLOOKUP(U$48,'Case Studies'!$D$87:$K$95,7,0) ->  | V54: =VLOOKUP(V$48,'Case Studies'!$D$87:$K$95,7,0) ->  | W54: =VLOOKUP(W$48,'Case Studies'!$D$87:$K$95,8,0) ->  | X54: =VLOOKUP(X$48,'Case Studies'!$D$87:$K$95,8,0) ->  | Y54: =VLOOKUP(Y$48,'Case Studies'!$D$87:$K$95,8,0) -> 
C55: 1 | D55: Court hours committed to being free | J55: % of court hours you expect to be free for use
B56: 42 | C56: 1 | D56: Expected % of court hours sold for pay and play | J56: Based on total court hours across the year | R56: ='Case Studies'!$AS$81 -> 0.07001787303
C57: 1 | D57: Expected % of households that buy a season ticket | J57: Comparative figures are based on the average for all areas of deprivation. Note that the number of households can be calculated by taking the penetration and dividing by 2.4 | R57: =+'Case Studies'!$AW$81 -> 0.2274281712
C58: 1
C59: 1
C60: 1
C61: 1 | D61: Plausable annual profit | G61: =TEXT(G81,"£#,###")&IF(G81<0," loss"," profit") -> £ profit
C62: 1
C63: 1
C64: 1 | D64: Income
C65: =IF($G$18="yes",0,1) -> 1 | D65: - Pay and play | G65: =IF(G18="yes",0,G52*G27*G56*(1-G55)) -> 0
C66: 1 | D66: - Season tickets | G66: =IF(G18="yes",0,G54*G16/2.4*G57) -> 0
C67: 1 | D67: =IF(G18="yes","- Agreement fee","- Coaching") -> - Coaching | J67: ="Enter the annual income expected if there is an agreement to hire courts to "&IF(G18="yes","an operator","a local coach") -> Enter the annual income expected if there is an agreement to hire courts to a local coach
C68: =IF(G18="no",1,0) -> 0 | J68: Click here for the coach programming tool
C69: 1 | D69: Total income | G69: =SUM(G65:G67) -> 0
C70: 1
C71: 1 | D71: Costs
C72: =IF($G$18="yes",0,1) -> 1 | D72: '- Clubspark and Payment Fees | G72: =IF(G18="yes",0,IFERROR((G65/G52)*CSfee_1+G65*CSfee_2+G66*CSfee_3,0)) -> 0 | J72: ClubSpark (booking platform) charge 1.4% + 5p per transaction, Stripe (payment platform) charge 1.4% + 20p per transaction
C73: =IF($G$18="yes",0,1) -> 1 | D73: - Gate access maintenance | G73: =IFERROR(G30*VLOOKUP(G31,Inputs!B13:C15,2,0),0) -> 0
C74: =IF($G$18="yes",0,1) -> 1 | D74: - Code lock generator (lite systems only) | G74: =IF(G18="yes",0,IF(G31=SmartAccess_Lite,Inputs!C16*G27*G56+Inputs!C16*G27*G55,0)) -> 0
C75: 1 | D75: - Court sinking fund | G75: =G26*FL_SF+G25*NFL_SF -> 0
C76: 1 | D76: - Registration fees | G76: =60*(G25+G26) -> 0
C77: =IF($G$18="yes",0,1) -> 1 | D77: - Staffing costs | J77: Enter any staff costs specific to the site / reallocated from support costs
C78: 1 | D78: - Marketing costs | J78: Enter any specific marketing costs expected to reach participation levels
C79: 1 | D79: Total costs | G79: =SUM(G72:G78) -> 0
C80: 1
C81: 1 | D81: ="Net annual "&IF(G81<0,"loss","profit") -> Net annual profit | G81: =G69-G79 -> 0
C82: 1 | D82: Net annual profit per court | G82: =IFERROR(G81/SUM(G25:G26),0) -> 0
C83: 1
C84: 1
C85: 1 | D85: Plausable cashflow | G85: ="£"&TEXT(J106,"#,###")&" by year 5" -> £ by year 5
C86: 1
C87: 1
C88: =IF($G$18="yes",0,1) -> 1 | D88: Projected cashflow forecast is calculated below assuming: 1. Starting cash position is £0 2. Pay and play and season tickets sales in year 1 are at 70% of target 3. Sales reach target stated above by year 2 4. From year 5 onwards sales increase by 1% 5. Any loan is repaid over 10 years
C89: 1
C90: 1
C91: 1
C92: 1
C93: 1
C94: 1 | D94: 6. Click here for sinking fund calculator
C95: =IF($G$18="yes",1,0) -> 0 | D95: Projected cashflow forecast is calculated below assuming: 1. Starting cash position is £0 2. Agreement fee is paid at the full rate from year 1 3. Any loan is repaid over 10 years
C96: =IF($G$18="yes",1,0) -> 0
C97: =IF($G$18="yes",1,0) -> 0
C98: =IF($G$18="yes",1,0) -> 0
C99: =IF($G$18="yes",1,0) -> 0 | D99: 4. Click here for sinking fund calculator
C100: 1
C101: 1 | F101: Year 1 | G101: Year 2 | H101: Year 3 | I101: Year 4 | J101: Year 5 | K101: Year 10 | L101: Year 20
C102: 1 | D102: Starting cash position | F102: 0 | G102: =F106 -> 0 | H102: =G106 -> 0 | I102: 0 | J102: 0 | K102: =N117 -> 0 | L102: =X117 -> 0
C103: 1 | D103: Projected profit / (loss) | F103: =F113-F114 -> 0 | G103: =G113-G114 -> 0 | H103: =H113-H114 -> 0 | I103: =I113-I114 -> 0 | J103: =J113-J114 -> 0 | K103: =O113-O114 -> 0 | L103: =S113-S114 -> 0
C104: 1 | D104: LTA loan repayments | F104: =IF($G$17="no",0,-$G$44/10) -> 0 | G104: 0 | H104: 0 | I104: 0 | J104: 0 | K104: 0 | L104: 0
C105: 1 | D105: Net annual cashflow | F105: =SUM(F103:F104) -> 0 | G105: =SUM(G103:G104) -> 0 | H105: 0 | I105: 0 | J105: 0 | K105: 0 | L105: 0
C106: 1 | D106: Closing cash position after sinking fund | F106: =F105+F102 -> 0 | G106: =G105+G102 -> 0 | H106: 0 | I106: 0 | J106: 0 | K106: 0 | L106: 0
C107: 1
C108: 1
C109: 1
C110: 1
C111: 0 | F111: 1 | G111: 2 | H111: 3 | I111: 4 | J111: 5 | K111: 6 | L111: 7 | M111: 8 | N111: 9 | O111: 10 | P111: 11 | Q111: 12 | R111: 13 | S111: 14 | T111: 15 | U111: 16 | V111: 17 | W111: 18 | X111: 19 | Y111: 20
C112: 0 | D112: P&P % court hours | F112: =G112*0.7 -> 0 | G112: =G56 -> 0 | H112: =G112 -> 0 | I112: =H112 -> 0 | J112: =+I112+1% -> 0.01 | K112: 0.02 | L112: 0.03 | M112: 0.04 | N112: 0.05 | O112: 0.06 | P112: 0.07 | Q112: 0.08 | R112: 0.09 | S112: =+R112+1% -> 0.1 | T112: 0.11 | U112: 0.12 | V112: 0.13 | W112: 0.14 | X112: 0.15 | Y112: 0.16
C113: 0 | D113: Sales | F113: =IFERROR($G$65/$G$56*F112,0)+SUM($G$66)*70%+$G$67 -> 0 | G113: =IFERROR($G$65/$G$56*G112,0)+SUM($G$66)+$G$67 -> 0 | H113: =IFERROR($G$65/$G$56*H112,0)+SUM($G$66)+$G$67 -> 0 | I113: 0 | J113: 0 | K113: 0 | L113: 0 | M113: 0 | N113: 0 | O113: 0 | P113: 0 | Q113: 0 | R113: 0 | S113: 0 | T113: 0 | U113: 0 | V113: 0 | W113: 0 | X113: 0 | Y113: 0
C114: 0 | D114: Costs | F114: =IFERROR(SUM($G$72)/$G$56*F112,0)+SUM($G$73:$I$78) -> 0 | G114: 0 | H114: 0 | I114: 0 | J114: 0 | K114: 0 | L114: 0 | M114: 0 | N114: 0 | O114: 0 | P114: 0 | Q114: 0 | R114: 0 | S114: 0 | T114: 0 | U114: 0 | V114: 0 | W114: 0 | X114: 0 | Y114: 0
C115: 0 | D115: Loan repayment | F115: =IF($G$17="no",0,$G$44/10) -> 0 | G115: 0 | H115: 0 | I115: 0 | J115: 0 | K115: 0 | L115: 0 | M115: 0 | N115: 0 | O115: 0
C116: 0 | D116: net cash | F116: =F113-F114-F115 -> 0 | G116: 0 | H116: 0 | I116: 0 | J116: 0 | K116: 0 | L116: 0 | M116: 0 | N116: 0 | O116: 0 | P116: 0 | Q116: 0 | R116: 0 | S116: 0 | T116: 0 | U116: 0 | V116: 0 | W116: 0 | X116: 0 | Y116: 0
C117: 0 | D117: closing cash | F117: =F116 -> 0 | G117: =F117+G116 -> 0 | H117: 0 | I117: 0 | J117: 0 | K117: 0 | L117: 0 | M117: 0 | N117: 0 | O117: 0 | P117: 0 | Q117: 0 | R117: 0 | S117: =R117+S116 -> 0 | T117: 0 | U117: 0 | V117: 0 | W117: 0 | X117: 0 | Y117: 0
C118: 0
C119: 1
C120: 1
C121: 1
C122: 1
C123: 1

Sheet Venue 13
E3: ="LTA Local Authority Parks Toolkit"&IF(ISBLANK(G13),""," - Site "&G13) -> LTA Local Authority Parks Toolkit
D6: It is recommended that this form is completed with the assistance of a PDP, in order to produce the most accurate forecast. As a guide there are case studies online that will help with operating models and court rates.
D9: Site Background
C10: 1
C11: 1
C12: 1 | D12: Local Authority | G12: ='Venue 1'!G12 -> 0
C13: 1 | D13: Site Name
C14: 1 | D14: Postcode
C15: 1 | D15: Deprivation Index | J15: Use this tool to determine the index: | M15: http://imd-by-postcode.opendatacommunities.org/
C16: 1 | D16: Penetration | G16: 700 | J16: Pre-set to 700, will be updated by your local Participation Development Partner
C17: 1 | D17: Court upgrade works required?
C18: 1 | D18: Venue operations outsourced? | J18: If you plan to lease out all operations (court bookings, season tickets & coaching) please select "yes" here
C19: 1
C20: 1
C21: 1 | D21: Court Information
C22: 1
C23: 1
C24: 1 | D24: Courts at the venue
C25: 1 | D25: Number of non floodlit courts | J25: Total at the end of the project
C26: 1 | D26: Number of floodlit courts | J26: Total at the end of the project
C27: 1 | D27: Total available court hours | G27: =G26*FL_CH+G25*NFL_CH -> 0
C28: 1
C29: 1 | D29: Gates required
C30: 1 | D30: Number of gates required | J30: All gate access systems must be the same at each venue
C31: 1 | D31: Type of gate system required | J31: See the LTA website for details of the different gates
D32: If solar chosen grant funded by LTA?
C33: =IF(G17="yes",1,0) -> 0 | J33: https://www.lta.org.uk/globalassets/venue/ready-to-rally-brochure---parks.pdf
C34: =C33 -> 0 | D34: Court upgrade works
C35: 0 | D35: Do you know the exact cost of renovation?
C36: =IF(G35="yes",1,0) -> 0 | D36: Expected cost of project
C37: =IF(G35="yes",0,IF(G17="yes",1,0)) -> 0 | D37: Level of court renovation required
C38: 0 | D38: Number of courts to be renovated
C39: 0 | D39: Cost of fencing / other costs | J39: Replacement of 1 x 3m chain link fence panel = c£250
C40: =C37 -> 0 | D40: New LED floodlights | J40: Number of courts needing New LED floodlight installation (£15,000/court)
C41: =C40 -> 0 | D41: Conversion to LED floodlights | J41: Number of courts needing conversion to LED floodlights (£10,000/court)
C42: 0 | D42: Expected cost of project | G42: =IFERROR(VLOOKUP(G37,Inputs!$B$22:$C$27,2,0)*G38,0)+'Venue 13'!G40*Inputs!C29+'Venue 13'!G41*Inputs!C30+G39 -> 0 | J42: Calculated based on inputs above - note this is an estimate
C43: =C34 -> 0 | D43: Capital funding available | J43: For example from Sport England, local charities, own reserves
C44: =C43 -> 0 | D44: Loan required from LTA* | G44: =IF(ISBLANK(G42),"",IF(G35="yes",G36-G43,G42-G43)) -> 0
C45: =C43 -> 0 | D45: *There are specific conditions required in order to apply for LTA loan funding. Please speak to your PDP or visit our website for the type of investments we support (see link below)
C46: =C44 -> 0 | D46: https://www.lta.org.uk/workforce-venues/tennis-venue-support/tennis-and-padel-facility-funding-and-advice/quick-access-loan-scheme/
C47: 0 | T47: Max | U47: Max | V47: Max | W47: Min | X47: Min | Y47: Min
C48: 0 | T48: =IF($G$15>0,IF(G15<3,2,IF(G15=10,8,$G$15-1)),"") ->  | U48: =IF($G$15>0,T48+1,"") ->  | V48: =IF($G$15>0,U48+1,"") ->  | W48: =T48 -> 
C49: =IF($G$18="yes",0,1) -> 1 | R49: Comparison
C50: =C49 -> 1 | R50: ="Range for IMD levels "&T48&" - "&V48 -> Range for IMD levels -
C51: 1 | D51: Income assumptions
B52: 10 | C52: 1 | D52: Court cost per hour (non FL) | J52: Pay and play for non floodlit courts | R52: =IFERROR("£"&MIN(W52:Y52)&" - £"&MAX(T52:V52),"") ->  | T52: =VLOOKUP(T$48,'Case Studies'!$D$87:$K$95,4,0) ->  | U52: =VLOOKUP(U$48,'Case Studies'!$D$87:$K$95,4,0) ->  | V52: =VLOOKUP(V$48,'Case Studies'!$D$87:$K$95,4,0) ->  | W52: =VLOOKUP(W$48,'Case Studies'!$D$87:$K$95,5,0) ->  | X52: =VLOOKUP(X$48,'Case Studies'!$D$87:$K$95,5,0) ->  | Y52: =VLOOKUP(Y$48,'Case Studies'!$D$87:$K$95,5,0) -> 
B53: 9 | C53: 1 | D53: Court cost per hour (FL) | J53: Pay and play for floodlit courts. Usually £2-£3 more expensive than non floodlit | T53: =VLOOKUP(T$48,'Case Studies'!$D$87:$K$95,2,0) ->  | U53: =VLOOKUP(U$48,'Case Studies'!$D$87:$K$95,2,0) ->  | V53: =VLOOKUP(V$48,'Case Studies'!$D$87:$K$95,2,0) ->  | W53: =VLOOKUP(W$48,'Case Studies'!$D$87:$K$95,3,0) ->  | X53: =VLOOKUP(X$48,'Case Studies'!$D$87:$K$95,3,0) ->  | Y53: =VLOOKUP(Y$48,'Case Studies'!$D$87:$K$95,3,0) -> 
B54: 13 | C54: 1 | D54: Season ticket cost | J54: Annual price for a household | T54: =VLOOKUP(T$48,'Case Studies'!$D$87:$K$95,7,0) ->  | U54: =VLOOKUP(U$48,'Case Studies'!$D$87:$K$95,7,0) ->  | V54: =VLOOKUP(V$48,'Case Studies'!$D$87:$K$95,7,0) ->  | W54: =VLOOKUP(W$48,'Case Studies'!$D$87:$K$95,8,0) ->  | X54: =VLOOKUP(X$48,'Case Studies'!$D$87:$K$95,8,0) ->  | Y54: =VLOOKUP(Y$48,'Case Studies'!$D$87:$K$95,8,0) -> 
C55: 1 | D55: Court hours committed to being free | J55: % of court hours you expect to be free for use
B56: 42 | C56: 1 | D56: Expected % of court hours sold for pay and play | J56: Based on total court hours across the year | R56: ='Case Studies'!$AS$81 -> 0.07001787303
C57: 1 | D57: Expected % of households that buy a season ticket | J57: Comparative figures are based on the average for all areas of deprivation. Note that the number of households can be calculated by taking the penetration and dividing by 2.4 | R57: =+'Case Studies'!$AW$81 -> 0.2274281712
C58: 1
C59: 1
C60: 1
C61: 1 | D61: Plausable annual profit | G61: =TEXT(G81,"£#,###")&IF(G81<0," loss"," profit") -> £ profit
C62: 1
C63: 1
C64: 1 | D64: Income
C65: =IF($G$18="yes",0,1) -> 1 | D65: - Pay and play | G65: =IF(G18="yes",0,G52*G27*G56*(1-G55)) -> 0
C66: 1 | D66: - Season tickets | G66: =IF(G18="yes",0,G54*G16/2.4*G57) -> 0
C67: 1 | D67: =IF(G18="yes","- Agreement fee","- Coaching") -> - Coaching | J67: ="Enter the annual income expected if there is an agreement to hire courts to "&IF(G18="yes","an operator","a local coach") -> Enter the annual income expected if there is an agreement to hire courts to a local coach
C68: =IF(G18="no",1,0) -> 0 | J68: Click here for the coach programming tool
C69: 1 | D69: Total income | G69: =SUM(G65:G67) -> 0
C70: 1
C71: 1 | D71: Costs
C72: =IF($G$18="yes",0,1) -> 1 | D72: '- Clubspark and Payment Fees | G72: =IF(G18="yes",0,IFERROR((G65/G52)*CSfee_1+G65*CSfee_2+G66*CSfee_3,0)) -> 0 | J72: ClubSpark (booking platform) charge 1.4% + 5p per transaction, Stripe (payment platform) charge 1.4% + 20p per transaction
C73: =IF($G$18="yes",0,1) -> 1 | D73: - Gate access maintenance | G73: =IFERROR(G30*VLOOKUP(G31,Inputs!B13:C15,2,0),0) -> 0
C74: =IF($G$18="yes",0,1) -> 1 | D74: - Code lock generator (lite systems only) | G74: =IF(G18="yes",0,IF(G31=SmartAccess_Lite,Inputs!C16*G27*G56+Inputs!C16*G27*G55,0)) -> 0
C75: 1 | D75: - Court sinking fund | G75: =G26*FL_SF+G25*NFL_SF -> 0
C76: 1 | D76: - Registration fees | G76: =60*(G25+G26) -> 0
C77: =IF($G$18="yes",0,1) -> 1 | D77: - Staffing costs | J77: Enter any staff costs specific to the site / reallocated from support costs
C78: 1 | D78: - Marketing costs | J78: Enter any specific marketing costs expected to reach participation levels
C79: 1 | D79: Total costs | G79: =SUM(G72:G78) -> 0
C80: 1
C81: 1 | D81: ="Net annual "&IF(G81<0,"loss","profit") -> Net annual profit | G81: =G69-G79 -> 0
C82: 1 | D82: Net annual profit per court | G82: =IFERROR(G81/SUM(G25:G26),0) -> 0
C83: 1
C84: 1
C85: 1 | D85: Plausable cashflow | G85: ="£"&TEXT(J106,"#,###")&" by year 5" -> £ by year 5
C86: 1
C87: 1
C88: =IF($G$18="yes",0,1) -> 1 | D88: Projected cashflow forecast is calculated below assuming: 1. Starting cash position is £0 2. Pay and play and season tickets sales in year 1 are at 70% of target 3. Sales reach target stated above by year 2 4. From year 5 onwards sales increase by 1% 5. Any loan is repaid over 10 years
C89: 1
C90: 1
C91: 1
C92: 1
C93: 1
C94: 1 | D94: 6. Click here for sinking fund calculator
C95: =IF($G$18="yes",1,0) -> 0 | D95: Projected cashflow forecast is calculated below assuming: 1. Starting cash position is £0 2. Agreement fee is paid at the full rate from year 1 3. Any loan is repaid over 10 years
C96: =IF($G$18="yes",1,0) -> 0
C97: =IF($G$18="yes",1,0) -> 0
C98: =IF($G$18="yes",1,0) -> 0
C99: =IF($G$18="yes",1,0) -> 0 | D99: 4. Click here for sinking fund calculator
C100: 1
C101: 1 | F101: Year 1 | G101: Year 2 | H101: Year 3 | I101: Year 4 | J101: Year 5 | K101: Year 10 | L101: Year 20
C102: 1 | D102: Starting cash position | F102: 0 | G102: =F106 -> 0 | H102: =G106 -> 0 | I102: 0 | J102: 0 | K102: =N117 -> 0 | L102: =X117 -> 0
C103: 1 | D103: Projected profit / (loss) | F103: =F113-F114 -> 0 | G103: =G113-G114 -> 0 | H103: =H113-H114 -> 0 | I103: =I113-I114 -> 0 | J103: =J113-J114 -> 0 | K103: =O113-O114 -> 0 | L103: =S113-S114 -> 0
C104: 1 | D104: LTA loan repayments | F104: =IF($G$17="no",0,-$G$44/10) -> 0 | G104: 0 | H104: 0 | I104: 0 | J104: 0 | K104: 0 | L104: 0
C105: 1 | D105: Net annual cashflow | F105: =SUM(F103:F104) -> 0 | G105: =SUM(G103:G104) -> 0 | H105: 0 | I105: 0 | J105: 0 | K105: 0 | L105: 0
C106: 1 | D106: Closing cash position after sinking fund | F106: =F105+F102 -> 0 | G106: =G105+G102 -> 0 | H106: 0 | I106: 0 | J106: 0 | K106: 0 | L106: 0
C107: 1
C108: 1
C109: 1
C110: 1
C111: 0 | F111: 1 | G111: 2 | H111: 3 | I111: 4 | J111: 5 | K111: 6 | L111: 7 | M111: 8 | N111: 9 | O111: 10 | P111: 11 | Q111: 12 | R111: 13 | S111: 14 | T111: 15 | U111: 16 | V111: 17 | W111: 18 | X111: 19 | Y111: 20
C112: 0 | D112: P&P % court hours | F112: =G112*0.7 -> 0 | G112: =G56 -> 0 | H112: =G112 -> 0 | I112: =H112 -> 0 | J112: =+I112+1% -> 0.01 | K112: 0.02 | L112: 0.03 | M112: 0.04 | N112: 0.05 | O112: 0.06 | P112: 0.07 | Q112: 0.08 | R112: 0.09 | S112: =+R112+1% -> 0.1 | T112: 0.11 | U112: 0.12 | V112: 0.13 | W112: 0.14 | X112: 0.15 | Y112: 0.16
C113: 0 | D113: Sales | F113: =IFERROR($G$65/$G$56*F112,0)+SUM($G$66)*70%+$G$67 -> 0 | G113: =IFERROR($G$65/$G$56*G112,0)+SUM($G$66)+$G$67 -> 0 | H113: =IFERROR($G$65/$G$56*H112,0)+SUM($G$66)+$G$67 -> 0 | I113: 0 | J113: 0 | K113: 0 | L113: 0 | M113: 0 | N113: 0 | O113: 0 | P113: 0 | Q113: 0 | R113: 0 | S113: 0 | T113: 0 | U113: 0 | V113: 0 | W113: 0 | X113: 0 | Y113: 0
C114: 0 | D114: Costs | F114: =IFERROR(SUM($G$72)/$G$56*F112,0)+SUM($G$73:$I$78) -> 0 | G114: 0 | H114: 0 | I114: 0 | J114: 0 | K114: 0 | L114: 0 | M114: 0 | N114: 0 | O114: 0 | P114: 0 | Q114: 0 | R114: 0 | S114: 0 | T114: 0 | U114: 0 | V114: 0 | W114: 0 | X114: 0 | Y114: 0
C115: 0 | D115: Loan repayment | F115: =IF($G$17="no",0,$G$44/10) -> 0 | G115: 0 | H115: 0 | I115: 0 | J115: 0 | K115: 0 | L115: 0 | M115: 0 | N115: 0 | O115: 0
C116: 0 | D116: net cash | F116: =F113-F114-F115 -> 0 | G116: 0 | H116: 0 | I116: 0 | J116: 0 | K116: 0 | L116: 0 | M116: 0 | N116: 0 | O116: 0 | P116: 0 | Q116: 0 | R116: 0 | S116: 0 | T116: 0 | U116: 0 | V116: 0 | W116: 0 | X116: 0 | Y116: 0
C117: 0 | D117: closing cash | F117: =F116 -> 0 | G117: =F117+G116 -> 0 | H117: 0 | I117: 0 | J117: 0 | K117: 0 | L117: 0 | M117: 0 | N117: 0 | O117: 0 | P117: 0 | Q117: 0 | R117: 0 | S117: =R117+S116 -> 0 | T117: 0 | U117: 0 | V117: 0 | W117: 0 | X117: 0 | Y117: 0
C118: 0
C119: 1
C120: 1
C121: 1
C122: 1
C123: 1

Sheet Venue 14
E3: ="LTA Local Authority Parks Toolkit"&IF(ISBLANK(G13),""," - Site "&G13) -> LTA Local Authority Parks Toolkit
D6: It is recommended that this form is completed with the assistance of a PDP, in order to produce the most accurate forecast. As a guide there are case studies online that will help with operating models and court rates.
D9: Site Background
C10: 1
C11: 1
C12: 1 | D12: Local Authority | G12: ='Venue 1'!G12 -> 0
C13: 1 | D13: Site Name
C14: 1 | D14: Postcode
C15: 1 | D15: Deprivation Index | J15: Use this tool to determine the index: | M15: http://imd-by-postcode.opendatacommunities.org/
C16: 1 | D16: Penetration | G16: 700 | J16: Pre-set to 700, will be updated by your local Participation Development Partner
C17: 1 | D17: Court upgrade works required?
C18: 1 | D18: Venue operations outsourced? | J18: If you plan to lease out all operations (court bookings, season tickets & coaching) please select "yes" here
C19: 1
C20: 1
C21: 1 | D21: Court Information
C22: 1
C23: 1
C24: 1 | D24: Courts at the venue
C25: 1 | D25: Number of non floodlit courts | J25: Total at the end of the project
C26: 1 | D26: Number of floodlit courts | J26: Total at the end of the project
C27: 1 | D27: Total available court hours | G27: =G26*FL_CH+G25*NFL_CH -> 0
C28: 1
C29: 1 | D29: Gates required
C30: 1 | D30: Number of gates required | J30: All gate access systems must be the same at each venue
C31: 1 | D31: Type of gate system required | J31: See the LTA website for details of the different gates
D32: If solar chosen grant funded by LTA?
C33: =IF(G17="yes",1,0) -> 0 | J33: https://www.lta.org.uk/globalassets/venue/ready-to-rally-brochure---parks.pdf
C34: =C33 -> 0 | D34: Court upgrade works
C35: 0 | D35: Do you know the exact cost of renovation?
C36: =IF(G35="yes",1,0) -> 0 | D36: Expected cost of project
C37: =IF(G35="yes",0,IF(G17="yes",1,0)) -> 0 | D37: Level of court renovation required
C38: 0 | D38: Number of courts to be renovated
C39: 0 | D39: Cost of fencing / other costs | J39: Replacement of 1 x 3m chain link fence panel = c£250
C40: =C37 -> 0 | D40: New LED floodlights | J40: Number of courts needing New LED floodlight installation (£15,000/court)
C41: =C40 -> 0 | D41: Conversion to LED floodlights | J41: Number of courts needing conversion to LED floodlights (£10,000/court)
C42: 0 | D42: Expected cost of project | G42: =IFERROR(VLOOKUP(G37,Inputs!$B$22:$C$27,2,0)*G38,0)+'Venue 14'!G40*Inputs!C29+'Venue 14'!G41*Inputs!C30+G39 -> 0 | J42: Calculated based on inputs above - note this is an estimate
C43: =C34 -> 0 | D43: Capital funding available | J43: For example from Sport England, local charities, own reserves
C44: =C43 -> 0 | D44: Loan required from LTA* | G44: =IF(ISBLANK(G42),"",IF(G35="yes",G36-G43,G42-G43)) -> 0
C45: =C43 -> 0 | D45: *There are specific conditions required in order to apply for LTA loan funding. Please speak to your PDP or visit our website for the type of investments we support (see link below)
C46: =C44 -> 0 | D46: https://www.lta.org.uk/workforce-venues/tennis-venue-support/tennis-and-padel-facility-funding-and-advice/quick-access-loan-scheme/
C47: 0 | T47: Max | U47: Max | V47: Max | W47: Min | X47: Min | Y47: Min
C48: 0 | T48: =IF($G$15>0,IF(G15<3,2,IF(G15=10,8,$G$15-1)),"") ->  | U48: =IF($G$15>0,T48+1,"") ->  | V48: =IF($G$15>0,U48+1,"") ->  | W48: =T48 -> 
C49: =IF($G$18="yes",0,1) -> 1 | R49: Comparison
C50: =C49 -> 1 | R50: ="Range for IMD levels "&T48&" - "&V48 -> Range for IMD levels -
C51: 1 | D51: Income assumptions
B52: 10 | C52: 1 | D52: Court cost per hour (non FL) | J52: Pay and play for non floodlit courts | R52: =IFERROR("£"&MIN(W52:Y52)&" - £"&MAX(T52:V52),"") ->  | T52: =VLOOKUP(T$48,'Case Studies'!$D$87:$K$95,4,0) ->  | U52: =VLOOKUP(U$48,'Case Studies'!$D$87:$K$95,4,0) ->  | V52: =VLOOKUP(V$48,'Case Studies'!$D$87:$K$95,4,0) ->  | W52: =VLOOKUP(W$48,'Case Studies'!$D$87:$K$95,5,0) ->  | X52: =VLOOKUP(X$48,'Case Studies'!$D$87:$K$95,5,0) ->  | Y52: =VLOOKUP(Y$48,'Case Studies'!$D$87:$K$95,5,0) -> 
B53: 9 | C53: 1 | D53: Court cost per hour (FL) | J53: Pay and play for floodlit courts. Usually £2-£3 more expensive than non floodlit | T53: =VLOOKUP(T$48,'Case Studies'!$D$87:$K$95,2,0) ->  | U53: =VLOOKUP(U$48,'Case Studies'!$D$87:$K$95,2,0) ->  | V53: =VLOOKUP(V$48,'Case Studies'!$D$87:$K$95,2,0) ->  | W53: =VLOOKUP(W$48,'Case Studies'!$D$87:$K$95,3,0) ->  | X53: =VLOOKUP(X$48,'Case Studies'!$D$87:$K$95,3,0) ->  | Y53: =VLOOKUP(Y$48,'Case Studies'!$D$87:$K$95,3,0) -> 
B54: 13 | C54: 1 | D54: Season ticket cost | J54: Annual price for a household | T54: =VLOOKUP(T$48,'Case Studies'!$D$87:$K$95,7,0) ->  | U54: =VLOOKUP(U$48,'Case Studies'!$D$87:$K$95,7,0) ->  | V54: =VLOOKUP(V$48,'Case Studies'!$D$87:$K$95,7,0) ->  | W54: =VLOOKUP(W$48,'Case Studies'!$D$87:$K$95,8,0) ->  | X54: =VLOOKUP(X$48,'Case Studies'!$D$87:$K$95,8,0) ->  | Y54: =VLOOKUP(Y$48,'Case Studies'!$D$87:$K$95,8,0) -> 
C55: 1 | D55: Court hours committed to being free | J55: % of court hours you expect to be free for use
B56: 42 | C56: 1 | D56: Expected % of court hours sold for pay and play | J56: Based on total court hours across the year | R56: ='Case Studies'!$AS$81 -> 0.07001787303
C57: 1 | D57: Expected % of households that buy a season ticket | J57: Comparative figures are based on the average for all areas of deprivation. Note that the number of households can be calculated by taking the penetration and dividing by 2.4 | R57: =+'Case Studies'!$AW$81 -> 0.2274281712
C58: 1
C59: 1
C60: 1
C61: 1 | D61: Plausable annual profit | G61: =TEXT(G81,"£#,###")&IF(G81<0," loss"," profit") -> £ profit
C62: 1
C63: 1
C64: 1 | D64: Income
C65: =IF($G$18="yes",0,1) -> 1 | D65: - Pay and play | G65: =IF(G18="yes",0,G52*G27*G56*(1-G55)) -> 0
C66: 1 | D66: - Season tickets | G66: =IF(G18="yes",0,G54*G16/2.4*G57) -> 0
C67: 1 | D67: =IF(G18="yes","- Agreement fee","- Coaching") -> - Coaching | J67: ="Enter the annual income expected if there is an agreement to hire courts to "&IF(G18="yes","an operator","a local coach") -> Enter the annual income expected if there is an agreement to hire courts to a local coach
C68: =IF(G18="no",1,0) -> 0 | J68: Click here for the coach programming tool
C69: 1 | D69: Total income | G69: =SUM(G65:G67) -> 0
C70: 1
C71: 1 | D71: Costs
C72: =IF($G$18="yes",0,1) -> 1 | D72: '- Clubspark and Payment Fees | G72: =IF(G18="yes",0,IFERROR((G65/G52)*CSfee_1+G65*CSfee_2+G66*CSfee_3,0)) -> 0 | J72: ClubSpark (booking platform) charge 1.4% + 5p per transaction, Stripe (payment platform) charge 1.4% + 20p per transaction
C73: =IF($G$18="yes",0,1) -> 1 | D73: - Gate access maintenance | G73: =IFERROR(G30*VLOOKUP(G31,Inputs!B13:C15,2,0),0) -> 0
C74: =IF($G$18="yes",0,1) -> 1 | D74: - Code lock generator (lite systems only) | G74: =IF(G18="yes",0,IF(G31=SmartAccess_Lite,Inputs!C16*G27*G56+Inputs!C16*G27*G55,0)) -> 0
C75: 1 | D75: - Court sinking fund | G75: =G26*FL_SF+G25*NFL_SF -> 0
C76: 1 | D76: - Registration fees | G76: =60*(G25+G26) -> 0
C77: =IF($G$18="yes",0,1) -> 1 | D77: - Staffing costs | J77: Enter any staff costs specific to the site / reallocated from support costs
C78: 1 | D78: - Marketing costs | J78: Enter any specific marketing costs expected to reach participation levels
C79: 1 | D79: Total costs | G79: =SUM(G72:G78) -> 0
C80: 1
C81: 1 | D81: ="Net annual "&IF(G81<0,"loss","profit") -> Net annual profit | G81: =G69-G79 -> 0
C82: 1 | D82: Net annual profit per court | G82: =IFERROR(G81/SUM(G25:G26),0) -> 0
C83: 1
C84: 1
C85: 1 | D85: Plausable cashflow | G85: ="£"&TEXT(J106,"#,###")&" by year 5" -> £ by year 5
C86: 1
C87: 1
C88: =IF($G$18="yes",0,1) -> 1 | D88: Projected cashflow forecast is calculated below assuming: 1. Starting cash position is £0 2. Pay and play and season tickets sales in year 1 are at 70% of target 3. Sales reach target stated above by year 2 4. From year 5 onwards sales increase by 1% 5. Any loan is repaid over 10 years
C89: 1
C90: 1
C91: 1
C92: 1
C93: 1
C94: 1 | D94: 6. Click here for sinking fund calculator
C95: =IF($G$18="yes",1,0) -> 0 | D95: Projected cashflow forecast is calculated below assuming: 1. Starting cash position is £0 2. Agreement fee is paid at the full rate from year 1 3. Any loan is repaid over 10 years
C96: =IF($G$18="yes",1,0) -> 0
C97: =IF($G$18="yes",1,0) -> 0
C98: =IF($G$18="yes",1,0) -> 0
C99: =IF($G$18="yes",1,0) -> 0 | D99: 4. Click here for sinking fund calculator
C100: 1
C101: 1 | F101: Year 1 | G101: Year 2 | H101: Year 3 | I101: Year 4 | J101: Year 5 | K101: Year 10 | L101: Year 20
C102: 1 | D102: Starting cash position | F102: 0 | G102: =F106 -> 0 | H102: =G106 -> 0 | I102: 0 | J102: 0 | K102: =N117 -> 0 | L102: =X117 -> 0
C103: 1 | D103: Projected profit / (loss) | F103: =F113-F114 -> 0 | G103: =G113-G114 -> 0 | H103: =H113-H114 -> 0 | I103: =I113-I114 -> 0 | J103: =J113-J114 -> 0 | K103: =O113-O114 -> 0 | L103: =S113-S114 -> 0
C104: 1 | D104: LTA loan repayments | F104: =IF($G$17="no",0,-$G$44/10) -> 0 | G104: 0 | H104: 0 | I104: 0 | J104: 0 | K104: 0 | L104: 0
C105: 1 | D105: Net annual cashflow | F105: =SUM(F103:F104) -> 0 | G105: =SUM(G103:G104) -> 0 | H105: 0 | I105: 0 | J105: 0 | K105: 0 | L105: 0
C106: 1 | D106: Closing cash position after sinking fund | F106: =F105+F102 -> 0 | G106: =G105+G102 -> 0 | H106: 0 | I106: 0 | J106: 0 | K106: 0 | L106: 0
C107: 1
C108: 1
C109: 1
C110: 1
C111: 0 | F111: 1 | G111: 2 | H111: 3 | I111: 4 | J111: 5 | K111: 6 | L111: 7 | M111: 8 | N111: 9 | O111: 10 | P111: 11 | Q111: 12 | R111: 13 | S111: 14 | T111: 15 | U111: 16 | V111: 17 | W111: 18 | X111: 19 | Y111: 20
C112: 0 | D112: P&P % court hours | F112: =G112*0.7 -> 0 | G112: =G56 -> 0 | H112: =G112 -> 0 | I112: =H112 -> 0 | J112: =+I112+1% -> 0.01 | K112: 0.02 | L112: 0.03 | M112: 0.04 | N112: 0.05 | O112: 0.06 | P112: 0.07 | Q112: 0.08 | R112: 0.09 | S112: =+R112+1% -> 0.1 | T112: 0.11 | U112: 0.12 | V112: 0.13 | W112: 0.14 | X112: 0.15 | Y112: 0.16
C113: 0 | D113: Sales | F113: =IFERROR($G$65/$G$56*F112,0)+SUM($G$66)*70%+$G$67 -> 0 | G113: =IFERROR($G$65/$G$56*G112,0)+SUM($G$66)+$G$67 -> 0 | H113: =IFERROR($G$65/$G$56*H112,0)+SUM($G$66)+$G$67 -> 0 | I113: 0 | J113: 0 | K113: 0 | L113: 0 | M113: 0 | N113: 0 | O113: 0 | P113: 0 | Q113: 0 | R113: 0 | S113: 0 | T113: 0 | U113: 0 | V113: 0 | W113: 0 | X113: 0 | Y113: 0
C114: 0 | D114: Costs | F114: =IFERROR(SUM($G$72)/$G$56*F112,0)+SUM($G$73:$I$78) -> 0 | G114: 0 | H114: 0 | I114: 0 | J114: 0 | K114: 0 | L114: 0 | M114: 0 | N114: 0 | O114: 0 | P114: 0 | Q114: 0 | R114: 0 | S114: 0 | T114: 0 | U114: 0 | V114: 0 | W114: 0 | X114: 0 | Y114: 0
C115: 0 | D115: Loan repayment | F115: =IF($G$17="no",0,$G$44/10) -> 0 | G115: 0 | H115: 0 | I115: 0 | J115: 0 | K115: 0 | L115: 0 | M115: 0 | N115: 0 | O115: 0
C116: 0 | D116: net cash | F116: =F113-F114-F115 -> 0 | G116: 0 | H116: 0 | I116: 0 | J116: 0 | K116: 0 | L116: 0 | M116: 0 | N116: 0 | O116: 0 | P116: 0 | Q116: 0 | R116: 0 | S116: 0 | T116: 0 | U116: 0 | V116: 0 | W116: 0 | X116: 0 | Y116: 0
C117: 0 | D117: closing cash | F117: =F116 -> 0 | G117: =F117+G116 -> 0 | H117: 0 | I117: 0 | J117: 0 | K117: 0 | L117: 0 | M117: 0 | N117: 0 | O117: 0 | P117: 0 | Q117: 0 | R117: 0 | S117: =R117+S116 -> 0 | T117: 0 | U117: 0 | V117: 0 | W117: 0 | X117: 0 | Y117: 0
C118: 0
C119: 1
C120: 1
C121: 1
C122: 1
C123: 1

Sheet Venue 15
E3: ="LTA Local Authority Parks Toolkit"&IF(ISBLANK(G13),""," - Site "&G13) -> LTA Local Authority Parks Toolkit
D6: It is recommended that this form is completed with the assistance of a PDP, in order to produce the most accurate forecast. As a guide there are case studies online that will help with operating models and court rates.
D9: Site Background
C10: 1
C11: 1
C12: 1 | D12: Local Authority | G12: ='Venue 1'!G12 -> 0
C13: 1 | D13: Site Name
C14: 1 | D14: Postcode
C15: 1 | D15: Deprivation Index | J15: Use this tool to determine the index: | M15: http://imd-by-postcode.opendatacommunities.org/
C16: 1 | D16: Penetration | G16: 700 | J16: Pre-set to 700, will be updated by your local Participation Development Partner
C17: 1 | D17: Court upgrade works required?
C18: 1 | D18: Venue operations outsourced? | J18: If you plan to lease out all operations (court bookings, season tickets & coaching) please select "yes" here
C19: 1
C20: 1
C21: 1 | D21: Court Information
C22: 1
C23: 1
C24: 1 | D24: Courts at the venue
C25: 1 | D25: Number of non floodlit courts | J25: Total at the end of the project
C26: 1 | D26: Number of floodlit courts | J26: Total at the end of the project
C27: 1 | D27: Total available court hours | G27: =G26*FL_CH+G25*NFL_CH -> 0
C28: 1
C29: 1 | D29: Gates required
C30: 1 | D30: Number of gates required | J30: All gate access systems must be the same at each venue
C31: 1 | D31: Type of gate system required | J31: See the LTA website for details of the different gates
D32: If solar chosen grant funded by LTA?
C33: =IF(G17="yes",1,0) -> 0 | J33: https://www.lta.org.uk/globalassets/venue/ready-to-rally-brochure---parks.pdf
C34: =C33 -> 0 | D34: Court upgrade works
C35: 0 | D35: Do you know the exact cost of renovation?
C36: =IF(G35="yes",1,0) -> 0 | D36: Expected cost of project
C37: =IF(G35="yes",0,IF(G17="yes",1,0)) -> 0 | D37: Level of court renovation required
C38: 0 | D38: Number of courts to be renovated
C39: 0 | D39: Cost of fencing / other costs | J39: Replacement of 1 x 3m chain link fence panel = c£250
C40: =C37 -> 0 | D40: New LED floodlights | J40: Number of courts needing New LED floodlight installation (£15,000/court)
C41: =C40 -> 0 | D41: Conversion to LED floodlights | J41: Number of courts needing conversion to LED floodlights (£10,000/court)
C42: 0 | D42: Expected cost of project | G42: =IFERROR(VLOOKUP(G37,Inputs!$B$22:$C$27,2,0)*G38,0)+'Venue 15'!G40*Inputs!C29+'Venue 15'!G41*Inputs!C30+G39 -> 0 | J42: Calculated based on inputs above - note this is an estimate
C43: =C34 -> 0 | D43: Capital funding available | J43: For example from Sport England, local charities, own reserves
C44: =C43 -> 0 | D44: Loan required from LTA* | G44: =IF(ISBLANK(G42),"",IF(G35="yes",G36-G43,G42-G43)) -> 0
C45: =C43 -> 0 | D45: *There are specific conditions required in order to apply for LTA loan funding. Please speak to your PDP or visit our website for the type of investments we support (see link below)
C46: =C44 -> 0 | D46: https://www.lta.org.uk/workforce-venues/tennis-venue-support/tennis-and-padel-facility-funding-and-advice/quick-access-loan-scheme/
C47: 0 | T47: Max | U47: Max | V47: Max | W47: Min | X47: Min | Y47: Min
C48: 0 | T48: =IF($G$15>0,IF(G15<3,2,IF(G15=10,8,$G$15-1)),"") ->  | U48: =IF($G$15>0,T48+1,"") ->  | V48: =IF($G$15>0,U48+1,"") ->  | W48: =T48 -> 
C49: =IF($G$18="yes",0,1) -> 1 | R49: Comparison
C50: =C49 -> 1 | R50: ="Range for IMD levels "&T48&" - "&V48 -> Range for IMD levels -
C51: 1 | D51: Income assumptions
B52: 10 | C52: 1 | D52: Court cost per hour (non FL) | J52: Pay and play for non floodlit courts | R52: =IFERROR("£"&MIN(W52:Y52)&" - £"&MAX(T52:V52),"") ->  | T52: =VLOOKUP(T$48,'Case Studies'!$D$87:$K$95,4,0) ->  | U52: =VLOOKUP(U$48,'Case Studies'!$D$87:$K$95,4,0) ->  | V52: =VLOOKUP(V$48,'Case Studies'!$D$87:$K$95,4,0) ->  | W52: =VLOOKUP(W$48,'Case Studies'!$D$87:$K$95,5,0) ->  | X52: =VLOOKUP(X$48,'Case Studies'!$D$87:$K$95,5,0) ->  | Y52: =VLOOKUP(Y$48,'Case Studies'!$D$87:$K$95,5,0) -> 
B53: 9 | C53: 1 | D53: Court cost per hour (FL) | J53: Pay and play for floodlit courts. Usually £2-£3 more expensive than non floodlit | T53: =VLOOKUP(T$48,'Case Studies'!$D$87:$K$95,2,0) ->  | U53: =VLOOKUP(U$48,'Case Studies'!$D$87:$K$95,2,0) ->  | V53: =VLOOKUP(V$48,'Case Studies'!$D$87:$K$95,2,0) ->  | W53: =VLOOKUP(W$48,'Case Studies'!$D$87:$K$95,3,0) ->  | X53: =VLOOKUP(X$48,'Case Studies'!$D$87:$K$95,3,0) ->  | Y53: =VLOOKUP(Y$48,'Case Studies'!$D$87:$K$95,3,0) -> 
B54: 13 | C54: 1 | D54: Season ticket cost | J54: Annual price for a household | T54: =VLOOKUP(T$48,'Case Studies'!$D$87:$K$95,7,0) ->  | U54: =VLOOKUP(U$48,'Case Studies'!$D$87:$K$95,7,0) ->  | V54: =VLOOKUP(V$48,'Case Studies'!$D$87:$K$95,7,0) ->  | W54: =VLOOKUP(W$48,'Case Studies'!$D$87:$K$95,8,0) ->  | X54: =VLOOKUP(X$48,'Case Studies'!$D$87:$K$95,8,0) ->  | Y54: =VLOOKUP(Y$48,'Case Studies'!$D$87:$K$95,8,0) -> 
C55: 1 | D55: Court hours committed to being free | J55: % of court hours you expect to be free for use
B56: 42 | C56: 1 | D56: Expected % of court hours sold for pay and play | J56: Based on total court hours across the year | R56: ='Case Studies'!$AS$81 -> 0.07001787303
C57: 1 | D57: Expected % of households that buy a season ticket | J57: Comparative figures are based on the average for all areas of deprivation. Note that the number of households can be calculated by taking the penetration and dividing by 2.4 | R57: =+'Case Studies'!$AW$81 -> 0.2274281712
C58: 1
C59: 1
C60: 1
C61: 1 | D61: Plausable annual profit | G61: =TEXT(G81,"£#,###")&IF(G81<0," loss"," profit") -> £ profit
C62: 1
C63: 1
C64: 1 | D64: Income
C65: =IF($G$18="yes",0,1) -> 1 | D65: - Pay and play | G65: =IF(G18="yes",0,G52*G27*G56*(1-G55)) -> 0
C66: 1 | D66: - Season tickets | G66: =IF(G18="yes",0,G54*G16/2.4*G57) -> 0
C67: 1 | D67: =IF(G18="yes","- Agreement fee","- Coaching") -> - Coaching | J67: ="Enter the annual income expected if there is an agreement to hire courts to "&IF(G18="yes","an operator","a local coach") -> Enter the annual income expected if there is an agreement to hire courts to a local coach
C68: =IF(G18="no",1,0) -> 0 | J68: Click here for the coach programming tool
C69: 1 | D69: Total income | G69: =SUM(G65:G67) -> 0
C70: 1
C71: 1 | D71: Costs
C72: =IF($G$18="yes",0,1) -> 1 | D72: '- Clubspark and Payment Fees | G72: =IF(G18="yes",0,IFERROR((G65/G52)*CSfee_1+G65*CSfee_2+G66*CSfee_3,0)) -> 0 | J72: ClubSpark (booking platform) charge 1.4% + 5p per transaction, Stripe (payment platform) charge 1.4% + 20p per transaction
C73: =IF($G$18="yes",0,1) -> 1 | D73: - Gate access maintenance | G73: =IFERROR(G30*VLOOKUP(G31,Inputs!B13:C15,2,0),0) -> 0
C74: =IF($G$18="yes",0,1) -> 1 | D74: - Code lock generator (lite systems only) | G74: =IF(G18="yes",0,IF(G31=SmartAccess_Lite,Inputs!C16*G27*G56+Inputs!C16*G27*G55,0)) -> 0
C75: 1 | D75: - Court sinking fund | G75: =G26*FL_SF+G25*NFL_SF -> 0
C76: 1 | D76: - Registration fees | G76: =60*(G25+G26) -> 0
C77: =IF($G$18="yes",0,1) -> 1 | D77: - Staffing costs | J77: Enter any staff costs specific to the site / reallocated from support costs
C78: 1 | D78: - Marketing costs | J78: Enter any specific marketing costs expected to reach participation levels
C79: 1 | D79: Total costs | G79: =SUM(G72:G78) -> 0
C80: 1
C81: 1 | D81: ="Net annual "&IF(G81<0,"loss","profit") -> Net annual profit | G81: =G69-G79 -> 0
C82: 1 | D82: Net annual profit per court | G82: =IFERROR(G81/SUM(G25:G26),0) -> 0
C83: 1
C84: 1
C85: 1 | D85: Plausable cashflow | G85: ="£"&TEXT(J106,"#,###")&" by year 5" -> £ by year 5
C86: 1
C87: 1
C88: =IF($G$18="yes",0,1) -> 1 | D88: Projected cashflow forecast is calculated below assuming: 1. Starting cash position is £0 2. Pay and play and season tickets sales in year 1 are at 70% of target 3. Sales reach target stated above by year 2 4. From year 5 onwards sales increase by 1% 5. Any loan is repaid over 10 years
C89: 1
C90: 1
C91: 1
C92: 1
C93: 1
C94: 1 | D94: 6. Click here for sinking fund calculator
C95: =IF($G$18="yes",1,0) -> 0 | D95: Projected cashflow forecast is calculated below assuming: 1. Starting cash position is £0 2. Agreement fee is paid at the full rate from year 1 3. Any loan is repaid over 10 years
C96: =IF($G$18="yes",1,0) -> 0
C97: =IF($G$18="yes",1,0) -> 0
C98: =IF($G$18="yes",1,0) -> 0
C99: =IF($G$18="yes",1,0) -> 0 | D99: 4. Click here for sinking fund calculator
C100: 1
C101: 1 | F101: Year 1 | G101: Year 2 | H101: Year 3 | I101: Year 4 | J101: Year 5 | K101: Year 10 | L101: Year 20
C102: 1 | D102: Starting cash position | F102: 0 | G102: =F106 -> 0 | H102: =G106 -> 0 | I102: 0 | J102: 0 | K102: =N117 -> 0 | L102: =X117 -> 0
C103: 1 | D103: Projected profit / (loss) | F103: =F113-F114 -> 0 | G103: =G113-G114 -> 0 | H103: =H113-H114 -> 0 | I103: =I113-I114 -> 0 | J103: =J113-J114 -> 0 | K103: =O113-O114 -> 0 | L103: =S113-S114 -> 0
C104: 1 | D104: LTA loan repayments | F104: =IF($G$17="no",0,-$G$44/10) -> 0 | G104: 0 | H104: 0 | I104: 0 | J104: 0 | K104: 0 | L104: 0
C105: 1 | D105: Net annual cashflow | F105: =SUM(F103:F104) -> 0 | G105: =SUM(G103:G104) -> 0 | H105: 0 | I105: 0 | J105: 0 | K105: 0 | L105: 0
C106: 1 | D106: Closing cash position after sinking fund | F106: =F105+F102 -> 0 | G106: =G105+G102 -> 0 | H106: 0 | I106: 0 | J106: 0 | K106: 0 | L106: 0
C107: 1
C108: 1
C109: 1
C110: 1
C111: 0 | F111: 1 | G111: 2 | H111: 3 | I111: 4 | J111: 5 | K111: 6 | L111: 7 | M111: 8 | N111: 9 | O111: 10 | P111: 11 | Q111: 12 | R111: 13 | S111: 14 | T111: 15 | U111: 16 | V111: 17 | W111: 18 | X111: 19 | Y111: 20
C112: 0 | D112: P&P % court hours | F112: =G112*0.7 -> 0 | G112: =G56 -> 0 | H112: =G112 -> 0 | I112: =H112 -> 0 | J112: =+I112+1% -> 0.01 | K112: 0.02 | L112: 0.03 | M112: 0.04 | N112: 0.05 | O112: 0.06 | P112: 0.07 | Q112: 0.08 | R112: 0.09 | S112: =+R112+1% -> 0.1 | T112: 0.11 | U112: 0.12 | V112: 0.13 | W112: 0.14 | X112: 0.15 | Y112: 0.16
C113: 0 | D113: Sales | F113: =IFERROR($G$65/$G$56*F112,0)+SUM($G$66)*70%+$G$67 -> 0 | G113: =IFERROR($G$65/$G$56*G112,0)+SUM($G$66)+$G$67 -> 0 | H113: =IFERROR($G$65/$G$56*H112,0)+SUM($G$66)+$G$67 -> 0 | I113: 0 | J113: 0 | K113: 0 | L113: 0 | M113: 0 | N113: 0 | O113: 0 | P113: 0 | Q113: 0 | R113: 0 | S113: 0 | T113: 0 | U113: 0 | V113: 0 | W113: 0 | X113: 0 | Y113: 0
C114: 0 | D114: Costs | F114: =IFERROR(SUM($G$72)/$G$56*F112,0)+SUM($G$73:$I$78) -> 0 | G114: 0 | H114: 0 | I114: 0 | J114: 0 | K114: 0 | L114: 0 | M114: 0 | N114: 0 | O114: 0 | P114: 0 | Q114: 0 | R114: 0 | S114: 0 | T114: 0 | U114: 0 | V114: 0 | W114: 0 | X114: 0 | Y114: 0
C115: 0 | D115: Loan repayment | F115: =IF($G$17="no",0,$G$44/10) -> 0 | G115: 0 | H115: 0 | I115: 0 | J115: 0 | K115: 0 | L115: 0 | M115: 0 | N115: 0 | O115: 0
C116: 0 | D116: net cash | F116: =F113-F114-F115 -> 0 | G116: 0 | H116: 0 | I116: 0 | J116: 0 | K116: 0 | L116: 0 | M116: 0 | N116: 0 | O116: 0 | P116: 0 | Q116: 0 | R116: 0 | S116: 0 | T116: 0 | U116: 0 | V116: 0 | W116: 0 | X116: 0 | Y116: 0
C117: 0 | D117: closing cash | F117: =F116 -> 0 | G117: =F117+G116 -> 0 | H117: 0 | I117: 0 | J117: 0 | K117: 0 | L117: 0 | M117: 0 | N117: 0 | O117: 0 | P117: 0 | Q117: 0 | R117: 0 | S117: =R117+S116 -> 0 | T117: 0 | U117: 0 | V117: 0 | W117: 0 | X117: 0 | Y117: 0
C118: 0
C119: 1
C120: 1
C121: 1
C122: 1
C123: 1

Sheet LA Overview
D3: LTA Local Authority Parks Toolkit - Overview
C9: Site Background
C12: Local Authority | F12: =IF(ISBLANK('Venue 1'!G12),"",'Venue 1'!G12) -> 
C13: Total Penetration | F13: =SUM('Venue 1:Venue 15'!G16:I16) -> 10500 | I13: Total for the venues
C16: Court Information
C19: Courts at the venues
C20: Number of non floodlit courts | F20: =SUM('Venue 1:Venue 15'!G25:I25) -> 0 | I20: Total at the end of the project
C21: Number of floodlit courts | F21: =SUM('Venue 1:Venue 15'!G26:I26) -> 0 | I21: Total at the end of the project
C22: Total available court hours | F22: =F21*FL_CH+F20*NFL_CH -> 0
C24: Gates required
C25: Number of gates required | F25: =SUM('Venue 1:Venue 15'!G30:I30) -> 0
C26: Type of gate system required | F26: SmartAccess Premium | I26: See the LTA website for details of the different gates
C28: Court upgrade works
C29: Level of renovation required | F29: None
C30: Number of courts to be renovated | F30: =SUM('Venue 1:Venue 15'!G38:I38) -> 0
C31: New LED floodlights | F31: =SUM('Venue 1:Venue 15'!G40:I40) -> 0 | I31: Number of courts needing New LED floodlight installation (£15,000/court)
C32: Conversion to LED floodlights | F32: =SUM('Venue 1:Venue 15'!G41:I41) -> 0 | I32: Number of courts needing conversion to LED floodlights (£10,000/court)
C33: Expected cost of project | F33: =SUM('Venue 1:Venue 15'!G42:I42) -> 0 | I33: Calculated based on inputs above - note this is an estimate
C34: Capital funding available | F34: =SUM('Venue 1:Venue 15'!G43:I43) -> 0 | I34: For example from Sport England, local charities, own reserves
C35: Loan required from LTA* | F35: =SUM('Venue 1:Venue 15'!G44:I44) -> 0
C36: *There are specific conditions required in order to apply for LTA loan funding. Please speak to your PDP or visit our website for the type of investments we support (see link below)
C37: https://www.lta.org.uk/workforce-venues/tennis-venue-support/tennis-and-padel-facility-funding-and-advice/quick-access-loan-scheme/
C41: Income assumptions
B42: 10 | C42: Average court cost per hour (non FL) | F42: =IFERROR(AVERAGE('Venue 1:Venue 15'!G52:I52),"") ->  | I42: Pay and play for non floodlit courts
B43: 9 | C43: Average court cost per hour (FL) | F43: =IFERROR(AVERAGE('Venue 1:Venue 15'!G53:I53),"") ->  | I43: Pay and play for floodlit courts
B44: 13 | C44: Average season ticket cost | F44: =IFERROR(AVERAGE('Venue 1:Venue 15'!G54:I54),"") ->  | I44: Annual price for a household
C45: Average court hours committed to being free | F45: =IFERROR(AVERAGE('Venue 1:Venue 15'!G55:I55),"") ->  | I45: % of court hours you expect to be free for use
B46: 42 | C46: Expected % of court hours sold for pay and play | F46: =IFERROR(AVERAGE('Venue 1:Venue 15'!G56:I56),"") ->  | I46: Based on total court hours across the year
C47: Expected % of households that buy a season ticket | F47: =IFERROR(AVERAGE('Venue 1:Venue 15'!G57:I57),"") ->  | I47: Note that the number of households can be calculated by taking the penetration and dividing by 2.4
C51: Plausable annual profit | F51: =TEXT(F70,"£#,###")&IF(F70<0," loss"," profit") -> £ profit
C54: Income
C55: - Pay and play | F55: =SUM('Venue 1:Venue 15'!G65:I65) -> 0
C56: - Season tickets | F56: =SUM('Venue 1:Venue 15'!G66:I66) -> 0
C57: - Coaching / Agreement Fee | F57: =SUM('Venue 1:Venue 15'!G67:I67) -> 0
C58: Total income | F58: =SUM(F55:F57) -> 0
C60: Costs
C61: '- Clubspark and Payment Fees | F61: =SUM('Venue 1:Venue 15'!G72:I72) -> 0
C62: - Gate access maintenance | F62: =SUM('Venue 1:Venue 15'!G73:I73) -> 0
C63: - Code lock generator (lite systems only) | F63: =SUM('Venue 1:Venue 15'!G74:I74) -> 0
C64: - Court sinking fund | F64: =SUM('Venue 1:Venue 15'!G75:I75) -> 0
C65: - Registration fees | F65: =SUM('Venue 1:Venue 15'!G76:I76) -> 0
C66: - Staffing costs | F66: =SUM('Venue 1:Venue 15'!G77:I77) -> 0
C67: - Marketing costs | F67: =SUM('Venue 1:Venue 15'!G78:I78) -> 0
C68: Total costs | F68: =SUM(F61:F67) -> 0
C70: ="Net annual "&IF(F70<0,"loss","profit") -> Net annual profit | F70: =F58-F68 -> 0
C71: Net annual profit per court | F71: =IFERROR(F70/SUM(F20:F21),0) -> 0
C74: Plausable cashflow | F74: ="£"&TEXT(I93,"#,###")&" by year 5" -> £ by year 5
C77: Projected cashflow forecast is calculated below assuming: 1. Starting cash position is £0 2. Pay and play and season tickets sales in year 1 are at 70% of target 3. Sales reach target stated above by year 2 4. From year 5 onwards sales increase by 1% 5. Any loan is repaid over 10 years
C83: Projected cashflow forecast is calculated below assuming: 1. Starting cash position is £0 2. Agreement fee is paid at the full rate from year 1 3. Any loan is repaid over 10 years
E88: Year 1 | F88: Year 2 | G88: Year 3 | H88: Year 4 | I88: Year 5 | J88: Year 10 | K88: Year 20
C89: Starting cash position | E89: =SUM('Venue 1:Venue 15'!F102) -> 0 | F89: =SUM('Venue 1:Venue 15'!G102) -> 0 | G89: =SUM('Venue 1:Venue 15'!H102) -> 0 | H89: =SUM('Venue 1:Venue 15'!I102) -> 0 | I89: =SUM('Venue 1:Venue 15'!J102) -> 0 | J89: =SUM('Venue 1:Venue 15'!K102) -> 0 | K89: =SUM('Venue 1:Venue 15'!L102) -> 0
C90: Projected profit / (loss) | E90: =SUM('Venue 1:Venue 15'!F103) -> 0 | F90: =SUM('Venue 1:Venue 15'!G103) -> 0 | G90: =SUM('Venue 1:Venue 15'!H103) -> 0 | H90: =SUM('Venue 1:Venue 15'!I103) -> 0 | I90: =SUM('Venue 1:Venue 15'!J103) -> 0 | J90: =SUM('Venue 1:Venue 15'!K103) -> 0 | K90: =SUM('Venue 1:Venue 15'!L103) -> 0
C91: LTA loan repayments | E91: =SUM('Venue 1:Venue 15'!F104) -> 0 | F91: =SUM('Venue 1:Venue 15'!G104) -> 0 | G91: =SUM('Venue 1:Venue 15'!H104) -> 0 | H91: =SUM('Venue 1:Venue 15'!I104) -> 0 | I91: =SUM('Venue 1:Venue 15'!J104) -> 0 | J91: =SUM('Venue 1:Venue 15'!K104) -> 0 | K91: =SUM('Venue 1:Venue 15'!L104) -> 0
C92: Net annual cashflow | E92: =SUM('Venue 1:Venue 15'!F105) -> 0 | F92: =SUM('Venue 1:Venue 15'!G105) -> 0 | G92: =SUM('Venue 1:Venue 15'!H105) -> 0 | H92: =SUM('Venue 1:Venue 15'!I105) -> 0 | I92: =SUM('Venue 1:Venue 15'!J105) -> 0 | J92: =SUM('Venue 1:Venue 15'!K105) -> 0 | K92: =SUM('Venue 1:Venue 15'!L105) -> 0
C93: Closing cash position | E93: =E92+E89 -> 0 | F93: =F92+F89 -> 0 | G93: 0 | H93: 0 | I93: 0 | J93: 0 | K93: 0

Sheet Case Studies (hidden)
C2: Venue Name | D2: Deprivation Index | E2: Penetration | F2: Achieved Reach (play 1x per year) | G2: No. of Floodlit courts | H2: No. of Non-Floodlit courts | I2: Available court hours P/A | J2: Number of Hours Booked Annually | K2: Percentage of Court time used | L2: Charge Per Hour per Floodlit court | M2: Charge per Hour per non-floodlit court | N2: Number of Season Tickets Sold | O2: Number of people using season tickets (sold x 2.4) | P2: Season Ticket Cost | Q2: Percentage of penetration season tickets sold to | R2: Percentage of Penetration that Season Tickets can be used by | S2: Income though court bookings | T2: Income through Season Ticket Sales | U2: Income through coaching | V2: Total income | W2: Gate Maintenance Costs | X2: Sinking fund commitments | Y2: Loan reayments | Z2: Total costs | AA2: Profit/loss | AB2: Narative | AR2: using same metrics as Worksheet what would maximum Court booking income be? | AS2: achieved court income percentage | AT2: # of bookings through pay and play | AU2: % of total court hours available | AV2: using same metrics as Worksheet what would Season ticket income be? | AW2: achieved season ticket income percentage | AX2: total Max possible income | AY2: Percentage of Court Bookings by Season Ticket Holders | AZ2: percentage of maximum income achieved | BA2: net profit per court
A3: Ladywell Fields | B3: Case Study 1 | D3: 2 | E3: 1086 | F3: 1720 | G3: 4 | H3: 1 | I3: =SUM(G3*4368)+(H3*3504) -> 20976 | J3: 11872 | K3: =SUM(J3/I3) -> 0.5659801678 | L3: 10 | M3: 5 | N3: 377 | O3: =(N3*2.4) -> 904.8 | P3: 35 | Q3: =SUM(N3/E3) -> 0.347145488 | R3: =SUM(O3/E3) -> 0.8331491713 | S3: 7303 | T3: 7044 | U3: 0 | V3: 14347 | X3: 8400 | Z3: 8400 | AA3: 5947 | AR3: =SUM(I3*M3) -> 104880 | AS3: =S3/AR3 -> 0.06963196034 | AV3: =SUM((E3/2.4)*P3) -> 15837.5 | AW3: =T3/AV3 -> 0.4447671665 | AX3: =SUM(AR3+AV3) -> 120717.5 | AZ3: =SUM(V3/AX3) -> 0.118847723 | BA3: =AA3/SUM(G3:H3) -> 1189.4
A4: Mayow Park | B4: SE232XR | D4: 2 | E4: 896 | G4: 0 | H4: 2 | I4: 6978 | J4: 3514 | K4: 0.5 | L4: 5 | N4: 206 | O4: 206 | P4: 35 | Q4: 0.23 | R4: 0.23 | S4: 2805 | T4: 7044 | U4: 0 | V4: 9849 | X4: 2400 | Z4: 2400 | AA4: 7449
A5: Gooseley Playing Fields | B5: E6 6AW | D5: 2 | E5: 1043 | G5: 0 | H5: 4 | I5: 13956 | J5: 654 | K5: 0.05 | L5: 6 | N5: 146 | O5: 350 | P5: 30 | Q5: 0.14 | R5: 0.34 | S5: 435 | T5: 5084 | U5: 0 | V5: 5519 | X5: 4800 | Z5: 4800 | AA5: 719 | AF5: 83736 | AG5: 0.01 | AH5: 13037.5 | AI5: 0.39 | AJ5: 96773.5 | AL5: 0.057
A6: Boscawen Park | B6: TR1 1SG | D6: 2 | E6: 247 | F6: 576 | G6: 2 | H6: 6 | I6: =SUM(G6*4368)+(H6*3504) -> 29760 | J6: 2990 | K6: =SUM(J6/I6) -> 0.1004704301 | L6: 6 | M6: 6 | N6: 207 | O6: =(N6*2.4) -> 496.8 | P6: 35 | Q6: =SUM(N6/E6) -> 0.8380566802 | R6: =SUM(O6/E6) -> 2.011336032 | S6: 5628 | T6: 7245 | U6: 0 | V6: =SUM(S6:U6) -> 12873 | W6: 700 | X6: =SUM((G6*1800)+(H6*1200)) -> 10800 | Y6: 0 | Z6: =SUM(W6:X6) -> 11500 | AA6: =SUM(V6-Z6) -> 1373 | AB6: 4 gates, café, next to cricket and sports facilities, car park, | AR6: =SUM(I6*M6) -> 178560 | AS6: =S6/AR6 -> 0.0315188172 | AV6: =SUM((E6/2.4)*P6) -> 3602.083333 | AW6: =T6/AV6 -> 2.011336032 | AX6: =SUM(AR6+AV6) -> 182162.0833 | AZ6: =SUM(V6/AX6) -> 0.07066783474 | BA6: =AA6/SUM(G6:H6) -> 171.625
A7: Eastville Park | B7: BS5 6PX | D7: 2 | E7: 3831 | F7: 724 | G7: 0 | H7: 2 | I7: 7008 | J7: 3689 | K7: 0.5263984018 | M7: 5 | N7: 383 | O7: 919.2 | P7: 35 | Q7: 0.09997389715 | R7: 0.2399373532 | S7: 3100 | T7: 11421 | U7: 0 | V7: =SUM(S7:U7) -> 14521 | W7: 700 | X7: =SUM((G7*1800)+(H7*1200)) -> 2400 | Y7: 0 | Z7: =SUM(W7:Y7) -> 3100 | AA7: =SUM(V7-Z7) -> 11421
A8: Ravenscourt Gardens | B8: Case Study 2 | D8: 2 | E8: 778 | F8: 1070 | G8: 0 | H8: 7 | I8: 24528 | J8: 11828 | K8: 0.4822243966 | M8: 10.6 | N8: 0 | O8: 0 | Q8: 0 | R8: 0 | S8: 36545 | T8: 0 | U8: 0 | V8: =SUM(S8:U8) -> 36545 | W8: 2100 | X8: 8400 | Y8: 0 | Z8: =SUM(W8:X8) -> 10500 | AA8: =SUM(V8-Z8) -> 26045 | AB8: Free membership model. Players need to join for free then pay a court fee to book. Overall membership figures divided by 7 venues | AR8: =SUM(I8*M8) -> 259996.8 | AS8: =S8/AR8 -> 0.1405594223 | AV8: =SUM((E8/2.4)*P8) -> 0 | AW8: =IFERROR((T8/AV8),"0") -> 0 | AX8: 259996.8 | AZ8: =SUM(V8/AX8) -> 0.1405594223 | BA8: =AA8/SUM(G8:H8) -> 3720.714286
A9: Sydenham Wells Park | B9: SE26 6JQ | D9: 3 | E9: 675 | G9: 0 | H9: 2 | I9: 6978 | J9: 2653 | K9: 0.38 | N9: 206 | O9: 206 | P9: 35 | Q9: 0.31 | R9: 0.31 | S9: 0 | T9: 7044 | U9: 0 | V9: 7044 | X9: 2400 | Z9: 2400 | AA9: 4644
A10: Bournemouth Gardens | B10: Case Study 5 | D10: 3 | E10: 2212 | F10: 1090 | G10: 5 | H10: 3 | I10: 32352 | J10: 19105 | K10: 0.590535361 | L10: 10 | M10: 10 | N10: 226 | O10: 542.4 | P10: 75 | Q10: 0.1021699819 | R10: 0.2452079566 | S10: 4924 | T10: 15795 | U10: 0 | V10: 20719 | W10: 2100 | X10: 12600 | Y10: 0 | Z10: 14700 | AA10: =SUM(V10-Z10) -> 6019 | AB10: indoor courts | AR10: =SUM(I10*M10) -> 323520 | AS10: =S10/AR10 -> 0.01522007913 | AV10: =SUM((E10/2.4)*P10) -> 69125 | AW10: =IFERROR((T10/AV10),"0") -> 0.2284990958 | AX10: 392645 | AZ10: =SUM(V10/AX10) -> 0.05276776732 | BA10: =AA10/SUM(G10:H10) -> 752.375
A11: West Ham Park | B11: Case Study 4 | D11: 3 | E11: 3321 | F11: 1790 | G11: 0 | H11: 12 | I11: 42048 | J11: 11618 | K11: 0.2763032725 | M11: 7 | N11: 244 | O11: 585.6 | P11: 30 | Q11: 0.07347184583 | R11: 0.17633243 | S11: 11344 | T11: 7368 | U11: 5000 | V11: 23712 | W11: 2800 | X11: 14400 | Y11: 0 | Z11: 17200 | AA11: =SUM(V11-Z11) -> 6512 | AB11: Idverde pay £5k for what? £5k per year for coaching programme only | AR11: 294294 | AS11: 0.03854648753 | AV11: 41512.5 | AW11: 0.1774887082 | AX11: 335806.5 | AZ11: 0.08057248874 | BA11: =AA11/SUM(G11:H11) -> 542.6666667
A12: Stratford Park | B12: E15 4PT | D12: 3 | E12: 3189 | G12: 6 | H12: 0 | I12: 26280 | J12: 9250 | K12: 0.35 | L12: 6 | M12: 6 | N12: 146 | O12: 350 | P12: 30 | Q12: 0.05 | R12: 0.11 | S12: 9983 | T12: 5084 | U12: 0 | V12: 15067 | X12: 10800 | Z12: 10800 | AA12: 4267
A13: Abbotts Park | B13: E10 6HT | D13: 3 | E13: 3123 | G13: 0 | H13: 4 | I13: 13956 | J13: 3460 | K13: 0.25 | L13: 5 | N13: 188 | O13: 188 | P13: 38 | Q13: 0.06 | R13: 0.06 | S13: 2385 | T13: 4583 | U13: 0 | V13: 6968 | X13: 4800 | Z13: 4800 | AA13: 2168
A14: King Georges Field | B14: TW10 7RS | D14: 3 | E14: 149 | G14: 0 | H14: 4 | I14: 13956 | J14: 185 | K14: 0.01 | L14: 8 | N14: 129 | O14: 310 | P14: 50 | Q14: 0.87 | R14: 2.08 | S14: 228 | T14: 6295 | U14: 0 | V14: 6523 | X14: 4800 | Z14: 4800 | AA14: 1723
A15: Hurlingham Park | B15: SW6 3DP | D15: 4 | E15: 1016 | G15: 0 | H15: 3 | I15: 10467 | J15: 2831 | K15: 0.27 | L15: 11 | N15: 0 | O15: 4150 | P15: 0 | Q15: 0 | R15: 4.08 | S15: 15572 | T15: 0 | U15: 0 | V15: 15572 | X15: 3600 | Z15: 3600 | AA15: 11972
A16: Ridgeway Park | B16: E4 6XU | D16: 4 | E16: 947 | G16: 6 | H16: 1 | I16: 29769 | J16: 1777 | K16: 0.06 | L16: 6 | M16: 6 | N16: 188 | O16: 188 | P16: 38 | Q16: 0.2 | R16: 0.2 | S16: 7114 | T16: 4583 | U16: 0 | V16: 11697 | X16: 12000 | Z16: 12000 | AA16: -303
A17: Kingston Road Recreation Ground | B17: KT3 3RY | D17: 4 | E17: 1690 | G17: 0 | H17: 3 | I17: 10467 | J17: 567 | K17: 0.05 | L17: 5 | N17: 250 | O17: 600 | P17: 50 | Q17: 0.15 | R17: 0.36 | S17: 498 | T17: 12233 | U17: 0 | V17: 12731 | X17: 3600 | Z17: 3600 | AA17: 9131
A18: St Georges Park | B18: BS5 7AF | D18: 4 | E18: 2190 | F18: 1174 | G18: 0 | H18: 5 | I18: 17520 | J18: 9808 | K18: 0.5598173516 | M18: 5 | N18: 383 | O18: 919.2 | P18: 35 | Q18: 0.1748858447 | R18: =SUM(O18/E18) -> 0.4197260274 | S18: 5475 | T18: 11421 | U18: 0 | V18: 16896 | W18: 700 | X18: =SUM((G18*1800)+(H18*1200)) -> 6000 | Y18: 0 | Z18: =SUM(W18:Y18) -> 6700 | AA18: =SUM(V18-Z18) -> 10196
A19: Eaton Park | B19: Case Study 6 | D19: 4 | E19: 1187 | F19: 1710 | G19: 7 | H19: 0 | I19: 30576 | J19: 16097 | K19: 0.5264586604 | L19: 6 | M19: 6 | N19: 425 | O19: 1020 | P19: 30 | Q19: 0.3580454928 | R19: 0.8593091828 | S19: 4728 | T19: 9353 | U19: 12600 | V19: =SUM(S19:U19) -> 26681 | W19: 2100 | X19: 12600 | Y19: 0 | Z19: =SUM(W19:X19) -> 14700 | AA19: =SUM(V19-Z19) -> 11981 | AB19: Coaching Programme pays all of sinking fund. | AR19: =SUM(I19*M19) -> 183456 | AS19: =S19/AR19 -> 0.0257718472 | AV19: =SUM((E19/2.4)*P19) -> 14837.5 | AW19: =IFERROR((T19/AV19),"0") -> 0.6303622578 | AX19: 198293.5 | AZ19: =SUM(V19/AX19) -> 0.1345530741 | BA19: =AA19/SUM(G19:H19) -> 1711.571429
A20: Lyle Park | B20: E16 2AU | D20: 5 | E20: 345 | F20: 177 | G20: 0 | H20: 2 | I20: 7008 | J20: 2460 | K20: 0.3510273973 | M20: 8 | N20: 102 | O20: 244.8 | P20: 30 | Q20: 0.2956521739 | R20: 0.7095652174 | S20: 3126 | T20: 3052 | U20: 0 | V20: 6178 | W20: 700 | X20: 2400 | Y20: 0 | Z20: 3100 | AA20: 3078 | AB20: Part of Newham Venues | AR20: =SUM(I20*M20) -> 56064 | AS20: =S20/AR20 -> 0.05575770548 | AV20: =SUM((E20/2.4)*P20) -> 4312.5 | AW20: =IFERROR((T20/AV20),"0") -> 0.7077101449 | AX20: 60376.5 | AZ20: =SUM(V20/AX20) -> 0.1023245799 | BA20: =AA20/SUM(G20:H20) -> 1539
A21: Victoria Park Newbury | B21: RG14 1EL | D21: 5 | E21: 720 | F21: 452 | G21: 3 | H21: 0 | I21: 13104 | J21: 7539 | K21: 0.5753205128 | L21: 10 | M21: 10 | N21: 212 | O21: 508.8 | P21: 45 | Q21: 0.2944444444 | R21: 0.7066666667 | S21: 3544 | T21: 8859 | U21: 0 | V21: =SUM(S21:U21) -> 12403 | W21: 700 | X21: =SUM((G21*1800)+(H21*1200)) -> 5400 | Y21: 0 | Z21: =SUM(W21:Y21) -> 6100 | AA21: =SUM(V21-Z21) -> 6303
A22: Queen's Park Tennis Courts | B22: NW6 6SG | D22: 5 | E22: 2777 | F22: 432 | G22: 0 | H22: 6 | I22: 21024 | J22: 3637 | K22: 0.1729927702 | M22: 9 | N22: 146 | O22: 350.4 | P22: 29 | Q22: 0.05257472092 | R22: 0.1261793302 | S22: 31770 | T22: 4181 | U22: 0 | V22: =SUM(S22:U22) -> 35951 | W22: 700 | X22: =SUM((G22*1800)+(H22*1200)) -> 7200 | Y22: 0 | Z22: =SUM(W22:X22) -> 7900 | AA22: =SUM(V22-Z22) -> 28051 | AB22: Café next door + mini golf. | AR22: =SUM(I22*M22) -> 189216 | AS22: =S22/AR22 -> 0.1679033486 | AV22: =SUM((E22/2.4)*P22) -> 33555.41667 | AW22: =IFERROR((T22/AV22),"0") -> 0.1245998535 | AX22: 222771.4167 | AZ22: =SUM(V22/AX22) -> 0.1613806679 | BA22: =AA22/SUM(G22:H22) -> 4675.166667
A23: Eel Brook Common | B23: SW6 4QD | D23: 5 | E23: 1565 | G23: 0 | H23: 2 | I23: 6978 | J23: 2592 | K23: 0.37 | L23: 11 | N23: 0 | O23: 4150 | P23: 0 | Q23: 0 | R23: 2.65 | S23: 12418 | T23: 0 | U23: 0 | V23: 12418 | X23: 2400 | Z23: 2400 | AA23: 10018
A24: Central Park | B24: E6 3HN | D24: 5 | E24: 2566 | G24: 0 | H24: 3 | I24: 10467 | J24: 493 | K24: 0.05 | L24: 6 | N24: 146 | O24: 350 | P24: 30 | Q24: 0.06 | R24: 0.14 | S24: 390 | T24: 5084 | U24: 0 | V24: 5474 | X24: 3600 | Z24: 3600 | AA24: 1874
A25: Lloyd & Aveling Park | B25: E17 5EH | D25: 5 | E25: 1715 | G25: 0 | H25: 3 | I25: 10467 | J25: 3129 | K25: 0.3 | L25: 5 | N25: 188 | O25: 188 | P25: 38 | Q25: 0.11 | R25: 0.11 | S25: 2735 | T25: 4583 | U25: 0 | V25: 7318 | X25: 3600 | Z25: 3600 | AA25: 3718
A26: Rown Tree Park CYC | B26: Case Study 7 | D26: 6 | E26: 1604 | F26: 942 | G26: 0 | H26: 6 | I26: 21024 | J26: 3785 | K26: 0.180032344 | M26: 7.5 | N26: 282 | O26: 676.8 | P26: 75 | Q26: 0.1758104738 | R26: 0.4219451372 | S26: 5859 | T26: 7885 | U26: 0 | V26: 13744 | W26: 1400 | X26: =SUM((G26*1800)+(H26*1200)) -> 7200 | Y26: 0 | Z26: =SUM(W26:X26) -> 8600 | AA26: =SUM(V26-Z26) -> 5144 | AR26: 157680 | AS26: 0.03715753425 | AV26: 50125 | AW26: 0.1573067332 | AX26: 207805 | AZ26: 0.06613892832 | BA26: 857.3333333
A27: Brook Green Tennis Courts | B27: W6 7BD | D27: 6 | E27: 1086 | F27: 452 | G27: 0 | H27: 3 | I27: 10512 | J27: 8221 | K27: 0.7820585997 | M27: 10.6 | N27: 0 | O27: 0 | Q27: 0 | R27: 0 | S27: 62513.2 | T27: 0 | U27: 0 | V27: 62513.2 | W27: 700 | X27: 3600 | Y27: 0 | Z27: 4300 | AA27: 58213.2 | AB27: Club formed on site, free 'membership' 2 mini tennis courts, part of H&F network | AR27: 111427.2 | AS27: 0.5610228023 | AV27: 0 | AW27: 0 | AX27: 111427.2 | AZ27: 0.5610228023 | BA27: 19404.4
A28: Horsham park | B28: RH12 1 RL | D28: 6 | E28: 782 | F28: 377 | G28: 4 | H28: 0 | I28: 17472 | J28: 2449 | K28: 0.1401671245 | L28: 11 | M28: 6 | N28: 91 | O28: 218.4 | P28: 45 | Q28: 0.1163682864 | R28: 0.2792838875 | S28: 7270 | T28: 4095 | U28: 0 | V28: 11365 | W28: 700 | X28: 7200 | Y28: 0 | Z28: 7900 | AA28: 3465 | AB28: 2 gates, car park, maze, bowling club, café | AR28: 104832 | AS28: 0.06934905372 | AV28: 14662.5 | AW28: 0.2792838875 | AX28: 119494.5 | AZ28: 0.09510897991 | BA28: 866.25
A29: South park | B29: Case Study 8 | D29: 6 | E29: 1422 | F29: 1110 | G29: 0 | H29: 4 | I29: 14016 | J29: 5726 | K29: 0.408533105 | M29: 10.6 | N29: 0 | O29: 0 | Q29: 0 | R29: 0 | S29: 21390 | T29: 0 | U29: 0 | V29: 21390 | W29: 700 | X29: =SUM((G29*1800)+(H29*1200)) -> 4800 | Y29: 0 | Z29: =SUM(W29:X29) -> 5500 | AA29: =SUM(V29-Z29) -> 15890 | AR29: 148569.6 | AS29: 0.1439729258 | AV29: 0 | AW29: 0 | AX29: 148569.6 | AZ29: 0.1439729258 | BA29: 3972.5
A30: Montpellier Park | B30: Case Study 9 | D30: 6 | E30: 1691 | F30: 1590 | G30: 0 | H30: 6 | I30: 21024 | J30: 9915 | K30: 0.4716038813 | M30: 6.9 | N30: 240 | O30: 576 | P30: 40 | Q30: 0.1419278533 | R30: 0.340626848 | S30: 5490 | T30: 9160 | U30: 0 | V30: 14650 | W30: 700 | X30: =SUM((G30*1800)+(H30*1200)) -> 7200 | Y30: 0 | Z30: =SUM(W30:X30) -> 7900 | AA30: =SUM(V30-Z30) -> 6750 | AR30: 145065.6 | AS30: 0.03784494739 | AV30: 28183.33333 | AW30: 0.3250147842 | AX30: 173248.9333 | AZ30: 0.08456040518 | BA30: 1125
A31: Manor House Gardens | B31: SE13 5SU | D31: 7 | E31: 1512 | F31: 230 | G31: 0 | H31: 2 | I31: 7008 | J31: 3049 | K31: 0.4350742009 | M31: 5 | N31: 150 | O31: 360 | P31: 35 | Q31: 0.09920634921 | R31: 0.2380952381 | S31: 3020 | T31: 5150 | U31: 0 | V31: 8170 | W31: 700 | X31: 2400 | Y31: 0 | Z31: 3100 | AA31: 5070 | AB31: part of | AR31: 35040 | AS31: 0.08618721461 | AV31: 22050 | AW31: 0.2335600907 | AX31: 57090 | AZ31: 0.1431073743 | BA31: 2535
A32: Beverley Park | B32: KT3 4AX | D32: 7 | E32: 945 | G32: 0 | H32: 3 | I32: 10467 | J32: 2681 | K32: 0.26 | L32: 5 | N32: 250 | O32: 600 | P32: 50 | Q32: 0.26 | R32: 0.63 | S32: 2523 | T32: 12233 | U32: 0 | V32: 14756 | X32: 3600 | Z32: 3600 | AA32: 11156
A33: Golders Hill Park | B33: NW11 7QP | D33: 8 | E33: 2585 | F33: 435 | G33: 0 | H33: 4 | I33: 14016 | J33: 3022 | K33: 0.2156107306 | M33: 9 | N33: 71 | O33: 170.4 | P33: 29 | Q33: 0.02746615087 | R33: 0.06591876209 | S33: 23014 | T33: 2043 | U33: 0 | V33: 25057 | W33: 1400 | X33: 4800 | Y33: 0 | Z33: =SUM(W33:X33) -> 6200 | AA33: =SUM(V33-Z33) -> 18857 | AB33: City of london tennis Umbrella, next to a zoo, walled garden, table tennis tables next door. | AR33: 126144 | AS33: 0.1824422882 | AV33: 31235.41667 | AW33: 0.06540652304 | AX33: 157379.4167 | AZ33: 0.159213959 | BA33: 4714.25
A34: Fletcher Moss | B34: M20 2SW | D34: 8 | E34: 2915 | F34: 1376 | G34: 4 | H34: 0 | I34: 17472 | J34: 5994 | K34: 0.3430631868 | L34: 5 | M34: 3 | N34: 0 | O34: 0 | Q34: 0 | R34: 0 | S34: 18662 | T34: 0 | U34: 0 | V34: =SUM(S34:U34) -> 18662 | W34: 700 | X34: =SUM((G34*1800)+(H34*1200)) -> 7200 | Y34: 0 | Z34: =SUM(W34:Y34) -> 7900 | AA34: =SUM(V34-Z34) -> 10762
A35: Old Deer Park | B35: TW9 2SF | D35: 8 | E35: 1974 | F35: 361 | G35: 0 | H35: 5 | I35: 17520 | J35: 2125 | K35: 0.1212899543 | M35: 8 | N35: 61 | O35: 146.4 | P35: 50 | Q35: 0.03090172239 | R35: 0.07416413374 | S35: 4040 | T35: 2950 | U35: 0 | V35: 6990 | W35: 700 | X35: 6000 | Y35: 0 | Z35: 6700 | AA35: 290 | AB35: Part of Play Tennis Richmond. Season ticket total income/players divided by the number of venues | AR35: =SUM(I35*M35) -> 140160 | AS35: =S35/AR35 -> 0.02882420091 | AV35: =SUM((E35/2.4)*P35) -> 41125 | AW35: =IFERROR((T35/AV35),"0") -> 0.0717325228 | AX35: 181285 | AZ35: =SUM(V35/AX35) -> 0.03855807154 | BA35: =AA35/SUM(G35:H35) -> 58
A36: Kneller Gardens | B36: TW2 6PH | D36: 8 | E36: 1626 | G36: 0 | H36: 3 | I36: 10467 | J36: 312 | K36: 0.03 | L36: 8 | N36: 129 | O36: 310 | P36: 50 | Q36: 0.08 | R36: 0.19 | S36: 456 | T36: 6295 | U36: 0 | V36: 6751 | X36: 3600 | Z36: 3600 | AA36: 3151
A37: Kings Field | B37: KT1 4AE | D37: 9 | E37: 1486 | G37: 0 | H37: 2 | I37: 6978 | J37: 419 | K37: 0.06 | L37: 8 | N37: 129 | O37: 310 | P37: 50 | Q37: 0.09 | R37: 0.21 | S37: 1016 | T37: 6295 | U37: 0 | V37: 7311 | X37: 2400 | Z37: 2400 | AA37: 4911
A38: Palewell Common | B38: SW14 8RF | D38: 9 | E38: 858 | G38: 0 | H38: 4 | I38: 13956 | K38: 0 | L38: 8 | N38: 129 | O38: 310 | P38: 50 | Q38: 0.15 | R38: 0.36 | T38: 6295 | U38: 0 | V38: 6295 | X38: 4800 | Z38: 4800 | AA38: 1495
A39: Pittville park | B39: GL 52 2BP | D39: 9 | E39: 1608 | F39: 265 | G39: 0 | H39: 3 | I39: 10512 | J39: 2402 | K39: 0.228500761 | M39: 6.9 | N39: 240 | O39: 576 | P39: 40 | Q39: 0.1492537313 | R39: 0.3582089552 | S39: 3239.45 | T39: 9160 | U39: 0 | V39: 12399.45 | W39: 700 | X39: 3600 | Y39: 0 | Z39: 4300 | AA39: 8099.45 | AB39: Part of Tennis in the Park Cheltenham | AR39: 72532.8 | AS39: 0.04466186332 | AV39: 26800 | AW39: 0.3417910448 | AX39: 99332.8 | AZ39: 0.1248273481 | BA39: 2699.816667
A40: York House Gardens | B40: TW1 3DD | D40: 9 | E40: 1535 | F40: 234 | G40: 0 | H40: 4 | I40: 14016 | J40: 3004 | K40: 0.214326484 | M40: 8 | N40: 61 | O40: 146.4 | P40: 50 | Q40: 0.03973941368 | R40: 0.09537459283 | S40: 2752 | T40: 2950 | U40: 0 | V40: 5702 | W40: 700 | X40: 4800 | Y40: 0 | Z40: 5500 | AA40: 202 | AB40: Play tennis Richmond | AR40: 112128 | AS40: 0.024543379 | AV40: 31979.16667 | AW40: 0.092247557 | AX40: 144107.1667 | AZ40: 0.03956777537 | BA40: 50.5
A41: Carlisle Park | B41: TW12 2LY | D41: 10 | E41: 708 | G41: 0 | H41: 7 | I41: 24423 | J41: 2266 | K41: 0.09 | L41: 8 | N41: 129 | O41: 310 | P41: 50 | Q41: 0.18 | R41: 0.44 | S41: 2208 | T41: 6295 | U41: 0 | V41: 8503 | W41: 700 | X41: 8400 | Z41: 8400 | AA41: 103
A42: Moor Mead Recreation Ground | B42: TW1 1HR | D42: 10 | E42: 1438 | G42: 0 | H42: 4 | I42: 13956 | K42: 0 | L42: 8 | N42: 129 | O42: 310 | P42: 50 | Q42: 0.09 | R42: 0.22 | T42: 6295 | U42: 0 | V42: 6295 | X42: 4800 | Z42: 4800 | AA42: 1495
A43: Westerly Ware | B43: TW9 3AP | D43: 10 | E43: 2445 | F43: 394 | G43: 0 | H43: 3 | I43: 10512 | J43: 2365 | K43: 0.2249809741 | M43: 8 | N43: 61 | O43: 146.4 | P43: 50 | Q43: 0.02494887526 | R43: 0.05987730061 | S43: 4840 | T43: 2950 | U43: 0 | V43: 7790 | W43: 700 | X43: 3600 | Y43: 0 | Z43: 4300 | AA43: 3490 | AB43: Part of Play Tennis Richmond. Season ticket total income/players divided by the number of venues | AR43: 84096 | AS43: 0.05755327245 | AV43: 50937.5 | AW43: 0.05791411043 | AX43: 135033.5 | AZ43: 0.05768938819 | BA43: 1163.333333
A44: Canford Park | B44: BS9 3PQ | D44: 10 | E44: 1739 | F44: 892 | G44: 0 | H44: 8 | I44: 28032 | J44: 4755 | K44: =SUM(J44/I44) -> 0.1696275685 | M44: 5 | N44: 766 | O44: 1838.4 | P44: 35 | Q44: 0.4404830362 | R44: 1.057159287 | S44: 4760 | T44: 22825 | U44: 0 | V44: =SUM(S44:U44) -> 27585 | W44: 700 | X44: 9600 | Y44: 0 | Z44: =SUM(W44:X44) -> 10300 | AA44: =SUM(V44-Z44) -> 17285 | AR44: 140160 | AS44: 0.03396118721 | AV44: 25360.41667 | AW44: 0.9000246447 | AX44: 165520.4167 | AZ44: 0.1666561779 | BA44: 2160.625
A45: Alexandra Recreation Grund | B45: KT17 4BN | D45: 10 | E45: 1886 | F45: 405 | G45: 0 | H45: 4 | I45: 14016 | J45: 4105 | K45: 0.2928795662 | M45: 6 | N45: 156 | O45: 374.4 | P45: 50 | Q45: 0.08271474019 | R45: 0.1985153765 | S45: 3759 | T45: 7366 | U45: 0 | V45: 11125 | W45: 700 | X45: 4800 | Y45: 0 | Z45: 5500 | AA45: 5625 | AB45: Part of Kingston Venues, season tickets divided by number of venues | AR45: 84096 | AS45: 0.04469891553 | AV45: 39291.66667 | AW45: 0.1874697773 | AX45: 123387.6667 | AZ45: 0.09016298225 | BA45: 1406.25
A46: Sheen Common | B46: SW14 7ER | D46: 10 | E46: 1043 | F46: 251 | G46: 0 | H46: 4 | I46: 14016 | J46: 2354 | K46: 0.1679509132 | M46: 8 | N46: 61 | O46: 146.4 | P46: 50 | Q46: 0.05848513902 | R46: 0.1403643337 | S46: 3156 | T46: 2950 | U46: 0 | V46: 6106 | W46: 700 | X46: 4800 | Y46: 0 | Z46: 5500 | AA46: 606 | AB46: Part of Play Tennis Richmond. Season ticket total income/players divided by the number of venues | AR46: 112128 | AS46: 0.02814640411 | AV46: 21729.16667 | AW46: 0.1357622244 | AX46: 133857.1667 | AZ46: 0.04561578698 | BA46: 151.5
A47: Cambridge Gardens | B47: TW1 2TA | D47: 10 | E47: 1474 | F47: 247 | G47: 0 | H47: 4 | I47: 14016 | J47: 4721 | K47: 0.3368293379 | M47: 8 | N47: 61 | O47: 146.4 | P47: 50 | Q47: 0.04138398915 | R47: 0.09932157395 | S47: 3148 | T47: 2950 | U47: 0 | V47: 6098 | W47: 700 | X47: 4800 | Y47: 0 | Z47: 5500 | AA47: 598 | AB47: Part of Play Tennis Richmond. Season ticket total income/players divided by the number of venues | AR47: 112128 | AS47: 0.02807505708 | AV47: 30708.33333 | AW47: 0.0960651289 | AX47: 142836.3333 | AZ47: 0.04269221883 | BA47: 149.5
AW48: =AVERAGE(AW3:AW47) -> 0.3634171144
B63: IMD 1/2 | D63: 2 | E63: =AVERAGEIF(E3:E8,"<>0") -> 1313.5 | F63: 1022.5 | G63: 3 | H63: 3.666666667 | I63: 17201 | J63: 5757.833333 | K63: 0.3708455661 | L63: =IFERROR(AVERAGE(L3:L8),"") -> 6.75 | M63: =AVERAGEIF(M3:M8,"<>0") -> 6.65 | N63: 263.8 | O63: 575.36 | P63: 34 | Q63: 0.3310352131 | R63: 0.7308845114 | S63: 9302.666667 | T63: 7567.6 | U63: =IFERROR(AVERAGE(U3:U8),"") -> 0 | V63: =AVERAGEIF(V3:V8,"<>0") -> 15609 | W63: =AVERAGEIF(W3:W8,"<>0") -> 1166.666667 | X63: =AVERAGEIF(X3:X8,"<>0") -> 6200 | Z63: =AVERAGEIF(Z3:Z8,"<>0") -> 6783.333333 | AA63: =AVERAGEIF(AA3:AA8,"<>0") -> 8825.666667 | AB63: 2 | AQ63: 2 | AR63: =AVERAGEIF(AR3:AR8,"<>0") -> 181145.6 | AS63: =AVERAGEIF(AS3:AS8,"<>0") -> 0.0805700666 | AV63: =AVERAGEIF(AV3:AV8,"<>0") -> 9719.791667 | AW63: =AVERAGEIF(AW3:AW8,"<>0") -> 1.228051599 | AX63: =AVERAGEIF(AX3:AX8,"<>0") -> 187625.4611 | AY63: =SUM(T63/I63) -> 0.4399511656 | AZ63: =AVERAGEIF(AZ3:AZ10,"<>0") -> 0.09571068683
B64: IMD 3/4 | D64: 4 | E64: =AVERAGEIF(E10:E19,"<>0") -> 1902.4 | F64: 1441 | G64: 6 | H64: 4.375 | I64: 22739.1 | J64: 7469.8 | K64: 0.2943114645 | L64: 7.125 | M64: 6.666666667 | N64: 242.1111111 | O64: 885.32 | P64: 41.77777778 | Q64: 0.2265081295 | R64: 0.8590575597 | S64: 6225.1 | T64: 8523.888889 | U64: 8800 | V64: 15656.6 | W64: 1925 | X64: 8520 | Z64: =AVERAGEIF(Z10:Z19,"<>0") -> 9290 | AA64: =AVERAGEIF(AA10:AA19,"<>0") -> 6366.6 | AB64: 4 | AQ64: 4 | AR64: =AVERAGEIF(AR10:AR19,"<>0") -> 267090 | AS64: =AVERAGEIF(AS10:AS19,"<>0") -> 0.02651280462 | AV64: =AVERAGEIF(AV10:AV19,"<>0") -> 41825 | AW64: =AVERAGEIF(AW10:AW19,"<>0") -> 0.3454500206 | AX64: =AVERAGEIF(AX10:AX19,"<>0") -> 308915 | AY64: =SUM(T64/I64) -> 0.374856036 | AZ64: =AVERAGEIF(AZ19:AZ22,"<>0") -> 0.132752774
B65: IMD 5/6 | D65: 6 | E65: =AVERAGEIF(E20:E30,"<>0") -> 1479.363636 | F65: 691.5 | G65: 3.5 | H65: 3.888888889 | I65: 13917.81818 | J65: 4540.545455 | K65: 0.3456123395 | L65: 8.6 | M65: 8.575 | N65: 175.875 | O65: 807.0222222 | P65: 41.5 | Q65: 0.1558472441 | R65: 0.6093630097 | S65: 14227.74545 | T65: 5862.375 | V65: 18491.29091 | W65: 787.5 | X65: 4963.636364 | Z65: =AVERAGEIF(Z20:Z30,"<>0") -> 5536.363636 | AA65: =AVERAGEIF(AA20:AA30,"<>0") -> 12954.92727 | AB65: 6 | AQ65: 6 | AR65: =AVERAGEIF(AR20:AR30,"<>0") -> 130407.7714 | AS65: =AVERAGEIF(AS20:AS30,"<>0") -> 0.1532869025 | AV65: =AVERAGEIF(AV20:AV30,"<>0") -> 26167.75 | AW65: =AVERAGEIF(AW20:AW30,"<>0") -> 0.3187830806 | AX65: =AVERAGEIF(AX20:AX30,"<>0") -> 149099.0214 | AY65: =SUM(T65/I65) -> 0.4212136503 | AZ65: =AVERAGEIF(AZ26:AZ35,"<>0") -> 0.1614604308
B66: IMD 7/8 | D66: 8 | E66: =AVERAGEIF(E31:E35,"<>0") -> 1986.2 | F66: =AVERAGEIF(F31:F35,"<>0") -> 600.5 | G66: =IFERROR(AVERAGE(G31:G35),"") -> 0.8 | H66: =AVERAGEIF(H31:H35,"<>0") -> 3.5 | I66: =AVERAGEIF(I31:I35,"<>0") -> 13296.6 | J66: =AVERAGEIF(J31:J35,"<>0") -> 3374.2 | K66: =AVERAGEIF(K31:K35,"<>0") -> 0.2750076145 | L66: =IFERROR(AVERAGE(L31:L35),"") -> 5 | M66: =AVERAGEIF(M31:M35,"<>0") -> 6.25 | N66: 133 | O66: 319.2 | P66: 41 | Q66: 0.1043935556 | R66: 0.2520445335 | S66: 10251.8 | T66: 5594 | U66: =IFERROR(AVERAGE(U31:U35),"") -> 0 | V66: =AVERAGEIF(V31:V35,"<>0") -> 14727 | W66: =AVERAGEIF(W31:W35,"<>0") -> 875 | X66: =AVERAGEIF(X31:X35,"<>0") -> 4800 | Z66: =AVERAGEIF(Z31:Z35,"<>0") -> 5500 | AA66: =AVERAGEIF(AA31:AA35,"<>0") -> 9227 | AB66: 8 | AQ66: 8 | AR66: =AVERAGEIF(AR31:AR35,"<>0") -> 100448 | AS66: =AVERAGEIF(AS31:AS35,"<>0") -> 0.09915123457 | AV66: =AVERAGEIF(AV31:AV35,"<>0") -> 31470.13889 | AW66: =AVERAGEIF(AW31:AW35,"<>0") -> 0.1235663788 | AX66: =AVERAGEIF(AX31:AX35,"<>0") -> 131918.1389 | AY66: =SUM(T66/I66) -> 0.4207090534 | AZ66: =AVERAGEIF(AZ39:AZ40,"<>0") -> 0.08219756172
B67: IMD 9/10 | D67: 10 | E67: =AVERAGEIF(E39:E47,"<>0") -> 1541.777778 | F67: =AVERAGEIF(F39:F47,"<>0") -> 384 | G67: =IFERROR(AVERAGE(G39:G47),"") -> 0 | H67: =AVERAGEIF(H39:H47,"<>0") -> 4.555555556 | I67: =AVERAGEIF(I39:I47,"<>0") -> 15944.33333 | J67: =AVERAGEIF(J39:J47,"<>0") -> 3246.5 | K67: =AVERAGEIF(K39:K47,"<>0") -> 0.2156369506 | L67: =IFERROR(AVERAGE(L39:L47),"") -> 8 | M67: =AVERAGEIF(M39:M47,"<>0") -> 7.128571429 | N67: 184.8888889 | O67: 443.8222222 | P67: 47.22222222 | Q67: 0.1230009917 | R67: 0.2965357133 | S67: 3482.80625 | T67: 7082.333333 | U67: =IFERROR(AVERAGE(U39:U47),"") -> 0 | V67: =AVERAGEIF(V39:V47,"<>0") -> 10178.16111 | W67: =AVERAGEIF(W39:W47,"<>0") -> 700 | X67: =AVERAGEIF(X39:X47,"<>0") -> 5466.666667 | Z67: =AVERAGEIF(Z39:Z47,"<>0") -> 6011.111111 | AA67: =AVERAGEIF(AA39:AA47,"<>0") -> 4167.05 | AB67: 10 | AQ67: 10 | AR67: =AVERAGEIF(AR39:AR47,"<>0") -> 102466.9714 | AS67: =AVERAGEIF(AS39:AS47,"<>0") -> 0.0373771541 | AV67: =AVERAGEIF(AV39:AV47,"<>0") -> 32400.89286 | AW67: =AVERAGEIF(AW39:AW47,"<>0") -> 0.2587534982 | AX67: =AVERAGEIF(AX39:AX47,"<>0") -> 134867.8643 | AY67: =SUM(T67/I67) -> 0.4441912487 | AZ67: =AVERAGEIF(AZ43:AZ55,"<>0") -> 0.08056331082
P68: =AVERAGEIF(P3:P31,"<>0") -> 39.5
B70: Averages | D70: 1
D71: 2 | E71: =AVERAGEIF($D$3:$D$47,$D71,E$3:E$47) -> 1313.5 | F71: 1022.5 | G71: =ROUND(AVERAGEIF($D$3:$D$47,$D71,G$3:G$47),0) -> 1 | H71: 4 | I71: =G71*FL_CH+H71*NFL_CH -> 18384 | J71: =AVERAGEIF($D$3:$D$47,$D71,J$3:J$47) -> 5757.833333 | K71: =SUM(J71/I71) -> 0.3131980708 | L71: =IFERROR(AVERAGEIFS(L$3:L$47,$D$3:$D$47,$D71,L$3:L$47,">"&0),"NA") -> 6.75 | M71: 6.65 | N71: =AVERAGEIF($D$3:$D$47,$D71,N$3:N$47) -> 219.8333333 | O71: =(N71*2.4) -> 527.6 | P71: =AVERAGEIF($D$3:$D$47,$D71,P$3:P$47) -> 34 | Q71: =SUM(N71/E71) -> 0.1673645476 | R71: =SUM(O71/E71) -> 0.4016749144 | S71: =AVERAGEIF($D$3:$D$47,$D71,S$3:S$47) -> 9302.666667 | T71: 6306.333333 | U71: 0 | V71: =SUM(S71:U71) -> 15609 | W71: =AVERAGEIF($D$3:$D$47,$D71,W$3:W$47) -> 1166.666667 | X71: 6200 | Y71: 0 | Z71: =SUM(W71:Y71) -> 7366.666667 | AA71: =V71-Z71 -> 8242.333333 | AR71: =SUM(I71*M71) -> 122253.6 | AS71: =S71/AR71 -> 0.07609319208 | AT71: =S71/M71 -> 1398.897243 | AU71: =AT71/I71 -> 0.07609319208 | AV71: =SUM((E71/2.4)*P71) -> 18607.91667 | AW71: =IFERROR((T71/AV71),"0") -> 0.3389059316 | AX71: =SUM(AR71+AV71) -> 140861.5167 | AY71: =SUM(T71/I71) -> 0.3430337975 | AZ71: =SUM(V71/AX71) -> 0.1108109608 | BA71: =AA71/SUM(G71:H71) -> 1648.466667
D72: 3 | E72: 2111.5 | F72: 1440 | G72: 2 | H72: 4 | I72: =G72*FL_CH+H72*NFL_CH -> 22752 | J72: 7711.833333 | K72: =SUM(J72/I72) -> 0.338951887 | L72: 7.25 | M72: 7.666666667 | N72: 189.8333333 | O72: =(N72*2.4) -> 455.6 | P72: 43 | Q72: =SUM(N72/E72) -> 0.08990449128 | R72: =SUM(O72/E72) -> 0.2157707791 | S72: 4810.666667 | T72: 7694.833333 | U72: 833.3333333 | V72: =SUM(S72:U72) -> 13338.83333 | W72: 2450 | X72: 8300 | Y72: 0 | Z72: =SUM(W72:Y72) -> 10750 | AA72: =V72-Z72 -> 2588.833333 | AR72: 174432 | AS72: 0.02757903749 | AT72: 627.4782609 | AU72: 0.02757903749 | AV72: 37831.04167 | AW72: 0.2033999857 | AX72: =SUM(AR72+AV72) -> 212263.0417 | AY72: 0.3382047 | AZ72: 0.06284105433 | BA72: 431.4722222
D73: 4 | E73: 1406 | F73: 1442 | G73: 3 | H73: 2 | I73: 20112 | J73: 6216 | K73: =SUM(J73/I73) -> 0.3090692124 | L73: 7 | M73: 5.666666667 | N73: 249.2 | O73: 598.08 | P73: 30.6 | Q73: 0.1772403983 | R73: 0.4253769559 | S73: 6677.4 | T73: 7518 | U73: 2520 | V73: 16715.4 | W73: 1400 | X73: 7560 | Y73: 0 | Z73: 8960 | AA73: 7755.4 | AR73: 113968 | AS73: 0.05859013056 | AT73: 1178.364706 | AU73: 0.05859013056 | AV73: 17926.5 | AW73: 0.4193791315 | AX73: 131894.5 | AY73: 0.3738066826 | AZ73: 0.1267331087 | BA73: 1551.08
D74: 5 | E74: 1614.666667 | F74: 353.6666667 | G74: 1 | H74: 3 | I74: 14880 | J74: 3308.333333 | K74: 0.2223342294 | L74: 8 | M74: 9 | N74: 132.3333333 | O74: 317.6 | P74: 28.66666667 | Q74: 0.08195706028 | R74: 0.1966969447 | S74: 8997.166667 | T74: 4293.166667 | U74: 0 | V74: 13290.33333 | W74: 700 | X74: 4100 | Y74: 0 | Z74: 4800 | AA74: 8490.333333 | AR74: 133920 | AS74: 0.06718314417 | AT74: 999.6851852 | AU74: 0.06718314417 | AV74: 19286.2963 | AW74: 0.2226019242 | AX74: 153206.2963 | AY74: 0.2885192652 | AZ74: 0.08674795785 | BA74: 2122.583333
D75: 6 | E75: 1317 | F75: 894.2 | G75: 1 | H75: 4 | I75: 18384 | J75: 6019.2 | K75: 0.3274151436 | L75: 11 | M75: 8.32 | N75: 122.6 | O75: 294.24 | P75: 53.33333333 | Q75: 0.09309035687 | R75: 0.2234168565 | S75: 20504.44 | T75: 4228 | U75: 0 | V75: 24732.44 | W75: 840 | X75: 6000 | Y75: 0 | Z75: 6840 | AA75: 17892.44 | AR75: 152954.88 | AS75: 0.1340554809 | AT75: 2464.475962 | AU75: 0.1340554809 | AV75: 29266.66667 | AW75: 0.1444646925 | AX75: 182221.5467 | AY75: 0.2299825936 | AZ75: 0.1357273081 | BA75: 3578.488
D76: 7 | E76: 1228.5 | F76: 230 | G76: 0 | H76: 3 | I76: 10512 | J76: 2865 | K76: 0.2725456621 | L76: 5 | M76: 5 | N76: 200 | O76: 480 | P76: 42.5 | Q76: 0.1628001628 | R76: 0.3907203907 | S76: 2771.5 | T76: 8691.5 | U76: 0 | V76: 11463 | W76: 700 | X76: 3000 | Y76: 0 | Z76: 3700 | AA76: 7763 | AR76: 52560 | AS76: 0.05273021309 | AT76: 554.3 | AU76: 0.05273021309 | AV76: 21754.6875 | AW76: 0.3995230913 | AX76: 74314.6875 | AY76: 0.8268169711 | AZ76: 0.1542494544 | BA76: 2587.666667
D77: 8 | E77: 2275 | F77: 724 | G77: 1 | H77: 3 | I77: 14880 | J77: 2863.25 | K77: 0.1924227151 | L77: 6.5 | M77: 6.666666667 | N77: 65.25 | O77: 156.6 | P77: 43 | Q77: 0.02868131868 | R77: 0.06883516484 | S77: 11543 | T77: 2822 | U77: 0 | V77: 14365 | W77: 933.3333333 | X77: 5400 | Y77: 0 | Z77: 6333.333333 | AA77: 8031.666667 | AR77: 99200 | AS77: 0.1163608871 | AT77: 1731.45 | AU77: 0.1163608871 | AV77: 40760.41667 | AW77: 0.06923383593 | AX77: 139960.4167 | AY77: 0.1896505376 | AZ77: 0.102636162 | BA77: 2007.916667
D78: 9 | E78: 1371.75 | F78: 249.5 | G78: 0 | H78: 3 | I78: 10512 | J78: 1941.666667 | K78: 0.1847095383 | L78: 8 | M78: 7.45 | N78: 139.75 | O78: 335.4 | P78: 47.5 | Q78: 0.1018771642 | R78: 0.2445051941 | S78: 2335.816667 | T78: 6175 | U78: 0 | V78: 8510.816667 | W78: 700 | X78: 3900 | Y78: 0 | Z78: 4600 | AA78: 3910.816667 | AR78: 78314.4 | AS78: 0.02982614521 | AT78: 313.5324385 | AU78: 0.02982614521 | AV78: 27149.21875 | AW78: 0.2274466922 | AX78: 105463.6188 | AY78: 0.5874238965 | AZ78: 0.08069907678 | BA78: 1303.605556
D79: 10 | E79: 1533.285714 | F79: 437.8 | G79: 0 | H79: 5 | I79: 17520 | J79: 3427.666667 | K79: 0.1956430746 | L79: 8 | M79: 7 | N79: 194.7142857 | O79: 467.3142857 | P79: 47.85714286 | Q79: 0.1269915215 | R79: 0.3047796515 | S79: 3645.166667 | T79: 7375.857143 | U79: 0 | V79: 11021.02381 | W79: 700 | X79: 5828.571429 | Y79: 0 | Z79: 6528.571429 | AA79: 4492.452381 | AR79: 122640 | AS79: 0.02972249402 | AT79: 520.7380952 | AU79: 0.02972249402 | AV79: 30574.44728 | AW79: 0.2412425342 | AX79: 153214.4473 | AY79: 0.4209964123 | AZ79: 0.07193201428 | BA79: 898.4904762
D81: Average | E81: =AVERAGE(E3:E47) -> 1591.777778 | F81: =AVERAGE(F3:F47) -> 758.3703704 | G81: =AVERAGE(G3:G47) -> 0.9111111111 | H81: =AVERAGE(H3:H47) -> 3.511111111 | I81: =G81*FL_CH+H81*NFL_CH -> 16282.66667 | J81: =AVERAGE(J3:J47) -> 4777.162791 | K81: =SUM(J81/I81) -> 0.2933894606 | L81: =IFERROR(AVERAGEIFS(L$3:L$47,L$3:L$47,">"&0),"NA") -> 7.375 | M81: =IFERROR(AVERAGEIFS(M$3:M$47,M$3:M$47,">"&0),"NA") -> 7.244827586 | N81: =AVERAGE(N3:N47) -> 170.9777778 | O81: 410.3466667 | P81: =AVERAGE(P3:P47) -> 40.29268293 | Q81: =SUM(N81/E81) -> 0.1074130951 | R81: =SUM(O81/E81) -> 0.2577914282 | S81: =AVERAGE(S3:S47) -> 8259.666279 | T81: =AVERAGE(T3:T47) -> 6077.733333 | U81: =AVERAGE(U3:U47) -> 391.1111111 | V81: 14728.51072 | W81: =AVERAGE(W3:W47) -> 985.1851852 | X81: =AVERAGE(X3:X47) -> 5853.333333 | Y81: =AVERAGE(Y3:Y47) -> 0 | Z81: 6838.518519 | AA81: 7889.992205 | AR81: =SUM(I81*M81) -> 117965.1126 | AS81: =S81/AR81 -> 0.07001787303 | AT81: =S81/M81 -> 1140.077687 | AU81: =AT81/I81 -> 0.07001787303 | AV81: =SUM((E81/2.4)*P81) -> 26723.74887 | AW81: =IFERROR((T81/AV81),"0") -> 0.2274281712 | AX81: =SUM(AR81+AV81) -> 144688.8615 | AY81: =SUM(T81/I81) -> 0.3732640026 | AZ81: =SUM(V81/AX81) -> 0.1017943646 | BA81: =AA81/SUM(G81:H81) -> 1784.169092
D82: Total | E82: =SUM(E3:E47) -> 71630 | F82: =SUM(F3:F47) -> 20476 | G82: =SUM(G3:G47) -> 41 | H82: =SUM(H3:H47) -> 158 | I82: =G82*FL_CH+H82*NFL_CH -> 732720 | J82: =SUM(J3:J47) -> 205418 | K82: =SUM(J82/I82) -> 0.280349929 | L82: =IFERROR(AVERAGEIFS(L$3:L$47,L$3:L$47,">"&0),"NA") -> 7.375 | M82: =IFERROR(AVERAGEIFS(M$3:M$47,M$3:M$47,">"&0),"NA") -> 7.244827586 | N82: =SUM(N3:N47) -> 7694 | O82: =(N82*2.4) -> 18465.6 | P82: =AVERAGE(P6:P48) -> 40.84210526 | Q82: =SUM(N82/E82) -> 0.1074130951 | R82: =SUM(O82/E82) -> 0.2577914282 | S82: =SUM(S3:S47) -> 355165.65 | T82: =SUM(T3:T47) -> 273498 | U82: =SUM(U3:U47) -> 17600 | V82: =SUM(S82:U82) -> 646263.65 | W82: =SUM(W3:W47) -> 26600 | X82: =SUM(X3:X47) -> 263400 | Y82: =SUM(Y3:Y47) -> 0 | Z82: 290000 | AA82: =V82-Z82 -> 356263.65 | AR82: =SUM(I82*M82) -> 5308430.069 | AS82: =S82/AR82 -> 0.06690596756 | AT82: =S82/M82 -> 49023.34055 | AU82: =AT82/I82 -> 0.06690596756 | AV82: =SUM((E82/2.4)*P82) -> 1218966.667 | AW82: =IFERROR((T82/AV82),"0") -> 0.2243687276 | AX82: =SUM(AR82+AV82) -> 6527396.736 | AY82: =SUM(T82/I82) -> 0.3732640026 | AZ82: =SUM(V82/AX82) -> 0.09900787039 | BA82: =AA82/SUM(G82:H82) -> 1790.269598
E85: FL charge | G85: Non FL charge | J85: Season ticket
B86: Ranges | E86: Max | F86: Min | G86: Max | H86: Min | J86: Max | K86: Min
D87: 2 | E87: =_xlfn.MAXIFS($L$3:$L$47,$D$3:$D$47,$D87) -> 10 | F87: =_xlfn.MINIFS($M$3:$M$47,$D$3:$D$47,$D87) -> 5 | G87: =_xlfn.MAXIFS($M$3:$M$47,$D$3:$D$47,$D87) -> 10.6 | H87: =_xlfn.MINIFS($M$3:$M$47,$D$3:$D$47,$D87) -> 5 | J87: =_xlfn.MAXIFS($P$3:$P$47,$D$3:$D$47,$D87) -> 35 | K87: =_xlfn.MINIFS($P$3:$P$47,$D$3:$D$47,$D87) -> 30
D88: 3 | E88: 10 | F88: =_xlfn.MINIFS($M$3:$M$47,$D$3:$D$47,$D88) -> 6 | G88: =_xlfn.MAXIFS($M$3:$M$47,$D$3:$D$47,$D88) -> 10 | H88: =_xlfn.MINIFS($M$3:$M$47,$D$3:$D$47,$D88) -> 6 | J88: =_xlfn.MAXIFS($P$3:$P$47,$D$3:$D$47,$D88) -> 75 | K88: =_xlfn.MINIFS($P$3:$P$47,$D$3:$D$47,$D88) -> 30
D89: 4 | E89: 11 | F89: 5 | G89: 6 | H89: 5 | J89: 50 | K89: 0
D90: 5 | E90: 11 | F90: 8 | G90: 10 | H90: 8 | J90: 45 | K90: 0
D91: 6 | E91: 11 | F91: 6 | G91: 10.6 | H91: 6 | J91: 75 | K91: 40
D92: 7 | E92: 5 | F92: 5 | G92: 5 | H92: 5 | J92: 50 | K92: 35
D93: 8 | E93: 8 | F93: 3 | G93: 9 | H93: 3 | J93: 50 | K93: 29
D94: 9 | E94: 8 | F94: 6.9 | G94: 8 | H94: 6.9 | J94: 50 | K94: 40
D95: 10 | E95: 8 | F95: 5 | G95: 8 | H95: 5 | J95: 50 | K95: 35
C104: Methodology
C105: 1) If a venue is aprt of a cluster or group of venues, the figures for percentage of penetration using season tickets, and season ticket income are calculated based ont the number of courts in the group and the individual venue. For example if there are 2 venues in the group, one with 4 courts and one with 6, and we are looking at the 4 court site, we divide the total figures by 10 (total courts) and tehn multiply by 4 (number of courts our site has. 2) Some seson tickets only require the lead contacts name to be inputted to the membership module. These case studies have been multiplied by then number of people living in the average household in the UK (2.4) to give a more accurate reflection of how many people are using the courts.

Sheet Inputs (hidden)
C2: Floodlit | D2: Non floodlit
B3: Available court hours | C3: 4368 | D3: 3504
B4: Sinking fund commitment | C4: 1800 | D4: 1200
B6: Clubspark
B7: Cost per transaction (gate access) | C7: 0.25
B8: Fee % per transaction (gate access) | C8: 0.028
B9: Fee % per transaction (season tickets) | C9: 0.018
B12: Gate access maintenance
B13: SmartAccess Premium | C13: 601.4
B14: SmartAccess Lite | C14: 320
B15: SmartAccess Premium with Solar | C15: =C13+120 -> 721.4
B16: Code unlocking fee (Lite) | C16: =35%*0.15 -> 0.0525 | D16: 35% of court hours nationally are booked, and code generator costs 15p per code
B18: Yes
B19: No
B21: Court Resurfacing
B22: None | C22: 0
B23: Repaint (£5,000/Court) | C23: 5000
B24: Low (£11,000/Court) | C24: 11000
B25: Medium (£17,000/Court) | C25: 17000
B26: High (£23,000/Court) | C26: 23000
B27: New Build (£35,000/Court) | C27: 35000
B28: Floodlighting Costs per court
B29: New LED Installation | C29: 15000
B30: LED Conversion | C30: 10000
